date,department/service,beneficiary,amount,summary of purpose,category,transaction number,SAP vendor number
01.02.2023,HOUSING HRA,PINNICALE BUILDING SERVICES LIMITED,"3,730.00",CAPITAL PS (HRA),UTILITIES INSTALLATION,5902562897,1000082308
02.02.2023,ADULT SOCIAL CARE,REDACTED PERSONAL DATA,279.85,APPOINTEESHIPS,OTHER PAYMENTS FOR CLIENTS,REDACTED,REDACTED
02.02.2023,ADULT SOCIAL CARE,REDACTED PERSONAL DATA,600.00,APPOINTEESHIPS,OTHER PAYMENTS FOR CLIENTS,REDACTED,REDACTED
02.02.2023,ADULT SOCIAL CARE,BRITISH GAS,903.96,CASTLEMEAD,ELECTRICITY,5902563966,1000054825
02.02.2023,ADULT SOCIAL CARE,BLANDFORD HOUSE UK LTD,"3,510.09",DISABILITIES LAC,RESIDENTIAL CARE,2103619187,1000088662
02.02.2023,ADULT SOCIAL CARE,BLANDFORD HOUSE UK LTD,"20,607.25",DISABILITIES LAC,EXTERNAL AGENCIES AND BODIES,2103619188,1000088662
02.02.2023,ADULT SOCIAL CARE,MEDEQUIP ASSISTIVE TECHNOLOGY LTD,333.02,ICES CONTRACT,EQUIPMENT PURCHASE & REPAIR,5902564155,1000062775
02.02.2023,ADULT SOCIAL CARE,MEDEQUIP ASSISTIVE TECHNOLOGY LTD,"213,257.66",ICES CONTRACT,EQUIPMENT PURCHASE & REPAIR,5902564157,1000062775
02.02.2023,ADULT SOCIAL CARE,CHOICE SUPPORT,257.20,LD LTS 18-64,SUPPORTED LIVING,2103619171,1104183
02.02.2023,ADULT SOCIAL CARE,CHOICE SUPPORT,293.92,LD LTS 18-64,SUPPORTED LIVING,2103619156,1104183
02.02.2023,ADULT SOCIAL CARE,CHOICE SUPPORT,293.92,LD LTS 18-64,SUPPORTED LIVING,2103619173,1104183
02.02.2023,ADULT SOCIAL CARE,INSPIRE SUPPORT WORKERS LTD,440.64,LD LTS 18-64,SUPPORTED LIVING,2103619144,1000080725
02.02.2023,ADULT SOCIAL CARE,CHOICE SUPPORT,587.84,LD LTS 18-64,SUPPORTED LIVING,2103619170,1104183
02.02.2023,ADULT SOCIAL CARE,CHOICE SUPPORT,661.32,LD LTS 18-64,SUPPORTED LIVING,2103619153,1104183
02.02.2023,ADULT SOCIAL CARE,CHOICE SUPPORT,661.32,LD LTS 18-64,SUPPORTED LIVING,2103619154,1104183
02.02.2023,ADULT SOCIAL CARE,CHOICE SUPPORT,661.32,LD LTS 18-64,SUPPORTED LIVING,2103619155,1104183
02.02.2023,ADULT SOCIAL CARE,CHOICE SUPPORT,734.80,LD LTS 18-64,SUPPORTED LIVING,2103619158,1104183
02.02.2023,ADULT SOCIAL CARE,INSPIRE SUPPORT WORKERS LTD,770.00,LD LTS 18-64,SUPPORTED LIVING,2103619151,1000080725
02.02.2023,ADULT SOCIAL CARE,CHOICE SUPPORT,808.28,LD LTS 18-64,SUPPORTED LIVING,2103619172,1104183
02.02.2023,ADULT SOCIAL CARE,KEEVA CARE LIMITED,"1,748.00",LD LTS 18-64,SUPPORTED LIVING,2103619141,1000086100
02.02.2023,ADULT SOCIAL CARE,KEEVA CARE LIMITED,"2,128.00",LD LTS 18-64,SUPPORTED LIVING,2103619142,1000086100
02.02.2023,ADULT SOCIAL CARE,KEEVA CARE LIMITED,"2,128.00",LD LTS 18-64,SUPPORTED LIVING,2103619143,1000086100
02.02.2023,ADULT SOCIAL CARE,CHOICE SUPPORT,587.84,LD LTS 65+,SUPPORTED LIVING,2103619169,1104183
02.02.2023,ADULT SOCIAL CARE,CHOICE SUPPORT,"1,028.72",LD LTS 65+,SUPPORTED LIVING,2103619157,1104183
02.02.2023,ADULT SOCIAL CARE,INSPIRE SUPPORT WORKERS LTD,303.36,MH LTS 18-64,SUPPORTED LIVING,2103619150,1000080725
02.02.2023,ADULT SOCIAL CARE,INSPIRE SUPPORT WORKERS LTD,350.00,MH LTS 18-64,SUPPORTED LIVING,2103619145,1000080725
02.02.2023,ADULT SOCIAL CARE,INSPIRE SUPPORT WORKERS LTD,720.00,MH LTS 65+,SUPPORTED LIVING,2103619152,1000080725
02.02.2023,ADULT SOCIAL CARE,INSPIRE SUPPORT WORKERS LTD,644.64,PHY LTS 18-64,HOMECARE - SPOT,2103619148,1000080725
02.02.2023,ADULT SOCIAL CARE,REALITY FAMILY SUPPORT SERVICES LTD,943.25,PHY LTS 18-64,OTHER PAYMENTS FOR CLIENTS,5902564127,1000087878
02.02.2023,ADULT SOCIAL CARE,REALITY FAMILY SUPPORT SERVICES LTD,956.72,PHY LTS 18-64,OTHER PAYMENTS FOR CLIENTS,5902564133,1000087878
02.02.2023,ADULT SOCIAL CARE,INSPIRE SUPPORT WORKERS LTD,"2,835.00",PHY LTS 18-64,HOMECARE - SPOT,2103619147,1000080725
02.02.2023,ADULT SOCIAL CARE,SOUTHSIDE PARTNERSHIP LTD,"60,917.07",S75 SUPHSG SCH LBS LEAD,EXTERNAL AGENCIES AND BODIES,5902564114,1716624
02.02.2023,ADULT SOCIAL CARE,STREETSCENE ADDICTION RECOVERY LTD,971.43,SUB LTS 18-64,RESIDENTIAL CARE,2103619174,11221787
02.02.2023,ADULT SOCIAL CARE,STREETSCENE ADDICTION RECOVERY LTD,"3,400.00",SUB LTS 18-64,RESIDENTIAL CARE,2103619175,11221787
02.02.2023,ASSET MANAGEMENT,PARITY PROJECTS LIMITED,"5,700.00",DIRECTOR OF ASSET MANAGEMENT,PROFESSIONAL FEES,5902563288,1000086269
02.02.2023,ASSET MANAGEMENT,1st ACTIVE PROPERTY SERVICES LTD,420.00,DISREPAIR,PAYMENTS FOR LEGAL SERVICES,2103618869,3000001655
02.02.2023,ASSET MANAGEMENT,GAS ADVISORY SERVICES LIMITED,"1,026.94",ENG CONTRACTS (NORTH),HEATING -DISTRICT SERVICE (CONTRACT SUM),5902563051,1000064649
02.02.2023,ASSET MANAGEMENT,GAS ADVISORY SERVICES LIMITED,"1,085.00",ENG CONTRACTS (NORTH),HEATING -DISTRICT SERVICE (CONTRACT SUM),5902563057,1000064649
02.02.2023,ASSET MANAGEMENT,GAS ADVISORY SERVICES LIMITED,"1,345.52",ENG CONTRACTS (NORTH),HEATING -DISTRICT SERVICE (CONTRACT SUM),5902563053,1000064649
02.02.2023,ASSET MANAGEMENT,GAS ADVISORY SERVICES LIMITED,"1,497.83",ENG CONTRACTS (NORTH),HEATING -DISTRICT SERVICE (CONTRACT SUM),5902563052,1000064649
02.02.2023,ASSET MANAGEMENT,FRANKHAM CONSULTANCY GROUP LTD,"2,650.00",MAJOR REPAIRS,BUILDING R&M,5902564066,1000043952
02.02.2023,ASSET MANAGEMENT,FRANKHAM CONSULTANCY GROUP LTD,"2,850.00",MAJOR REPAIRS,BUILDING R&M,5902564039,1000043952
02.02.2023,ASSET MANAGEMENT,EG TRAINING SERVICES,920.00,REPAIRS OPERATIONS,TRAINING,5902562874,1000060933
02.02.2023,ASSET MANAGEMENT,FRANKHAM CONSULTANCY GROUP LTD,985.00,REPAIRS OPERATIONS,BUILDING R&M,5902564074,1000043952
02.02.2023,ASSET MANAGEMENT,FRANKHAM CONSULTANCY GROUP LTD,"1,050.00",REPAIRS OPERATIONS,BUILDING R&M,5902564076,1000043952
02.02.2023,ASSET MANAGEMENT HGF,ROYAL MAIL GROUP LTD,414.58,160 TOOLEY ST.,POSTAGES,5902563680,1000061535
02.02.2023,ASSET MANAGEMENT HGF,ROYAL MAIL GROUP LTD,"3,350.95",160 TOOLEY ST.,POSTAGES,5902563412,1000061535
02.02.2023,CENTRAL FUNCTIONS,KENT COUNTY COUNCIL - LASER,-778.16,HEATING ACCOUNT,ELECTRICITY,2103619079,1000012926
02.02.2023,CENTRAL FUNCTIONS,KENT COUNTY COUNCIL - LASER,"1,270.01",HEATING ACCOUNT,ELECTRICITY,2103619074,1000012926
02.02.2023,CENTRAL FUNCTIONS,KENT COUNTY COUNCIL - LASER,"1,512.89",HEATING ACCOUNT,ELECTRICITY,2103619077,1000012926
02.02.2023,CENTRAL FUNCTIONS,KENT COUNTY COUNCIL - LASER,"1,698.03",HEATING ACCOUNT,ELECTRICITY,2103619075,1000012926
02.02.2023,CENTRAL FUNCTIONS,KENT COUNTY COUNCIL - LASER,"3,353.96",HEATING ACCOUNT,GAS,2103619078,1000012926
02.02.2023,CENTRAL FUNCTIONS,ASHFORDS LLP OFFICE ACCOUNT,922.20,TECHNICAL SUPPORT,SOLICITORS FRAMEWORK LEGAL SERVICES,5902563453,1000082695
02.02.2023,CHIEF EXECUTIVE'S OFFICE,J C CONSULTANT SERVICES LTD,"9,409.00",CHIEF EXECUTIVE'S OFFICE,EXTERNAL AGENCIES AND BODIES,5902563089,1000042476
02.02.2023,CHIEF EXECUTIVE'S OFFICE,J C CONSULTANT SERVICES LTD,"14,041.00",CHIEF EXECUTIVE'S OFFICE,EXTERNAL AGENCIES AND BODIES,5902563082,1000042476
02.02.2023,CHIEF EXECUTIVE'S OFFICE,J C CONSULTANT SERVICES LTD,"77,433.00",CHIEF EXECUTIVE'S OFFICE,EXTERNAL AGENCIES AND BODIES,5902563098,1000042476
02.02.2023,CHIEF EXECUTIVE'S OFFICE,CONNEXIONS CUISINE LTD T/A MASONS CATERING,258.00,STRATEGY AND CHANGE,REFRESHMENTS FOR MEETINGS,5902563993,11317153
02.02.2023,CHILDREN AND ADULT,PRIDE DEVELOPMENTS,"6,746.45",CAPITAL PS (SOC SERV),CONSTRUCTION MAIN CONTRACT,2103619136,3000002126
02.02.2023,CHILDREN AND FAMILIES,INDEPENDENT BIA LTD,400.00,ADOPTION SUPP FUND 1,EXTERNAL AGENCIES AND BODIES,5902564139,1000086264
02.02.2023,CHILDREN AND FAMILIES,REDACTED PERSONAL DATA,485.00,ADOPTION SUPP FUND 1,EXTERNAL AGENCIES AND BODIES,REDACTED,REDACTED
02.02.2023,CHILDREN AND FAMILIES,REDACTED PERSONAL DATA,280.00,ADOPTION SUPP FUND 2,EXTERNAL AGENCIES AND BODIES,REDACTED,REDACTED
02.02.2023,CHILDREN AND FAMILIES,REDACTED PERSONAL DATA,480.00,ADOPTION SUPP FUND 2,EXTERNAL AGENCIES AND BODIES,REDACTED,REDACTED
02.02.2023,CHILDREN AND FAMILIES,RAGDOLL TRAINING AND THERAPEUTIC SERVICES LIMITED,575.00,ADOPTION SUPP FUND 2,EXTERNAL AGENCIES AND BODIES,5902564138,1000085096
02.02.2023,CHILDREN AND FAMILIES,REDACTED PERSONAL DATA,642.50,ADOPTION SUPP FUND 2,EXTERNAL AGENCIES AND BODIES,REDACTED,REDACTED
02.02.2023,CHILDREN AND FAMILIES,REDACTED PERSONAL DATA,800.00,ADOPTION SUPP FUND 2,EXTERNAL AGENCIES AND BODIES,REDACTED,REDACTED
02.02.2023,CHILDREN AND FAMILIES,THE ANNA FREUD CENTRE,"1,500.00",ADOPTION SUPP FUND 2,EXTERNAL AGENCIES AND BODIES,5902562832,1000017805
02.02.2023,CHILDREN AND FAMILIES,SARAH ANNE PETER,"1,864.00",ADOPTION SUPP FUND 2,EXTERNAL AGENCIES AND BODIES,5902564140,1000089194
02.02.2023,CHILDREN AND FAMILIES,REDACTED PERSONAL DATA,300.00,CARELEAVER UNIV SUPP,CLIENT TRANSPORT,REDACTED,REDACTED
02.02.2023,CHILDREN AND FAMILIES,REDACTED PERSONAL DATA,"1,150.00",CARELEAVER UNIV SUPP,OTHER PAYMENTS FOR CLIENTS,REDACTED,REDACTED
02.02.2023,CHILDREN AND FAMILIES,CARESCRIBE LIMITED,"1,800.00",CENTRAL SUPPORT,MEDICAL / HEALTH & SAFETY SERVICES,5902564118,1000089182
02.02.2023,CHILDREN AND FAMILIES,247 BLUEBELL CARE LIMITED,"4,022.28",CHILDREN�S RESID,RESIDENTIAL CARE,2103619186,1000087186
02.02.2023,CHILDREN AND FAMILIES,247 BLUEBELL CARE LIMITED,"24,938.13",CHILDREN�S RESID,RESIDENTIAL CARE,2103619189,1000087186
02.02.2023,CHILDREN AND FAMILIES,REALITY FAMILY SUPPORT SERVICES LTD,404.25,EDGE OF CARE DECIS�S,OTHER PAYMENTS FOR CLIENTS,5902564127,1000087878
02.02.2023,CHILDREN AND FAMILIES,REALITY FAMILY SUPPORT SERVICES LTD,410.03,EDGE OF CARE DECIS�S,OTHER PAYMENTS FOR CLIENTS,5902564133,1000087878
02.02.2023,CHILDREN AND FAMILIES,REDACTED PERSONAL DATA,300.00,FE SUPPORT,CLIENT TRANSPORT,REDACTED,REDACTED
02.02.2023,CHILDREN AND FAMILIES,REDACTED PERSONAL DATA,400.00,FE SUPPORT,OTHER PAYMENTS FOR CLIENTS,REDACTED,REDACTED
02.02.2023,CHILDREN AND FAMILIES,REDACTED PERSONAL DATA,500.00,FE SUPPORT,OTHER PAYMENTS FOR CLIENTS,REDACTED,REDACTED
02.02.2023,CHILDREN AND FAMILIES,BANYA FAMILY PLACEMENT AGENCY LTD,500.00,FRIENDS & FAMILY FOSTERING,EXTERNAL AGENCIES AND BODIES,2103619199,11328315
02.02.2023,CHILDREN AND FAMILIES,OUTSET FOSTERING AGENCY LTD,"1,870.00",FRIENDS & FAMILY FOSTERING,EXTERNAL AGENCIES AND BODIES,2103619212,1000088285
02.02.2023,CHILDREN AND FAMILIES,NURTURE FOSTERING LTD,"2,314.29",FRIENDS & FAMILY FOSTERING,EXTERNAL AGENCIES AND BODIES,2103619208,1000088623
02.02.2023,CHILDREN AND FAMILIES,SUBARI FOSTER CARE LIMITED,"3,188.35",FRIENDS & FAMILY FOSTERING,EXTERNAL AGENCIES AND BODIES,2103619215,1000088796
02.02.2023,CHILDREN AND FAMILIES,REGIONAL FOSTERING SERVICES LTD,"3,512.96",FRIENDS & FAMILY FOSTERING,EXTERNAL AGENCIES AND BODIES,2103619201,1000080112
02.02.2023,CHILDREN AND FAMILIES,KASPER FOSTERING,"3,513.23",FRIENDS & FAMILY FOSTERING,EXTERNAL AGENCIES AND BODIES,2103619217,1000036628
02.02.2023,CHILDREN AND FAMILIES,REGIONAL FOSTERING SERVICES LTD,"3,697.86",FRIENDS & FAMILY FOSTERING,EXTERNAL AGENCIES AND BODIES,2103619213,1000080112
02.02.2023,CHILDREN AND FAMILIES,FIVE RIVERS CHILD CARE LTD,"3,808.57",FRIENDS & FAMILY FOSTERING,EXTERNAL AGENCIES AND BODIES,2103619202,1000018792
02.02.2023,CHILDREN AND FAMILIES,RAINBOW FOSTERING SERVICES LTD,"3,835.71",FRIENDS & FAMILY FOSTERING,EXTERNAL AGENCIES AND BODIES,2103619200,1000076620
02.02.2023,CHILDREN AND FAMILIES,RAINBOW FOSTERING SERVICES LTD,"3,963.57",FRIENDS & FAMILY FOSTERING,EXTERNAL AGENCIES AND BODIES,2103619211,1000076620
02.02.2023,CHILDREN AND FAMILIES,LIKA FAMILY FOSTERING,"3,996.78",FRIENDS & FAMILY FOSTERING,EXTERNAL AGENCIES AND BODIES,2103619209,1000080099
02.02.2023,CHILDREN AND FAMILIES,DIVERSITY FOSTER CARE LTD,"4,108.69",FRIENDS & FAMILY FOSTERING,EXTERNAL AGENCIES AND BODIES,2103619216,1000081399
02.02.2023,CHILDREN AND FAMILIES,LIKA FAMILY FOSTERING,"4,207.14",FRIENDS & FAMILY FOSTERING,EXTERNAL AGENCIES AND BODIES,2103619214,1000080099
02.02.2023,CHILDREN AND FAMILIES,KASPER FOSTERING,"4,640.39",FRIENDS & FAMILY FOSTERING,EXTERNAL AGENCIES AND BODIES,2103619205,1000036628
02.02.2023,CHILDREN AND FAMILIES,FOSTERING LONDON LTD,"5,092.68",FRIENDS & FAMILY FOSTERING,EXTERNAL AGENCIES AND BODIES,2103619204,1000077541
02.02.2023,CHILDREN AND FAMILIES,AIM HIGH FOSTERING SERVICES LTD,"5,314.02",FRIENDS & FAMILY FOSTERING,EXTERNAL AGENCIES AND BODIES,2103619218,1000082607
02.02.2023,CHILDREN AND FAMILIES,NURTURE FOSTERING LTD,"5,657.14",FRIENDS & FAMILY FOSTERING,EXTERNAL AGENCIES AND BODIES,2103619207,1000088623
02.02.2023,CHILDREN AND FAMILIES,SUBARI FOSTER CARE LIMITED,"5,757.01",FRIENDS & FAMILY FOSTERING,EXTERNAL AGENCIES AND BODIES,2103619206,1000088796
02.02.2023,CHILDREN AND FAMILIES,FOSTERING LONDON LTD,"8,308.00",FRIENDS & FAMILY FOSTERING,EXTERNAL AGENCIES AND BODIES,2103619203,1000077541
02.02.2023,CHILDREN AND FAMILIES,REDACTED PERSONAL DATA,"2,000.00",LEAVING CARE GRANT,OTHER PAYMENTS FOR CLIENTS,REDACTED,REDACTED
02.02.2023,CHILDREN AND FAMILIES,ZENITH CARS LTD,360.00,P & R CARE TEAM,CLIENT TRANSPORT,5902564096,1000070570
02.02.2023,CHILDREN AND FAMILIES,ZENITH CARS LTD,380.00,P & R CARE TEAM,OTHER PAYMENTS FOR CLIENTS,5902564094,1000070570
02.02.2023,CHILDREN AND FAMILIES,ZENITH CARS LTD,450.00,P & R CARE TEAM,CLIENT TRANSPORT,5902564111,1000070570
02.02.2023,CHILDREN AND FAMILIES,ZENITH CARS LTD,450.00,P & R CARE TEAM,CLIENT TRANSPORT,5902564115,1000070570
02.02.2023,CHILDREN AND FAMILIES,ZENITH CARS LTD,480.00,P & R CARE TEAM,CLIENT TRANSPORT,5902564098,1000070570
02.02.2023,CHILDREN AND FAMILIES,ZENITH CARS LTD,500.00,P & R CARE TEAM,CLIENT TRANSPORT,5902564104,1000070570
02.02.2023,CHILDREN AND FAMILIES,ZENITH CARS LTD,500.00,P & R CARE TEAM,CLIENT TRANSPORT,5902564106,1000070570
02.02.2023,CHILDREN AND FAMILIES,CORAM ACADEMY LTD,925.00,P & R CARE TEAM,EXTERNAL AGENCIES AND BODIES,5902564053,1000076627
02.02.2023,CHILDREN AND FAMILIES,PLACE OF PROGRESS LTD,-441.52,SEMI-IND CARELEAVERS,EXTERNAL AGENCIES AND BODIES,5902563706,1000086889
02.02.2023,CHILDREN AND FAMILIES,E A JIGSAW CARE LIMITED,"1,071.30",SEMI-IND CARELEAVERS,EXTERNAL AGENCIES AND BODIES,2103619220,1000084233
02.02.2023,CHILDREN AND FAMILIES,E A JIGSAW CARE LIMITED,"1,107.01",SEMI-IND CARELEAVERS,EXTERNAL AGENCIES AND BODIES,2103619219,1000084233
02.02.2023,CHILDREN AND FAMILIES,HEARTWOOD OUTREACH SERVICES LTD,"1,309.37",SEMI-IND CARELEAVERS,EXTERNAL AGENCIES AND BODIES,2103619198,1000075021
02.02.2023,CHILDREN AND FAMILIES,TUTELAGE CARE GROUP LTD,265.70,SEMI-IND LAC 16-17,OTHER PAYMENTS FOR CLIENTS,2103619191,1000088232
02.02.2023,CHILDREN AND FAMILIES,OPENMINDS SOCIAL CARE,300.00,SEMI-IND LAC 16-17,OTHER PAYMENTS FOR CLIENTS,2103619193,1000085800
02.02.2023,CHILDREN AND FAMILIES,REDACTED PERSONAL DATA,"2,120.00",SEMI-IND LAC 16-17,OTHER PAYMENTS FOR CLIENTS,REDACTED,REDACTED
02.02.2023,CHILDREN AND FAMILIES,PLACE OF PROGRESS LTD,"3,800.00",SEMI-IND LAC 16-17,EXTERNAL AGENCIES AND BODIES,2103619183,1000086889
02.02.2023,CHILDREN AND FAMILIES,THEMI CARE LIMITED,"4,096.43",SEMI-IND LAC 16-17,EXTERNAL AGENCIES AND BODIES,2103619194,1000061725
02.02.2023,CHILDREN AND FAMILIES,TUTELAGE CARE GROUP LTD,"4,207.14",SEMI-IND LAC 16-17,EXTERNAL AGENCIES AND BODIES,2103619190,1000088232
02.02.2023,CHILDREN AND FAMILIES,ZENITH CARS LTD,450.00,TEAM A,CLIENT TRANSPORT,5902564093,1000070570
02.02.2023,CHILDREN AND FAMILIES,ZENITH CARS LTD,"1,055.00",TEAM B,CLIENT TRANSPORT,5902564093,1000070570
02.02.2023,CHILDREN AND FAMILIES,ZENITH CARS LTD,"1,985.00",TEAM C,CLIENT TRANSPORT,5902564093,1000070570
02.02.2023,CHILDREN AND FAMILIES,ZENITH CARS LTD,"1,470.00",TEAM D,CLIENT TRANSPORT,5902564093,1000070570
02.02.2023,CHILDREN AND FAMILIES,NATIONWIDE ACCOMMODATION,"2,201.00",TEMP ACCOM FOR IH,EXTERNAL AGENCIES AND BODIES,5902564040,1000076112
02.02.2023,CHILDREN AND FAMILIES,STAR PEOPLE LTD,"2,253.70",TEMP ACCOM FOR IH,EXTERNAL AGENCIES AND BODIES,5902564161,1000088790
02.02.2023,CHILDREN AND FAMILIES,OWNLIFE LTD,"1,905.00",UASC CARELEAVERS,EXTERNAL AGENCIES AND BODIES,2103619196,1000056219
02.02.2023,CHILDREN AND FAMILIES,CONCEPT CARE AND SUPPORT,"2,000.00",UASC CARELEAVERS,EXTERNAL AGENCIES AND BODIES,2103619185,1000088377
02.02.2023,CHILDREN AND FAMILIES,BRIGHT YOUNG FUTURES LTD,300.00,UASC LAC 16-17,OTHER PAYMENTS FOR CLIENTS,2103619192,1000083958
02.02.2023,COMMUNITIES,DOUG FEERY LTD,"10,500.00","EQUALITY, DIVERSITY & INCLUSION",PROFESSIONAL FEES,5902564102,1000080512
02.02.2023,COMMUNITIES,BENHAM PUBLISHING LTD,"2,400.00",MAYORAL SUPPORT,MARKETING & PUBLICITY SERVICES,5902563955,1000075905
02.02.2023,COMMUNITIES,METROPOLITAN HOUSING TRUST LTD,"1,035.96",NO RECOURSE TO PUBLIC FUNDS,ACCOMMODATION CHARGES,5902564105,1000047547
02.02.2023,COMMUNITIES,METROPOLITAN HOUSING TRUST LTD,"1,036.00",NO RECOURSE TO PUBLIC FUNDS,ACCOMMODATION CHARGES,5902564103,1000047547
02.02.2023,COMMUNITIES,J C CONSULTANT SERVICES LTD,"19,017.00",SOUTHWARK ANTI VIOLENCE UNIT,PROFESSIONAL FEES,5902564141,1000042476
02.02.2023,COMMUNITIES,REDACTED PERSONAL DATA,350.00,UKRAINIAN PROGRAMME,GRANTS,REDACTED,REDACTED
02.02.2023,COMMUNITIES,REDACTED PERSONAL DATA,350.00,UKRAINIAN PROGRAMME,GRANTS,REDACTED,REDACTED
02.02.2023,COMMUNITIES,REDACTED PERSONAL DATA,350.00,UKRAINIAN PROGRAMME,GRANTS,REDACTED,REDACTED
02.02.2023,COMMUNITIES,REDACTED PERSONAL DATA,350.00,UKRAINIAN PROGRAMME,GRANTS,REDACTED,REDACTED
02.02.2023,COMMUNITIES,REDACTED PERSONAL DATA,350.00,UKRAINIAN PROGRAMME,GRANTS,REDACTED,REDACTED
02.02.2023,COMMUNITIES HRA,TWO TOWERS HOUSING CO-OP LTD,"1,029.42",TWO TOWERS,M&M ALLOWANCE CO-OPS,5902564018,1000006843
02.02.2023,COMMUNITIES HRA,WRAYBURN COMMUNITIES ORGANISATION LTD,"3,906.61",WRAYBURN TMO,M&M ALLOWANCE CO-OPS,5902564116,1000078477
02.02.2023,DSG,SACRED HEART CATHOLIC SCHOOL,"2,787.95",AC & FREE - MSTREAM,STATEMENTED FEES,2103618985,1000071091
02.02.2023,DSG,SACRED HEART CATHOLIC SCHOOL,"2,787.95",AC & FREE - MSTREAM,STATEMENTED FEES,2103618986,1000071091
02.02.2023,DSG,SACRED HEART CATHOLIC SCHOOL,"2,787.95",AC & FREE - MSTREAM,STATEMENTED FEES,2103618991,1000071091
02.02.2023,DSG,SACRED HEART CATHOLIC SCHOOL,"2,787.95",AC & FREE - MSTREAM,STATEMENTED FEES,2103618992,1000071091
02.02.2023,DSG,ANGEL OAK ACADEMY,"2,787.95",AC & FREE - MSTREAM,STATEMENTED FEES,2103618903,1000075379
02.02.2023,DSG,SACRED HEART CATHOLIC SCHOOL,"3,103.33",AC & FREE - MSTREAM,STATEMENTED FEES,2103618983,1000071091
02.02.2023,DSG,SACRED HEART CATHOLIC SCHOOL,"5,542.31",AC & FREE - MSTREAM,STATEMENTED FEES,2103618979,1000071091
02.02.2023,DSG,SACRED HEART CATHOLIC SCHOOL,"5,542.31",AC & FREE - MSTREAM,STATEMENTED FEES,2103618980,1000071091
02.02.2023,DSG,SACRED HEART CATHOLIC SCHOOL,"5,542.31",AC & FREE - MSTREAM,STATEMENTED FEES,2103618981,1000071091
02.02.2023,DSG,SACRED HEART CATHOLIC SCHOOL,"5,542.31",AC & FREE - MSTREAM,STATEMENTED FEES,2103618982,1000071091
02.02.2023,DSG,SACRED HEART CATHOLIC SCHOOL,"5,542.31",AC & FREE - MSTREAM,STATEMENTED FEES,2103618984,1000071091
02.02.2023,DSG,SACRED HEART CATHOLIC SCHOOL,"5,542.31",AC & FREE - MSTREAM,STATEMENTED FEES,2103618989,1000071091
02.02.2023,DSG,SACRED HEART CATHOLIC SCHOOL,"5,542.31",AC & FREE - MSTREAM,STATEMENTED FEES,2103618990,1000071091
02.02.2023,DSG,ANGEL OAK ACADEMY,"5,542.31",AC & FREE - MSTREAM,STATEMENTED FEES,2103618892,1000075379
02.02.2023,DSG,ANGEL OAK ACADEMY,"5,542.31",AC & FREE - MSTREAM,STATEMENTED FEES,2103618904,1000075379
02.02.2023,DSG,ANGEL OAK ACADEMY,"5,542.31",AC & FREE - MSTREAM,STATEMENTED FEES,2103618905,1000075379
02.02.2023,DSG,ANGEL OAK ACADEMY,"5,542.31",AC & FREE - MSTREAM,STATEMENTED FEES,2103618907,1000075379
02.02.2023,DSG,ANGEL OAK ACADEMY,"5,542.31",AC & FREE - MSTREAM,STATEMENTED FEES,2103618910,1000075379
02.02.2023,DSG,SACRED HEART CATHOLIC SCHOOL,"8,296.67",AC & FREE - MSTREAM,STATEMENTED FEES,2103618978,1000071091
02.02.2023,DSG,ANGEL OAK ACADEMY,"8,296.67",AC & FREE - MSTREAM,STATEMENTED FEES,2103618890,1000075379
02.02.2023,DSG,ANGEL OAK ACADEMY,"8,296.67",AC & FREE - MSTREAM,STATEMENTED FEES,2103618891,1000075379
02.02.2023,DSG,ANGEL OAK ACADEMY,"8,296.67",AC & FREE - MSTREAM,STATEMENTED FEES,2103618906,1000075379
02.02.2023,DSG,ANGEL OAK ACADEMY,"8,296.67",AC & FREE - MSTREAM,STATEMENTED FEES,2103618908,1000075379
02.02.2023,DSG,ANGEL OAK ACADEMY,"8,296.67",AC & FREE - MSTREAM,STATEMENTED FEES,2103618909,1000075379
02.02.2023,DSG,ANGEL OAK ACADEMY,"8,296.67",AC & FREE - MSTREAM,STATEMENTED FEES,2103618911,1000075379
02.02.2023,DSG,SACRED HEART CATHOLIC SCHOOL,"8,541.87",AC & FREE - MSTREAM,STATEMENTED FEES,2103618987,1000071091
02.02.2023,DSG,SACRED HEART CATHOLIC SCHOOL,"8,541.87",AC & FREE - MSTREAM,STATEMENTED FEES,2103618988,1000071091
02.02.2023,DSG,ANGEL OAK ACADEMY,"8,930.00",AC & FREE - MSTREAM,STATEMENTED FEES,2103618893,1000075379
02.02.2023,DSG,PROSPERO RECRUITMENT LTD,283.50,AP & HOSPITAL SCHLS,STATEMENTED FEES,2103618964,1000082492
02.02.2023,DSG,ADVANCEMENTS ABA LTD,400.00,AP & HOSPITAL SCHLS,STATEMENTED FEES,2103618876,1000081719
02.02.2023,DSG,ADVANCEMENTS ABA LTD,400.00,AP & HOSPITAL SCHLS,STATEMENTED FEES,2103618882,1000081719
02.02.2023,DSG,ADVANCEMENTS ABA LTD,400.00,AP & HOSPITAL SCHLS,STATEMENTED FEES,2103618883,1000081719
02.02.2023,DSG,SUGARMAN GROUP,663.00,AP & HOSPITAL SCHLS,STATEMENTED FEES,2103619006,1000088849
02.02.2023,DSG,ACADEMY21 LTD,779.25,AP & HOSPITAL SCHLS,STATEMENTED FEES,2103618873,1000083781
02.02.2023,DSG,ACADEMY21 LTD,804.00,AP & HOSPITAL SCHLS,STATEMENTED FEES,2103618872,1000083781
02.02.2023,DSG,SUGARMAN GROUP,900.00,AP & HOSPITAL SCHLS,STATEMENTED FEES,2103619005,1000088849
02.02.2023,DSG,SUGARMAN GROUP,975.00,AP & HOSPITAL SCHLS,STATEMENTED FEES,2103619002,1000088849
02.02.2023,DSG,SUGARMAN GROUP,975.00,AP & HOSPITAL SCHLS,STATEMENTED FEES,2103619004,1000088849
02.02.2023,DSG,SUGARMAN GROUP,975.00,AP & HOSPITAL SCHLS,STATEMENTED FEES,2103619008,1000088849
02.02.2023,DSG,ADVANCEMENTS ABA LTD,"1,025.00",AP & HOSPITAL SCHLS,STATEMENTED FEES,2103618879,1000081719
02.02.2023,DSG,PULSE HEALTHCARE LTD,"1,030.92",AP & HOSPITAL SCHLS,STATEMENTED FEES,2103618965,1000035063
02.02.2023,DSG,SUGARMAN GROUP,"1,125.00",AP & HOSPITAL SCHLS,STATEMENTED FEES,2103619001,1000088849
02.02.2023,DSG,SUGARMAN GROUP,"1,125.00",AP & HOSPITAL SCHLS,STATEMENTED FEES,2103619003,1000088849
02.02.2023,DSG,SUGARMAN GROUP,"1,125.00",AP & HOSPITAL SCHLS,STATEMENTED FEES,2103619007,1000088849
02.02.2023,DSG,ADVANCEMENTS ABA LTD,"1,300.00",AP & HOSPITAL SCHLS,STATEMENTED FEES,2103618877,1000081719
02.02.2023,DSG,TEACHER ACTIVE LIMITED,"1,506.40",AP & HOSPITAL SCHLS,STATEMENTED FEES,2103619013,1000088338
02.02.2023,DSG,TEACHER ACTIVE LIMITED,"1,614.00",AP & HOSPITAL SCHLS,STATEMENTED FEES,2103619009,1000088338
02.02.2023,DSG,TEACHER ACTIVE LIMITED,"1,614.00",AP & HOSPITAL SCHLS,STATEMENTED FEES,2103619011,1000088338
02.02.2023,DSG,FLEET TUTORS,"1,635.00",AP & HOSPITAL SCHLS,STATEMENTED FEES,2103618936,1000044820
02.02.2023,DSG,TEACHER ACTIVE LIMITED,"1,883.00",AP & HOSPITAL SCHLS,STATEMENTED FEES,2103619010,1000088338
02.02.2023,DSG,TEACHER ACTIVE LIMITED,"1,883.00",AP & HOSPITAL SCHLS,STATEMENTED FEES,2103619012,1000088338
02.02.2023,DSG,ADVANCEMENTS ABA LTD,"1,900.00",AP & HOSPITAL SCHLS,STATEMENTED FEES,2103618880,1000081719
02.02.2023,DSG,FLEET TUTORS,"2,180.00",AP & HOSPITAL SCHLS,STATEMENTED FEES,2103618935,1000044820
02.02.2023,DSG,FLEET TUTORS,"2,234.00",AP & HOSPITAL SCHLS,STATEMENTED FEES,2103618934,1000044820
02.02.2023,DSG,ILDERTON MOTORVEHICLE PROJECT,"2,400.00",AP & HOSPITAL SCHLS,STATEMENTED FEES,2103618938,1000066082
02.02.2023,DSG,ILDERTON MOTORVEHICLE PROJECT,"2,400.00",AP & HOSPITAL SCHLS,STATEMENTED FEES,2103618942,1000066082
02.02.2023,DSG,ADVANCEMENTS ABA LTD,"2,625.00",AP & HOSPITAL SCHLS,STATEMENTED FEES,2103618881,1000081719
02.02.2023,DSG,ILDERTON MOTORVEHICLE PROJECT,"2,700.00",AP & HOSPITAL SCHLS,STATEMENTED FEES,2103618944,1000066082
02.02.2023,DSG,ILDERTON MOTORVEHICLE PROJECT,"2,700.00",AP & HOSPITAL SCHLS,STATEMENTED FEES,2103618948,1000066082
02.02.2023,DSG,ADVANCEMENTS ABA LTD,"2,740.00",AP & HOSPITAL SCHLS,STATEMENTED FEES,2103618878,1000081719
02.02.2023,DSG,FLEET TUTORS,"3,308.00",AP & HOSPITAL SCHLS,STATEMENTED FEES,2103618933,1000044820
02.02.2023,DSG,FLEET TUTORS,"3,670.00",AP & HOSPITAL SCHLS,STATEMENTED FEES,2103618932,1000044820
02.02.2023,DSG,NEW START TRAINING LTD,"4,144.17",AP & HOSPITAL SCHLS,STATEMENTED FEES,2103618950,1000045132
02.02.2023,DSG,ILDERTON MOTORVEHICLE PROJECT,"4,440.00",AP & HOSPITAL SCHLS,STATEMENTED FEES,2103618937,1000066082
02.02.2023,DSG,ILDERTON MOTORVEHICLE PROJECT,"4,440.00",AP & HOSPITAL SCHLS,STATEMENTED FEES,2103618941,1000066082
02.02.2023,DSG,ILDERTON MOTORVEHICLE PROJECT,"5,100.00",AP & HOSPITAL SCHLS,STATEMENTED FEES,2103618940,1000066082
02.02.2023,DSG,ILDERTON MOTORVEHICLE PROJECT,"5,100.00",AP & HOSPITAL SCHLS,STATEMENTED FEES,2103618946,1000066082
02.02.2023,DSG,ILDERTON MOTORVEHICLE PROJECT,"6,000.00",AP & HOSPITAL SCHLS,STATEMENTED FEES,2103618939,1000066082
02.02.2023,DSG,ILDERTON MOTORVEHICLE PROJECT,"6,000.00",AP & HOSPITAL SCHLS,STATEMENTED FEES,2103618943,1000066082
02.02.2023,DSG,ILDERTON MOTORVEHICLE PROJECT,"6,000.00",AP & HOSPITAL SCHLS,STATEMENTED FEES,2103618945,1000066082
02.02.2023,DSG,ILDERTON MOTORVEHICLE PROJECT,"6,000.00",AP & HOSPITAL SCHLS,STATEMENTED FEES,2103618947,1000066082
02.02.2023,DSG,RIVERSTON SCHOOL,"10,199.05",INDEP MAINSTREAM,STATEMENTED FEES,2103618968,11213696
02.02.2023,DSG,RIVERSTON SCHOOL,"11,020.80",INDEP MAINSTREAM,STATEMENTED FEES,2103618971,11213696
02.02.2023,DSG,RIVERSTON SCHOOL,"11,153.55",INDEP MAINSTREAM,STATEMENTED FEES,2103618974,11213696
02.02.2023,DSG,RIVERSTON SCHOOL,"11,316.35",INDEP MAINSTREAM,STATEMENTED FEES,2103618973,11213696
02.02.2023,DSG,RIVERSTON SCHOOL,"11,439.00",INDEP MAINSTREAM,STATEMENTED FEES,2103618975,11213696
02.02.2023,DSG,RIVERSTON SCHOOL,"11,591.00",INDEP MAINSTREAM,STATEMENTED FEES,2103618966,11213696
02.02.2023,DSG,RIVERSTON SCHOOL,"11,639.00",INDEP MAINSTREAM,STATEMENTED FEES,2103618976,11213696
02.02.2023,DSG,RIVERSTON SCHOOL,"11,940.00",INDEP MAINSTREAM,STATEMENTED FEES,2103618970,11213696
02.02.2023,DSG,RIVERSTON SCHOOL,"13,194.00",INDEP MAINSTREAM,STATEMENTED FEES,2103618977,11213696
02.02.2023,DSG,RIVERSTON SCHOOL,"13,562.30",INDEP MAINSTREAM,STATEMENTED FEES,2103618969,11213696
02.02.2023,DSG,RIVERSTON SCHOOL,"14,019.00",INDEP MAINSTREAM,STATEMENTED FEES,2103618972,11213696
02.02.2023,DSG,RIVERSTON SCHOOL,"16,527.00",INDEP MAINSTREAM,STATEMENTED FEES,2103618967,11213696
02.02.2023,DSG,AMBITIOUS ABOUT AUTISM,"-22,492.68",NMSS/ INDEP SPECIAL,STATEMENTED FEES,2103619071,1000035784
02.02.2023,DSG,AMBITIOUS ABOUT AUTISM,"-11,735.31",NMSS/ INDEP SPECIAL,STATEMENTED FEES,2103619073,1000035784
02.02.2023,DSG,CAVENDISH SCHOOL,450.00,NMSS/ INDEP SPECIAL,STATEMENTED FEES,2103618913,1000024278
02.02.2023,DSG,CAVENDISH SCHOOL,450.00,NMSS/ INDEP SPECIAL,STATEMENTED FEES,2103618920,1000024278
02.02.2023,DSG,CAVENDISH SCHOOL,733.33,NMSS/ INDEP SPECIAL,STATEMENTED FEES,2103618912,1000024278
02.02.2023,DSG,CAVENDISH SCHOOL,733.33,NMSS/ INDEP SPECIAL,STATEMENTED FEES,2103618914,1000024278
02.02.2023,DSG,CAVENDISH SCHOOL,733.33,NMSS/ INDEP SPECIAL,STATEMENTED FEES,2103618915,1000024278
02.02.2023,DSG,CAVENDISH SCHOOL,733.33,NMSS/ INDEP SPECIAL,STATEMENTED FEES,2103618916,1000024278
02.02.2023,DSG,CAVENDISH SCHOOL,733.33,NMSS/ INDEP SPECIAL,STATEMENTED FEES,2103618917,1000024278
02.02.2023,DSG,CAVENDISH SCHOOL,733.33,NMSS/ INDEP SPECIAL,STATEMENTED FEES,2103618918,1000024278
02.02.2023,DSG,CAVENDISH SCHOOL,733.33,NMSS/ INDEP SPECIAL,STATEMENTED FEES,2103618919,1000024278
02.02.2023,DSG,EAST DULWICH EST T&RA,960.00,NMSS/ INDEP SPECIAL,STATEMENTED FEES,2103618921,1000050123
02.02.2023,DSG,PARAYHOUSE SCHOOL,"5,807.02",NMSS/ INDEP SPECIAL,STATEMENTED FEES,2103618953,1000011369
02.02.2023,DSG,PARAYHOUSE SCHOOL,"5,807.02",NMSS/ INDEP SPECIAL,STATEMENTED FEES,2103618954,1000011369
02.02.2023,DSG,THE COMPLETE WORKS INDEPENDENT SCHOOL,"6,308.00",NMSS/ INDEP SPECIAL,STATEMENTED FEES,2103619016,1000033256
02.02.2023,DSG,THE COMPLETE WORKS INDEPENDENT SCHOOL,"6,308.00",NMSS/ INDEP SPECIAL,STATEMENTED FEES,2103619024,1000033256
02.02.2023,DSG,THE COMPLETE WORKS INDEPENDENT SCHOOL,"7,001.57",NMSS/ INDEP SPECIAL,STATEMENTED FEES,2103619036,1000033256
02.02.2023,DSG,THE COMPLETE WORKS INDEPENDENT SCHOOL,"7,905.00",NMSS/ INDEP SPECIAL,STATEMENTED FEES,2103619014,1000033256
02.02.2023,DSG,THE COMPLETE WORKS INDEPENDENT SCHOOL,"7,905.00",NMSS/ INDEP SPECIAL,STATEMENTED FEES,2103619015,1000033256
02.02.2023,DSG,THE COMPLETE WORKS INDEPENDENT SCHOOL,"7,905.00",NMSS/ INDEP SPECIAL,STATEMENTED FEES,2103619017,1000033256
02.02.2023,DSG,THE COMPLETE WORKS INDEPENDENT SCHOOL,"7,905.00",NMSS/ INDEP SPECIAL,STATEMENTED FEES,2103619018,1000033256
02.02.2023,DSG,THE COMPLETE WORKS INDEPENDENT SCHOOL,"7,905.00",NMSS/ INDEP SPECIAL,STATEMENTED FEES,2103619019,1000033256
02.02.2023,DSG,THE COMPLETE WORKS INDEPENDENT SCHOOL,"7,905.00",NMSS/ INDEP SPECIAL,STATEMENTED FEES,2103619020,1000033256
02.02.2023,DSG,THE COMPLETE WORKS INDEPENDENT SCHOOL,"7,905.00",NMSS/ INDEP SPECIAL,STATEMENTED FEES,2103619021,1000033256
02.02.2023,DSG,THE COMPLETE WORKS INDEPENDENT SCHOOL,"7,905.00",NMSS/ INDEP SPECIAL,STATEMENTED FEES,2103619022,1000033256
02.02.2023,DSG,THE COMPLETE WORKS INDEPENDENT SCHOOL,"7,905.00",NMSS/ INDEP SPECIAL,STATEMENTED FEES,2103619023,1000033256
02.02.2023,DSG,THE COMPLETE WORKS INDEPENDENT SCHOOL,"7,905.00",NMSS/ INDEP SPECIAL,STATEMENTED FEES,2103619025,1000033256
02.02.2023,DSG,THE COMPLETE WORKS INDEPENDENT SCHOOL,"7,905.00",NMSS/ INDEP SPECIAL,STATEMENTED FEES,2103619026,1000033256
02.02.2023,DSG,THE COMPLETE WORKS INDEPENDENT SCHOOL,"7,905.00",NMSS/ INDEP SPECIAL,STATEMENTED FEES,2103619027,1000033256
02.02.2023,DSG,THE COMPLETE WORKS INDEPENDENT SCHOOL,"7,905.00",NMSS/ INDEP SPECIAL,STATEMENTED FEES,2103619028,1000033256
02.02.2023,DSG,THE COMPLETE WORKS INDEPENDENT SCHOOL,"7,905.00",NMSS/ INDEP SPECIAL,STATEMENTED FEES,2103619029,1000033256
02.02.2023,DSG,THE COMPLETE WORKS INDEPENDENT SCHOOL,"7,905.00",NMSS/ INDEP SPECIAL,STATEMENTED FEES,2103619030,1000033256
02.02.2023,DSG,THE COMPLETE WORKS INDEPENDENT SCHOOL,"7,905.00",NMSS/ INDEP SPECIAL,STATEMENTED FEES,2103619031,1000033256
02.02.2023,DSG,THE COMPLETE WORKS INDEPENDENT SCHOOL,"7,905.00",NMSS/ INDEP SPECIAL,STATEMENTED FEES,2103619032,1000033256
02.02.2023,DSG,THE COMPLETE WORKS INDEPENDENT SCHOOL,"7,905.00",NMSS/ INDEP SPECIAL,STATEMENTED FEES,2103619033,1000033256
02.02.2023,DSG,THE COMPLETE WORKS INDEPENDENT SCHOOL,"7,905.00",NMSS/ INDEP SPECIAL,STATEMENTED FEES,2103619034,1000033256
02.02.2023,DSG,THE COMPLETE WORKS INDEPENDENT SCHOOL,"7,905.00",NMSS/ INDEP SPECIAL,STATEMENTED FEES,2103619035,1000033256
02.02.2023,DSG,THE COMPLETE WORKS INDEPENDENT SCHOOL,"7,905.00",NMSS/ INDEP SPECIAL,STATEMENTED FEES,2103619037,1000033256
02.02.2023,DSG,THE COMPLETE WORKS INDEPENDENT SCHOOL,"7,905.00",NMSS/ INDEP SPECIAL,STATEMENTED FEES,2103619038,1000033256
02.02.2023,DSG,THE COMPLETE WORKS INDEPENDENT SCHOOL,"7,905.00",NMSS/ INDEP SPECIAL,STATEMENTED FEES,2103619039,1000033256
02.02.2023,DSG,TREASURE HOUSE (LONDON) CIC,"11,000.00",NMSS/ INDEP SPECIAL,STATEMENTED FEES,2103619040,1000061163
02.02.2023,DSG,TREASURE HOUSE (LONDON) CIC,"11,000.00",NMSS/ INDEP SPECIAL,STATEMENTED FEES,2103619041,1000061163
02.02.2023,DSG,TREASURE HOUSE (LONDON) CIC,"11,000.00",NMSS/ INDEP SPECIAL,STATEMENTED FEES,2103619042,1000061163
02.02.2023,DSG,TREASURE HOUSE (LONDON) CIC,"11,000.00",NMSS/ INDEP SPECIAL,STATEMENTED FEES,2103619043,1000061163
02.02.2023,DSG,TREASURE HOUSE (LONDON) CIC,"11,000.00",NMSS/ INDEP SPECIAL,STATEMENTED FEES,2103619044,1000061163
02.02.2023,DSG,TREASURE HOUSE (LONDON) CIC,"11,000.00",NMSS/ INDEP SPECIAL,STATEMENTED FEES,2103619045,1000061163
02.02.2023,DSG,TREASURE HOUSE (LONDON) CIC,"11,000.00",NMSS/ INDEP SPECIAL,STATEMENTED FEES,2103619046,1000061163
02.02.2023,DSG,TREASURE HOUSE (LONDON) CIC,"11,000.00",NMSS/ INDEP SPECIAL,STATEMENTED FEES,2103619047,1000061163
02.02.2023,DSG,TREASURE HOUSE (LONDON) CIC,"11,000.00",NMSS/ INDEP SPECIAL,STATEMENTED FEES,2103619048,1000061163
02.02.2023,DSG,TREASURE HOUSE (LONDON) CIC,"11,000.00",NMSS/ INDEP SPECIAL,STATEMENTED FEES,2103619049,1000061163
02.02.2023,DSG,TREASURE HOUSE (LONDON) CIC,"11,000.00",NMSS/ INDEP SPECIAL,STATEMENTED FEES,2103619050,1000061163
02.02.2023,DSG,FAIRLEY HOUSE SCHOOL,"11,936.00",NMSS/ INDEP SPECIAL,STATEMENTED FEES,2103618922,1000030807
02.02.2023,DSG,FAIRLEY HOUSE SCHOOL,"11,936.00",NMSS/ INDEP SPECIAL,STATEMENTED FEES,2103618923,1000030807
02.02.2023,DSG,FAIRLEY HOUSE SCHOOL,"11,936.00",NMSS/ INDEP SPECIAL,STATEMENTED FEES,2103618924,1000030807
02.02.2023,DSG,FAIRLEY HOUSE SCHOOL,"11,936.00",NMSS/ INDEP SPECIAL,STATEMENTED FEES,2103618925,1000030807
02.02.2023,DSG,FAIRLEY HOUSE SCHOOL,"11,936.00",NMSS/ INDEP SPECIAL,STATEMENTED FEES,2103618926,1000030807
02.02.2023,DSG,FAIRLEY HOUSE SCHOOL,"11,936.00",NMSS/ INDEP SPECIAL,STATEMENTED FEES,2103618927,1000030807
02.02.2023,DSG,FAIRLEY HOUSE SCHOOL,"11,936.00",NMSS/ INDEP SPECIAL,STATEMENTED FEES,2103618928,1000030807
02.02.2023,DSG,FAIRLEY HOUSE SCHOOL,"11,936.00",NMSS/ INDEP SPECIAL,STATEMENTED FEES,2103618929,1000030807
02.02.2023,DSG,FAIRLEY HOUSE SCHOOL,"11,936.00",NMSS/ INDEP SPECIAL,STATEMENTED FEES,2103618930,1000030807
02.02.2023,DSG,FAIRLEY HOUSE SCHOOL,"11,936.00",NMSS/ INDEP SPECIAL,STATEMENTED FEES,2103618931,1000030807
02.02.2023,DSG,OCTAVIA HOUSE SCHOOLS LTD,"12,083.33",NMSS/ INDEP SPECIAL,STATEMENTED FEES,2103618951,1000073579
02.02.2023,DSG,KEYS PCE LTD,"14,331.67",NMSS/ INDEP SPECIAL,STATEMENTED FEES,2103618949,1000080090
02.02.2023,DSG,PHOENIXPLACE,"14,566.00",NMSS/ INDEP SPECIAL,STATEMENTED FEES,2103618958,1000075565
02.02.2023,DSG,PHOENIXPLACE,"14,950.00",NMSS/ INDEP SPECIAL,STATEMENTED FEES,2103618957,1000075565
02.02.2023,DSG,PHOENIXPLACE,"14,950.00",NMSS/ INDEP SPECIAL,STATEMENTED FEES,2103618959,1000075565
02.02.2023,DSG,PHOENIXPLACE,"14,950.00",NMSS/ INDEP SPECIAL,STATEMENTED FEES,2103618960,1000075565
02.02.2023,DSG,PHOENIXPLACE,"14,950.00",NMSS/ INDEP SPECIAL,STATEMENTED FEES,2103618961,1000075565
02.02.2023,DSG,PHOENIXPLACE,"14,950.00",NMSS/ INDEP SPECIAL,STATEMENTED FEES,2103618963,1000075565
02.02.2023,DSG,PHOENIXPLACE,"15,600.00",NMSS/ INDEP SPECIAL,STATEMENTED FEES,2103618955,1000075565
02.02.2023,DSG,PHOENIXPLACE,"15,600.00",NMSS/ INDEP SPECIAL,STATEMENTED FEES,2103618956,1000075565
02.02.2023,DSG,PHOENIXPLACE,"15,600.00",NMSS/ INDEP SPECIAL,STATEMENTED FEES,2103618962,1000075565
02.02.2023,DSG,ACORN CARE & EDUCATION LTD,"16,651.83",NMSS/ INDEP SPECIAL,STATEMENTED FEES,2103618875,1000085841
02.02.2023,DSG,AMBITIOUS ABOUT AUTISM,"27,801.65",NMSS/ INDEP SPECIAL,STATEMENTED FEES,2103618884,1000035784
02.02.2023,DSG,AMBITIOUS ABOUT AUTISM,"27,801.65",NMSS/ INDEP SPECIAL,STATEMENTED FEES,2103618888,1000035784
02.02.2023,DSG,AMBITIOUS ABOUT AUTISM,"27,978.35",NMSS/ INDEP SPECIAL,STATEMENTED FEES,2103618886,1000035784
02.02.2023,DSG,AMBITIOUS ABOUT AUTISM,"27,978.35",NMSS/ INDEP SPECIAL,STATEMENTED FEES,2103618887,1000035784
02.02.2023,DSG,AMBITIOUS ABOUT AUTISM,"39,294.40",NMSS/ INDEP SPECIAL,STATEMENTED FEES,2103618885,1000035784
02.02.2023,DSG,AMBITIOUS ABOUT AUTISM,"39,294.40",NMSS/ INDEP SPECIAL,STATEMENTED FEES,2103618889,1000035784
02.02.2023,DSG,ORCHARD HILL COLLEGE ACADEMY TRUST,"6,305.56",SPECIALIST POST-16,STATEMENTED FEES,2103618952,1000059782
02.02.2023,DSG,ST MARTINS IN THE FIELDS HIGH SCHOOL,"6,000.00",VIRTUAL SCHOOL PP,SCHOOLS CAPITATION,5902564159,1000078530
02.02.2023,EDUCATION,PULSE HEALTHCARE LTD,317.20,SCH TRANS � TRAVEL,AGENCY STAFF,5902563304,1000035063
02.02.2023,ENVIRONMENT AND LEISURE,APPLEYARD & TREW,660.00,CAPITAL PS (LEISURE),CONSTRUCTION FEES  - EXTERNAL,5902564068,1000029065
02.02.2023,ENVIRONMENT AND LEISURE,INTO SERVICES LONDON LTD,700.00,CAPITAL PS (LEISURE),CONST'N MAIN CONTRACT - NON CERTIFICATED,5902562797,1000059328
02.02.2023,ENVIRONMENT AND LEISURE,APPLEYARD & TREW,"1,965.00",CAPITAL PS (LEISURE),CONSTRUCTION FEES  - EXTERNAL,5902564068,1000029065
02.02.2023,ENVIRONMENT AND LEISURE,APPLEYARD & TREW,"3,500.00",CAPITAL PS (LEISURE),CONSTRUCTION FEES  - EXTERNAL,5902564068,1000029065
02.02.2023,ENVIRONMENT AND LEISURE,CYCLEHOOP LTD,"9,360.00",CAPITAL PS (LEISURE),CONSTRUCTION,5902564064,1000057894
02.02.2023,ENVIRONMENT AND LEISURE,CENTRAL BUILDERS & SCAFFOLDING SERVICES LTD,"24,950.00",CAPITAL PS (LEISURE),CONSTRUCTION MAIN CONTRACT,2103618871,3000002247
02.02.2023,ENVIRONMENT AND LEISURE,CYCLEHOOP LTD,"37,440.00",CAPITAL PS (LEISURE),CONSTRUCTION,5902564065,1000057894
02.02.2023,ENVIRONMENT AND LEISURE,CYCLEHOOP LTD,"53,040.00",CAPITAL PS (LEISURE),CONSTRUCTION,5902564071,1000057894
02.02.2023,ENVIRONMENT AND LEISURE,CENTRAL BUILDERS & SCAFFOLDING SERVICES LTD,"125,000.00",CAPITAL PS (LEISURE),CONSTRUCTION MAIN CONTRACT,2103618868,3000002247
02.02.2023,ENVIRONMENT DIRECTORATE,SHELL UK OIL PRODUCTS LTD,351.38,COMMERCIAL VEH CTRL A/C,VEHICLE FUEL,5902563967,1000081254
02.02.2023,ENVIRONMENT DIRECTORATE,SHELL UK OIL PRODUCTS LTD,"6,617.63",COMMERCIAL VEH CTRL A/C,VEHICLE FUEL,5902563971,1000081254
02.02.2023,ENVIRONMENT DIRECTORATE,LEX AUTOLEASE,"19,188.35",COMMERCIAL VEH CTRL A/C,HIRED VEHICLES,5902563973,1000069462
02.02.2023,ENVIRONMENT DIRECTORATE,1ENV SOLUTIONS LTD,381.57,PEST CONTROL,MATERIALS,5902564057,1000075410
02.02.2023,ENVIRONMENT DIRECTORATE,1ENV SOLUTIONS LTD,455.27,PEST CONTROL,MATERIALS,5902564059,1000075410
02.02.2023,ENVIRONMENT DIRECTORATE,1ENV SOLUTIONS LTD,357.64,PEST CONTROL-CDN A/C,MATERIALS,5902564009,1000075410
02.02.2023,ENVIRONMENT DIRECTORATE,CROMWELL POLYTHENE LTD,"2,025.40",STREET CLEANING-GENERAL,MATERIALS,5902564073,1000021159
02.02.2023,F & C S EXCLUDING CORPORATE BUDGETS,WHATEVER DESIGN LTD,432.00,COST OF LIVING FUND,MISCELLANEOUS EXPENSES,5902562969,1000036500
02.02.2023,F & C S EXCLUDING CORPORATE BUDGETS,WE ARE WATERLOO,"29,955.34",WATERLOO QUARTER,EXTERNAL AGENCIES AND BODIES,5902563970,1000057618
02.02.2023,HOUSING,OCO LIMITED,"152,061.75",PAYMENTS CONTROL ACCOUNT - OCO,I-WORLD CONTRACTORS HOLDING ACCOUNT,5902564042,1006066
02.02.2023,HOUSING,SMITH & BYFORD LTD,"130,701.25",SMITH AND BYFORD,I-WORLD CONTRACTORS HOLDING ACCOUNT,5902564043,11212119
02.02.2023,HOUSING GENERAL FUND,ZG LIGHTING (UK) LTD,"1,130.20",CAPITAL PS (REGEN),CONSTRUCTION,5902563964,1000031757
02.02.2023,HOUSING GENERAL FUND,CBS MAINTENANCE SERVICES LTD,"3,568.00",CAPITAL PS (REGEN),FURNITURE & FITTINGS ACQUISITION,2103618866,3000001518
02.02.2023,HOUSING GENERAL FUND,BESA PUBLICATIONS LIMITED,"8,475.00",CAPITAL PS (REGEN),CONSTRUCTION FEES  - EXTERNAL,5902564070,1000087778
02.02.2023,HOUSING HRA,SHARPE PRITCHARD LLP,277.50,CAPITAL PS (HRA),CONSTRUCTION FEES - LEGAL,5902564145,1790085
02.02.2023,HOUSING HRA,VPS (UK) LTD,603.57,CAPITAL PS (HRA),CONSTRUCTION FEES  - EXTERNAL,5902563980,1000040614
02.02.2023,HOUSING HRA,VPS (UK) LTD,611.58,CAPITAL PS (HRA),CONSTRUCTION FEES  - EXTERNAL,5902563981,1000040614
02.02.2023,HOUSING HRA,CARTER JONAS LLP,700.00,CAPITAL PS (HRA),LAND & BUILDINGS ACQUISITION FEES,5902564108,1000073124
02.02.2023,HOUSING HRA,HUNTER & PARTNERS LTD,"1,000.00",CAPITAL PS (HRA),CONSTRUCTION FEES - ARCHITECT,5902564136,1000055088
02.02.2023,HOUSING HRA,EK MCQUADE LIMITED,"1,371.90",CAPITAL PS (HRA),CONSTRUCTION FEES  - EXTERNAL,5902564029,1000087299
02.02.2023,HOUSING HRA,CALFORD SEADEN LLP,"1,550.00",CAPITAL PS (HRA),CONSTRUCTION FEES - EMPLOYERS AGENT,5902564061,1061592
02.02.2023,HOUSING HRA,CALFORD SEADEN LLP,"1,550.00",CAPITAL PS (HRA),CONSTRUCTION FEES - EMPLOYERS AGENT,5902564062,1061592
02.02.2023,HOUSING HRA,CALFORD SEADEN LLP,"1,550.00",CAPITAL PS (HRA),CONSTRUCTION FEES - EMPLOYERS AGENT,5902564063,1061592
02.02.2023,HOUSING HRA,VPS (UK) LTD,"1,948.32",CAPITAL PS (HRA),CONSTRUCTION FEES  - EXTERNAL,5902563979,1000040614
02.02.2023,HOUSING HRA,HUNTER & PARTNERS LTD,"2,000.00",CAPITAL PS (HRA),CONSTRUCTION FEES - ARCHITECT,5902564136,1000055088
02.02.2023,HOUSING HRA,SHARPE PRITCHARD LLP,"2,317.50",CAPITAL PS (HRA),CONSTRUCTION FEES  - EXTERNAL,5902564000,1790085
02.02.2023,HOUSING HRA,GREENLINK ECOLOGY LTD,"2,340.00",CAPITAL PS (HRA),CONSTRUCTION FEES  - EXTERNAL,5902563030,1000085440
02.02.2023,HOUSING HRA,HARRADINES REMOVALS,"2,398.00",CAPITAL PS (HRA),CAPITAL GRANTS,5902564016,1006511
02.02.2023,HOUSING HRA,CALFORD SEADEN LLP,"2,525.00",CAPITAL PS (HRA),CONSTRUCTION FEES,5902563773,1061592
02.02.2023,HOUSING HRA,SHARPE PRITCHARD LLP,"2,818.90",CAPITAL PS (HRA),CONSTRUCTION FEES  - EXTERNAL,5902563992,1790085
02.02.2023,HOUSING HRA,BAILY  GARNER LLP,"2,944.00",CAPITAL PS (HRA),CONSTRUCTION FEES  - EXTERNAL,5902563220,1000663
02.02.2023,HOUSING HRA,SHARPE PRITCHARD LLP,"4,375.00",CAPITAL PS (HRA),CONSTRUCTION FEES  - EXTERNAL,5902563982,1790085
02.02.2023,HOUSING HRA,AIREY MILLER LIMITED,"4,455.00",CAPITAL PS (HRA),CONSTRUCTION FEES - EMPLOYERS AGENT,5902563428,1000085476
02.02.2023,HOUSING HRA,GUILDMORE LTD,"6,983.30",CAPITAL PS (HRA),CONSTRUCTION MAIN CONTRACT -CERTIFICATED,2103618865,3000002150
02.02.2023,HOUSING HRA,NEILCOTT SPECIAL WORKS LTD,"56,158.48",CAPITAL PS (HRA),CONSTRUCTION MAIN CONTRACT -CERTIFICATED,2103616470,3000000770
02.02.2023,HOUSING HRA,NIBLOCK (BUILDERS) LTD,"139,502.32",CAPITAL PS (HRA),CONSTRUCTION MAIN CONTRACT -CERTIFICATED,2103617411,3000000235
02.02.2023,HOUSING HRA,A & E ELKINS LTD,"235,766.12",CAPITAL PS (HRA),CONSTRUCTION MAIN CONTRACT -CERTIFICATED,2103619135,4012501
02.02.2023,HOUSING HRA,STEPHEN TAYLOR ARCHITECTS LTD,416.00,CAPITAL PS (REGEN),CONSTRUCTION FEES - ARCHITECT,5902564143,1000083590
02.02.2023,HOUSING HRA,STEPHEN TAYLOR ARCHITECTS LTD,494.00,CAPITAL PS (REGEN),CONSTRUCTION FEES  - EXTERNAL,5902564144,1000083590
02.02.2023,HOUSING HRA,STEPHEN TAYLOR ARCHITECTS LTD,740.00,CAPITAL PS (REGEN),CONSTRUCTION FEES - ARCHITECT,5902564144,1000083590
02.02.2023,HOUSING HRA,STEPHEN TAYLOR ARCHITECTS LTD,987.00,CAPITAL PS (REGEN),CONSTRUCTION FEES  - EXTERNAL,5902564143,1000083590
02.02.2023,HOUSING HRA,STEPHEN TAYLOR ARCHITECTS LTD,"1,481.00",CAPITAL PS (REGEN),CONSTRUCTION FEES - ARCHITECT,5902564143,1000083590
02.02.2023,HOUSING HRA,STEPHEN TAYLOR ARCHITECTS LTD,"2,270.00",CAPITAL PS (REGEN),CONSTRUCTION FEES - ENGINEER,5902564144,1000083590
02.02.2023,HOUSING HRA,STEPHEN TAYLOR ARCHITECTS LTD,"2,468.00",CAPITAL PS (REGEN),CONSTRUCTION FEES - ENGINEER,5902564144,1000083590
02.02.2023,HOUSING HRA,STEPHEN TAYLOR ARCHITECTS LTD,"4,539.00",CAPITAL PS (REGEN),CONSTRUCTION FEES - ENGINEER,5902564143,1000083590
02.02.2023,HOUSING HRA,STEPHEN TAYLOR ARCHITECTS LTD,"4,934.00",CAPITAL PS (REGEN),CONSTRUCTION FEES - ENGINEER,5902564143,1000083590
02.02.2023,HOUSING HRA,STEPHEN TAYLOR ARCHITECTS LTD,"5,922.00",CAPITAL PS (REGEN),CONSTRUCTION FEES - ARCHITECT,5902564144,1000083590
02.02.2023,HOUSING HRA,STEPHEN TAYLOR ARCHITECTS LTD,"11,842.00",CAPITAL PS (REGEN),CONSTRUCTION FEES - ARCHITECT,5902564143,1000083590
02.02.2023,HOUSING HRA,GUILDMORE LTD,"41,971.96",CAPITAL PS (REGEN),CONSTRUCTION MAIN CONTRACT -CERTIFICATED,2103619134,3000002150
02.02.2023,HOUSING HRA,GUILDMORE LTD,"279,136.39",CAPITAL PS (REGEN),CONSTRUCTION MAIN CONTRACT -CERTIFICATED,2103619134,3000002150
02.02.2023,HR & OT,OSKAR DESIGN LTD,420.00,ORG TRANSFORMATION,MARKETING & PUBLICITY SERVICES,5902564113,1000086030
02.02.2023,LEISURE DIRECTORATE,BRITISH CREMATION AUTHORITIES,"1,028.00",CREMATORIUM,PROFESSIONAL FEES,5902564158,1187507
02.02.2023,LEISURE DIRECTORATE,CENTRAL BUILDERS & SCAFFOLDING SERVICES LTD,"15,800.00",FACILITIES MAINTENANCE,BUILDING R&M,2103618867,3000002247
02.02.2023,LEISURE DIRECTORATE,BRITISH GAS,"1,689.41",KINGSWOOD LIBRARY,ELECTRICITY,5902563959,1000054825
02.02.2023,LEISURE DIRECTORATE,OT GROUP LIMITED,274.70,LOCAL HISTORY LIBRARY,STATIONERY,5902563958,1000087285
02.02.2023,LEISURE DIRECTORATE,REDACTED PERSONAL DATA,"1,174.30",SDM BUDGET,DISCRETIONARY FLEXIBLE FEES & INCOME,REDACTED,REDACTED
02.02.2023,LEISURE DIRECTORATE,THE CHELSEA FOOD AND WINE COMPANY LTD,328.50,STOCK SERVICES,BOOKS & PUBLICATIONS,5902564023,1000088548
02.02.2023,LEISURE DIRECTORATE,ASKEWS & HOLTS LIBRARY SERVICES LTD,366.00,STOCK SERVICES,BOOKS & PUBLICATIONS,5902563550,1494168
02.02.2023,LEISURE DIRECTORATE,ASKEWS & HOLTS LIBRARY SERVICES LTD,"3,874.16",STOCK SERVICES,BOOKS & PUBLICATIONS,5902563553,1494168
02.02.2023,LEISURE DIRECTORATE,ASKEWS & HOLTS LIBRARY SERVICES LTD,"4,037.12",STOCK SERVICES,BOOKS & PUBLICATIONS,5902563553,1494168
02.02.2023,PLANNING & GROWTH,SOUTHERN ELECTRIC,312.38,OKR MASTER PLANNING,CATERING MATERIALS & SUPPLIES,5902563995,1000050721
02.02.2023,PLANNING & GROWTH,BNP PARIBAS REAL ESTATE ADVISORY & PROPERTY MANAGEMENT,"1,080.00",OKR MASTER PLANNING,PROFESSIONAL FEES,5902564019,1000053153
02.02.2023,PLANNING & GROWTH,BNP PARIBAS REAL ESTATE ADVISORY & PROPERTY MANAGEMENT,"4,370.00",OKR MASTER PLANNING,PROFESSIONAL FEES,5902564019,1000053153
02.02.2023,PLANNING & GROWTH,BNP PARIBAS REAL ESTATE ADVISORY & PROPERTY MANAGEMENT,"4,965.00",OKR MASTER PLANNING,PROFESSIONAL FEES,5902564024,1000053153
02.02.2023,PLANNING & GROWTH,BNP PARIBAS REAL ESTATE ADVISORY & PROPERTY MANAGEMENT,"14,950.00",OKR MASTER PLANNING,PROFESSIONAL FEES,5902564028,1000053153
02.02.2023,PLANNING & GROWTH,HTA DESIGN LLP,"15,200.00",PROFESSIONAL SERVICES GENERAL,CONSULTANTS SERVICES,5902563994,1000074662
02.02.2023,PLANNING & GROWTH,BNP PARIBAS REAL ESTATE ADVISORY & PROPERTY MANAGEMENT,350.00,VALIDATION & FAST TRACK,PROFESSIONAL FEES,5902564004,1000053153
02.02.2023,PLANNING & GROWTH,BNP PARIBAS REAL ESTATE ADVISORY & PROPERTY MANAGEMENT,"3,900.00",VALIDATION & FAST TRACK,PROFESSIONAL FEES,5902564004,1000053153
02.02.2023,PLANNING & GROWTH,BNP PARIBAS REAL ESTATE ADVISORY & PROPERTY MANAGEMENT,"3,900.00",VALIDATION & FAST TRACK,PROFESSIONAL FEES,5902564037,1000053153
02.02.2023,PLANNING & GROWTH,BNP PARIBAS REAL ESTATE ADVISORY & PROPERTY MANAGEMENT,"4,600.00",VALIDATION & FAST TRACK,PROFESSIONAL FEES,5902564026,1000053153
02.02.2023,PUBLIC HEALTH,WESTMINSTER HOUSE YOUTH CLUB,288.00,HOLIDAY ACTIVITIES & FOOD,EXTERNAL AGENCIES AND BODIES,5902564086,11088645
02.02.2023,PUBLIC HEALTH,BRANDON 2 T&RA,840.00,HOLIDAY ACTIVITIES & FOOD,EXTERNAL AGENCIES AND BODIES,5902563425,1000064165
02.02.2023,RESIDENT SERVICES,CITYGLEN LTD,315.00,TA PLACEMENTS,EXTERNAL AGENCIES AND BODIES,5902563969,1000026239
02.02.2023,RESIDENT SERVICES,CITYGLEN LTD,756.00,TA PLACEMENTS,EXTERNAL AGENCIES AND BODIES,5902563962,1000026239
02.02.2023,RESIDENT SERVICES,CITYGLEN LTD,"1,260.00",TA PLACEMENTS,EXTERNAL AGENCIES AND BODIES,5902563957,1000026239
02.02.2023,RESIDENT SERVICES,CITYGLEN LTD,"1,395.00",TA PLACEMENTS,EXTERNAL AGENCIES AND BODIES,5902563947,1000026239
02.02.2023,RESIDENT SERVICES,CITYGLEN LTD,"1,395.00",TA PLACEMENTS,EXTERNAL AGENCIES AND BODIES,5902563960,1000026239
02.02.2023,RESIDENT SERVICES HGF,FRESHVIEW ESTATES,"2,381.94",HOMELESS PROJECTS,GRANTS,5902564038,1000086397
02.02.2023,RESIDENT SERVICES HGF,JMAA PROPERTY MANAGEMENT LTD,"3,250.00",HOMELESS PROJECTS,GRANTS,5902564020,1000089336
02.02.2023,RESIDENT SERVICES HGF,REDACTED PERSONAL DATA,"3,514.20",HOMELESS PROJECTS,GRANTS,REDACTED,REDACTED
02.02.2023,RESIDENT SERVICES HGF,RUBICON PROPERTY (SHRUBBERY LTD),"3,572.91",HOMELESS PROJECTS,GRANTS,5902564125,1000080428
02.02.2023,RESIDENT SERVICES HGF,REDACTED PERSONAL DATA,455.00,NIGHTLY TA (NSC),EXTERNAL AGENCIES AND BODIES,REDACTED,REDACTED
02.02.2023,RESIDENT SERVICES HGF,DMS PROPERTIES SERVICES LTD,"25,488.75",NIGHTLY TA (NSC),EXTERNAL AGENCIES AND BODIES,5902564083,1000081522
02.02.2023,RESIDENT SERVICES HGF,NATIONWIDE ACCOMMODATION,"78,613.46",NIGHTLY TA (NSC),EXTERNAL AGENCIES AND BODIES,5902564032,1000076112
02.02.2023,RESIDENT SERVICES HGF,ZFA ACCOMMODATION LTD,"-1,782.02",PSL PLACEMENTS,EXTERNAL AGENCIES AND BODIES,5902564119,1000082620
02.02.2023,RESIDENT SERVICES HGF,ZFA ACCOMMODATION LTD,"176,152.71",PSL PLACEMENTS,EXTERNAL AGENCIES AND BODIES,5902564117,1000082620
02.02.2023,SOUTHWARK BUILDING SERVICES,CORBYS & CO,750.00,STORES/LOGISTICS,CREDITORS -GR/IR CLEARING ACCOUNT,5902563427,1000055320
02.02.2023,SOUTHWARK BUILDING SERVICES,CORBYS & CO,"1,630.00",STORES/LOGISTICS,CREDITORS -GR/IR CLEARING ACCOUNT,5902563427,1000055320
02.02.2023,STRATEGIC FINANCING BUDGETS,COMENSURA LTD,"800,126.97",WEEKLY PAYMENTS,AGENCY STAFF,5902564099,1000051261
03.02.2023,ADULT SOCIAL CARE,MICHAEL MANDELSTAM LTD,"1,100.00",ASW - PROFESSIONAL DEVELOPMENT,CONSULTANTS SERVICES,5902563196,1000044282
03.02.2023,ADULT SOCIAL CARE,NHS SOUTH EAST LONDON CCG,"48,952.00",DIR OF ASC,PROFESSIONAL FEES,5902564200,1000085592
03.02.2023,ADULT SOCIAL CARE,UNIQUE PERSONNEL (UK) LTD,"1,426.46",DISCHARGE TO ACCESS,HOMECARE - C&V,2103619362,1000075451
03.02.2023,ADULT SOCIAL CARE,CHOICE SUPPORT,293.92,LD LTS 18-64,SUPPORTED LIVING,2103619510,1104183
03.02.2023,ADULT SOCIAL CARE,CHOICE SUPPORT,293.92,LD LTS 18-64,SUPPORTED LIVING,2103619511,1104183
03.02.2023,ADULT SOCIAL CARE,CHOICE SUPPORT,440.88,LD LTS 18-64,SUPPORTED LIVING,2103619508,1104183
03.02.2023,ADULT SOCIAL CARE,SURREY DOCKS FARM PROVIDENT SOCIETY,480.00,LD LTS 18-64,DAYCARE,2103619503,1000000958
03.02.2023,ADULT SOCIAL CARE,CARE DIRECT UK LTD,486.00,LD LTS 18-64,SUPPORTED LIVING,2103619426,1000066322
03.02.2023,ADULT SOCIAL CARE,CARE DIRECT UK LTD,486.00,LD LTS 18-64,SUPPORTED LIVING,2103619453,1000066322
03.02.2023,ADULT SOCIAL CARE,SURREY DOCKS FARM PROVIDENT SOCIETY,500.00,LD LTS 18-64,DAYCARE,2103619505,1000000958
03.02.2023,ADULT SOCIAL CARE,SURREY DOCKS FARM PROVIDENT SOCIETY,720.00,LD LTS 18-64,DAYCARE,2103619502,1000000958
03.02.2023,ADULT SOCIAL CARE,CARE OUTLOOK LTD,804.32,LD LTS 18-64,HOMECARE - C&V,2103619483,1000064508
03.02.2023,ADULT SOCIAL CARE,SURREY DOCKS FARM PROVIDENT SOCIETY,360.00,LD LTS 65+,DAYCARE,2103619501,1000000958
03.02.2023,ADULT SOCIAL CARE,UNIQUE PERSONNEL (UK) LTD,837.27,MEM LTS 18-64,HOMECARE - C&V,2103619353,1000075451
03.02.2023,ADULT SOCIAL CARE,UNIQUE PERSONNEL (UK) LTD,265.80,MH LTS 18-64,HOMECARE - C&V,2103619296,1000075451
03.02.2023,ADULT SOCIAL CARE,UNIQUE PERSONNEL (UK) LTD,283.52,MH LTS 18-64,HOMECARE - C&V,2103619406,1000075451
03.02.2023,ADULT SOCIAL CARE,CARE OUTLOOK LTD,539.26,MH LTS 18-64,HOMECARE - C&V,2103619474,1000064508
03.02.2023,ADULT SOCIAL CARE,UNIQUE PERSONNEL (UK) LTD,"2,392.20",MH LTS 18-64,HOMECARE - C&V,2103619299,1000075451
03.02.2023,ADULT SOCIAL CARE,UNIQUE PERSONNEL (UK) LTD,265.80,MH LTS 65+,HOMECARE - C&V,2103619310,1000075451
03.02.2023,ADULT SOCIAL CARE,UNIQUE PERSONNEL (UK) LTD,425.28,MH LTS 65+,HOMECARE - C&V,2103619300,1000075451
03.02.2023,ADULT SOCIAL CARE,UNIQUE PERSONNEL (UK) LTD,602.48,MH LTS 65+,HOMECARE - C&V,2103619347,1000075451
03.02.2023,ADULT SOCIAL CARE,UNIQUE PERSONNEL (UK) LTD,"1,984.64",MH LTS 65+,HOMECARE - C&V,2103619382,1000075451
03.02.2023,ADULT SOCIAL CARE,CARE OUTLOOK LTD,255.92,PHY LTS 18-64,HOMECARE - C&V,2103619484,1000064508
03.02.2023,ADULT SOCIAL CARE,UNIQUE PERSONNEL (UK) LTD,310.10,PHY LTS 18-64,HOMECARE - C&V,2103619333,1000075451
03.02.2023,ADULT SOCIAL CARE,UNIQUE PERSONNEL (UK) LTD,389.84,PHY LTS 18-64,HOMECARE - C&V,2103619304,1000075451
03.02.2023,ADULT SOCIAL CARE,UNIQUE PERSONNEL (UK) LTD,434.14,PHY LTS 18-64,HOMECARE - C&V,2103619387,1000075451
03.02.2023,ADULT SOCIAL CARE,CARE DIRECT UK LTD,493.63,PHY LTS 18-64,HOMECARE - SPOT,2103619438,1000066322
03.02.2023,ADULT SOCIAL CARE,CARE DIRECT UK LTD,493.63,PHY LTS 18-64,HOMECARE - SPOT,2103619445,1000066322
03.02.2023,ADULT SOCIAL CARE,CARE OUTLOOK LTD,516.41,PHY LTS 18-64,HOMECARE - C&V,2103619470,1000064508
03.02.2023,ADULT SOCIAL CARE,CARE DIRECT UK LTD,538.50,PHY LTS 18-64,HOMECARE - SPOT,2103619425,1000066322
03.02.2023,ADULT SOCIAL CARE,CARE DIRECT UK LTD,538.50,PHY LTS 18-64,HOMECARE - SPOT,2103619457,1000066322
03.02.2023,ADULT SOCIAL CARE,UNIQUE PERSONNEL (UK) LTD,549.32,PHY LTS 18-64,HOMECARE - C&V,2103619312,1000075451
03.02.2023,ADULT SOCIAL CARE,UNIQUE PERSONNEL (UK) LTD,553.75,PHY LTS 18-64,HOMECARE - C&V,2103619404,1000075451
03.02.2023,ADULT SOCIAL CARE,UNIQUE PERSONNEL (UK) LTD,637.92,PHY LTS 18-64,HOMECARE - C&V,2103619321,1000075451
03.02.2023,ADULT SOCIAL CARE,UNIQUE PERSONNEL (UK) LTD,651.21,PHY LTS 18-64,HOMECARE - C&V,2103619380,1000075451
03.02.2023,ADULT SOCIAL CARE,CARE OUTLOOK LTD,662.65,PHY LTS 18-64,HOMECARE - C&V,2103619477,1000064508
03.02.2023,ADULT SOCIAL CARE,UNIQUE PERSONNEL (UK) LTD,691.08,PHY LTS 18-64,HOMECARE - C&V,2103619369,1000075451
03.02.2023,ADULT SOCIAL CARE,UNIQUE PERSONNEL (UK) LTD,704.37,PHY LTS 18-64,HOMECARE - C&V,2103619320,1000075451
03.02.2023,ADULT SOCIAL CARE,UNIQUE PERSONNEL (UK) LTD,744.24,PHY LTS 18-64,HOMECARE - C&V,2103619339,1000075451
03.02.2023,ADULT SOCIAL CARE,UNIQUE PERSONNEL (UK) LTD,744.24,PHY LTS 18-64,HOMECARE - C&V,2103619351,1000075451
03.02.2023,ADULT SOCIAL CARE,UNIQUE PERSONNEL (UK) LTD,744.24,PHY LTS 18-64,HOMECARE - C&V,2103619381,1000075451
03.02.2023,ADULT SOCIAL CARE,UNIQUE PERSONNEL (UK) LTD,779.68,PHY LTS 18-64,HOMECARE - C&V,2103619415,1000075451
03.02.2023,ADULT SOCIAL CARE,CARE OUTLOOK LTD,923.14,PHY LTS 18-64,HOMECARE - C&V,2103619486,1000064508
03.02.2023,ADULT SOCIAL CARE,UNIQUE PERSONNEL (UK) LTD,939.16,PHY LTS 18-64,HOMECARE - C&V,2103619377,1000075451
03.02.2023,ADULT SOCIAL CARE,UNIQUE PERSONNEL (UK) LTD,956.88,PHY LTS 18-64,HOMECARE - C&V,2103619292,1000075451
03.02.2023,ADULT SOCIAL CARE,UNIQUE PERSONNEL (UK) LTD,"1,036.62",PHY LTS 18-64,HOMECARE - C&V,2103619391,1000075451
03.02.2023,ADULT SOCIAL CARE,UNIQUE PERSONNEL (UK) LTD,"1,103.07",PHY LTS 18-64,HOMECARE - C&V,2103619291,1000075451
03.02.2023,ADULT SOCIAL CARE,CARE OUTLOOK LTD,"1,110.51",PHY LTS 18-64,HOMECARE - C&V,2103619481,1000064508
03.02.2023,ADULT SOCIAL CARE,CARE OUTLOOK LTD,"1,133.36",PHY LTS 18-64,HOMECARE - C&V,2103619491,1000064508
03.02.2023,ADULT SOCIAL CARE,UNIQUE PERSONNEL (UK) LTD,"1,364.44",PHY LTS 18-64,HOMECARE - C&V,2103619407,1000075451
03.02.2023,ADULT SOCIAL CARE,UNIQUE PERSONNEL (UK) LTD,"1,506.20",PHY LTS 18-64,HOMECARE - C&V,2103619323,1000075451
03.02.2023,ADULT SOCIAL CARE,UNIQUE PERSONNEL (UK) LTD,"1,758.71",PHY LTS 18-64,HOMECARE - C&V,2103619295,1000075451
03.02.2023,ADULT SOCIAL CARE,UNIQUE PERSONNEL (UK) LTD,"2,232.72",PHY LTS 18-64,HOMECARE - C&V,2103619411,1000075451
03.02.2023,ADULT SOCIAL CARE,UNIQUE PERSONNEL (UK) LTD,"2,246.01",PHY LTS 18-64,HOMECARE - C&V,2103619356,1000075451
03.02.2023,ADULT SOCIAL CARE,UNIQUE PERSONNEL (UK) LTD,"3,016.83",PHY LTS 18-64,HOMECARE - C&V,2103619338,1000075451
03.02.2023,ADULT SOCIAL CARE,UNIQUE PERSONNEL (UK) LTD,"3,207.32",PHY LTS 18-64,HOMECARE - C&V,2103619337,1000075451
03.02.2023,ADULT SOCIAL CARE,UNIQUE PERSONNEL (UK) LTD,"3,508.56",PHY LTS 18-64,HOMECARE - C&V,2103619313,1000075451
03.02.2023,ADULT SOCIAL CARE,CARE OUTLOOK LTD,"3,610.30",PHY LTS 18-64,HOMECARE - C&V,2103619476,1000064508
03.02.2023,ADULT SOCIAL CARE,UNIQUE PERSONNEL (UK) LTD,252.51,PHY LTS 65+,HOMECARE - C&V,2103619383,1000075451
03.02.2023,ADULT SOCIAL CARE,UNIQUE PERSONNEL (UK) LTD,256.94,PHY LTS 65+,HOMECARE - C&V,2103619325,1000075451
03.02.2023,ADULT SOCIAL CARE,UNIQUE PERSONNEL (UK) LTD,274.66,PHY LTS 65+,HOMECARE - C&V,2103619359,1000075451
03.02.2023,ADULT SOCIAL CARE,CARE DIRECT UK LTD,280.00,PHY LTS 65+,HOMECARE - SPOT,2103619423,1000066322
03.02.2023,ADULT SOCIAL CARE,CARE DIRECT UK LTD,280.00,PHY LTS 65+,HOMECARE - SPOT,2103619456,1000066322
03.02.2023,ADULT SOCIAL CARE,CARE DIRECT UK LTD,282.71,PHY LTS 65+,HOMECARE - SPOT,2103619428,1000066322
03.02.2023,ADULT SOCIAL CARE,CARE DIRECT UK LTD,282.71,PHY LTS 65+,HOMECARE - SPOT,2103619459,1000066322
03.02.2023,ADULT SOCIAL CARE,UNIQUE PERSONNEL (UK) LTD,301.24,PHY LTS 65+,HOMECARE - C&V,2103619318,1000075451
03.02.2023,ADULT SOCIAL CARE,CARE OUTLOOK LTD,309.24,PHY LTS 65+,HOMECARE - C&V,2103619468,1000064508
03.02.2023,ADULT SOCIAL CARE,CARE DIRECT UK LTD,327.59,PHY LTS 65+,HOMECARE - SPOT,2103619439,1000066322
03.02.2023,ADULT SOCIAL CARE,CARE DIRECT UK LTD,327.59,PHY LTS 65+,HOMECARE - SPOT,2103619448,1000066322
03.02.2023,ADULT SOCIAL CARE,UNIQUE PERSONNEL (UK) LTD,336.68,PHY LTS 65+,HOMECARE - C&V,2103619334,1000075451
03.02.2023,ADULT SOCIAL CARE,UNIQUE PERSONNEL (UK) LTD,336.68,PHY LTS 65+,HOMECARE - C&V,2103619376,1000075451
03.02.2023,ADULT SOCIAL CARE,UNIQUE PERSONNEL (UK) LTD,336.68,PHY LTS 65+,HOMECARE - SPOT,2103619322,1000075451
03.02.2023,ADULT SOCIAL CARE,UNIQUE PERSONNEL (UK) LTD,380.98,PHY LTS 65+,HOMECARE - SPOT,2103619305,1000075451
03.02.2023,ADULT SOCIAL CARE,UNIQUE PERSONNEL (UK) LTD,389.84,PHY LTS 65+,HOMECARE - C&V,2103619301,1000075451
03.02.2023,ADULT SOCIAL CARE,CARE OUTLOOK LTD,411.30,PHY LTS 65+,HOMECARE - C&V,2103619495,1000064508
03.02.2023,ADULT SOCIAL CARE,CARE OUTLOOK LTD,411.30,PHY LTS 65+,HOMECARE - C&V,2103619498,1000064508
03.02.2023,ADULT SOCIAL CARE,CARE DIRECT UK LTD,439.78,PHY LTS 65+,HOMECARE - SPOT,2103619429,1000066322
03.02.2023,ADULT SOCIAL CARE,CARE DIRECT UK LTD,439.78,PHY LTS 65+,HOMECARE - SPOT,2103619450,1000066322
03.02.2023,ADULT SOCIAL CARE,UNIQUE PERSONNEL (UK) LTD,443.00,PHY LTS 65+,HOMECARE - SPOT,2103619309,1000075451
03.02.2023,ADULT SOCIAL CARE,CARE OUTLOOK LTD,457.00,PHY LTS 65+,HOMECARE - C&V,2103619489,1000064508
03.02.2023,ADULT SOCIAL CARE,UNIQUE PERSONNEL (UK) LTD,496.16,PHY LTS 65+,HOMECARE - SPOT,2103619324,1000075451
03.02.2023,ADULT SOCIAL CARE,CARE DIRECT UK LTD,520.55,PHY LTS 65+,HOMECARE - SPOT,2103619418,1000066322
03.02.2023,ADULT SOCIAL CARE,CARE DIRECT UK LTD,520.55,PHY LTS 65+,HOMECARE - SPOT,2103619460,1000066322
03.02.2023,ADULT SOCIAL CARE,CARE OUTLOOK LTD,522.34,PHY LTS 65+,HOMECARE - C&V,2103619488,1000064508
03.02.2023,ADULT SOCIAL CARE,CARE OUTLOOK LTD,530.12,PHY LTS 65+,HOMECARE - C&V,2103619480,1000064508
03.02.2023,ADULT SOCIAL CARE,CARE OUTLOOK LTD,530.12,PHY LTS 65+,HOMECARE - C&V,2103619490,1000064508
03.02.2023,ADULT SOCIAL CARE,UNIQUE PERSONNEL (UK) LTD,531.60,PHY LTS 65+,HOMECARE - C&V,2103619315,1000075451
03.02.2023,ADULT SOCIAL CARE,UNIQUE PERSONNEL (UK) LTD,536.03,PHY LTS 65+,HOMECARE - C&V,2103619328,1000075451
03.02.2023,ADULT SOCIAL CARE,CARE DIRECT UK LTD,565.43,PHY LTS 65+,HOMECARE - SPOT,2103619420,1000066322
03.02.2023,ADULT SOCIAL CARE,CARE DIRECT UK LTD,565.43,PHY LTS 65+,HOMECARE - SPOT,2103619430,1000066322
03.02.2023,ADULT SOCIAL CARE,CARE DIRECT UK LTD,565.43,PHY LTS 65+,HOMECARE - SPOT,2103619455,1000066322
03.02.2023,ADULT SOCIAL CARE,CARE DIRECT UK LTD,565.43,PHY LTS 65+,HOMECARE - SPOT,2103619458,1000066322
03.02.2023,ADULT SOCIAL CARE,UNIQUE PERSONNEL (UK) LTD,567.04,PHY LTS 65+,HOMECARE - C&V,2103619358,1000075451
03.02.2023,ADULT SOCIAL CARE,UNIQUE PERSONNEL (UK) LTD,589.19,PHY LTS 65+,HOMECARE - C&V,2103619409,1000075451
03.02.2023,ADULT SOCIAL CARE,CARE DIRECT UK LTD,601.33,PHY LTS 65+,HOMECARE - SPOT,2103619436,1000066322
03.02.2023,ADULT SOCIAL CARE,CARE OUTLOOK LTD,603.24,PHY LTS 65+,HOMECARE - C&V,2103619472,1000064508
03.02.2023,ADULT SOCIAL CARE,UNIQUE PERSONNEL (UK) LTD,620.20,PHY LTS 65+,HOMECARE - C&V,2103619352,1000075451
03.02.2023,ADULT SOCIAL CARE,UNIQUE PERSONNEL (UK) LTD,620.20,PHY LTS 65+,HOMECARE - C&V,2103619388,1000075451
03.02.2023,ADULT SOCIAL CARE,CARE OUTLOOK LTD,621.52,PHY LTS 65+,HOMECARE - C&V,2103619471,1000064508
03.02.2023,ADULT SOCIAL CARE,CARE OUTLOOK LTD,630.66,PHY LTS 65+,HOMECARE - C&V,2103619475,1000064508
03.02.2023,ADULT SOCIAL CARE,CARE DIRECT UK LTD,637.23,PHY LTS 65+,HOMECARE - SPOT,2103619434,1000066322
03.02.2023,ADULT SOCIAL CARE,CARE DIRECT UK LTD,637.23,PHY LTS 65+,HOMECARE - SPOT,2103619447,1000066322
03.02.2023,ADULT SOCIAL CARE,UNIQUE PERSONNEL (UK) LTD,646.78,PHY LTS 65+,HOMECARE - C&V,2103619289,1000075451
03.02.2023,ADULT SOCIAL CARE,UNIQUE PERSONNEL (UK) LTD,664.50,PHY LTS 65+,HOMECARE - C&V,2103619342,1000075451
03.02.2023,ADULT SOCIAL CARE,UNIQUE PERSONNEL (UK) LTD,673.36,PHY LTS 65+,HOMECARE - SPOT,2103619367,1000075451
03.02.2023,ADULT SOCIAL CARE,CARE DIRECT UK LTD,691.08,PHY LTS 65+,HOMECARE - C&V,2103619416,1000066322
03.02.2023,ADULT SOCIAL CARE,CARE DIRECT UK LTD,691.08,PHY LTS 65+,HOMECARE - C&V,2103619451,1000066322
03.02.2023,ADULT SOCIAL CARE,UNIQUE PERSONNEL (UK) LTD,691.08,PHY LTS 65+,HOMECARE - C&V,2103619397,1000075451
03.02.2023,ADULT SOCIAL CARE,UNIQUE PERSONNEL (UK) LTD,699.94,PHY LTS 65+,HOMECARE - C&V,2103619393,1000075451
03.02.2023,ADULT SOCIAL CARE,UNIQUE PERSONNEL (UK) LTD,717.66,PHY LTS 65+,HOMECARE - C&V,2103619293,1000075451
03.02.2023,ADULT SOCIAL CARE,UNIQUE PERSONNEL (UK) LTD,726.52,PHY LTS 65+,HOMECARE - C&V,2103619314,1000075451
03.02.2023,ADULT SOCIAL CARE,UNIQUE PERSONNEL (UK) LTD,735.38,PHY LTS 65+,HOMECARE - C&V,2103619297,1000075451
03.02.2023,ADULT SOCIAL CARE,UNIQUE PERSONNEL (UK) LTD,739.81,PHY LTS 65+,HOMECARE - C&V,2103619345,1000075451
03.02.2023,ADULT SOCIAL CARE,UNIQUE PERSONNEL (UK) LTD,744.24,PHY LTS 65+,HOMECARE - C&V,2103619302,1000075451
03.02.2023,ADULT SOCIAL CARE,UNIQUE PERSONNEL (UK) LTD,744.24,PHY LTS 65+,HOMECARE - C&V,2103619348,1000075451
03.02.2023,ADULT SOCIAL CARE,UNIQUE PERSONNEL (UK) LTD,779.68,PHY LTS 65+,HOMECARE - C&V,2103619326,1000075451
03.02.2023,ADULT SOCIAL CARE,UNIQUE PERSONNEL (UK) LTD,779.68,PHY LTS 65+,HOMECARE - C&V,2103619364,1000075451
03.02.2023,ADULT SOCIAL CARE,CARE OUTLOOK LTD,786.04,PHY LTS 65+,HOMECARE - C&V,2103619485,1000064508
03.02.2023,ADULT SOCIAL CARE,UNIQUE PERSONNEL (UK) LTD,815.12,PHY LTS 65+,HOMECARE - C&V,2103619346,1000075451
03.02.2023,ADULT SOCIAL CARE,UNIQUE PERSONNEL (UK) LTD,815.12,PHY LTS 65+,HOMECARE - C&V,2103619374,1000075451
03.02.2023,ADULT SOCIAL CARE,UNIQUE PERSONNEL (UK) LTD,854.99,PHY LTS 65+,HOMECARE - C&V,2103619311,1000075451
03.02.2023,ADULT SOCIAL CARE,UNIQUE PERSONNEL (UK) LTD,912.58,PHY LTS 65+,HOMECARE - C&V,2103619386,1000075451
03.02.2023,ADULT SOCIAL CARE,UNIQUE PERSONNEL (UK) LTD,921.44,PHY LTS 65+,HOMECARE - C&V,2103619298,1000075451
03.02.2023,ADULT SOCIAL CARE,UNIQUE PERSONNEL (UK) LTD,956.88,PHY LTS 65+,HOMECARE - C&V,2103619340,1000075451
03.02.2023,ADULT SOCIAL CARE,UNIQUE PERSONNEL (UK) LTD,"1,010.04",PHY LTS 65+,HOMECARE - C&V,2103619332,1000075451
03.02.2023,ADULT SOCIAL CARE,UNIQUE PERSONNEL (UK) LTD,"1,010.04",PHY LTS 65+,HOMECARE - C&V,2103619343,1000075451
03.02.2023,ADULT SOCIAL CARE,UNIQUE PERSONNEL (UK) LTD,"1,010.04",PHY LTS 65+,HOMECARE - C&V,2103619355,1000075451
03.02.2023,ADULT SOCIAL CARE,UNIQUE PERSONNEL (UK) LTD,"1,036.62",PHY LTS 65+,HOMECARE - SPOT,2103619385,1000075451
03.02.2023,ADULT SOCIAL CARE,UNIQUE PERSONNEL (UK) LTD,"1,045.48",PHY LTS 65+,HOMECARE - C&V,2103619414,1000075451
03.02.2023,ADULT SOCIAL CARE,CARE DIRECT UK LTD,"1,059.05",PHY LTS 65+,HOMECARE - SPOT,2103619437,1000066322
03.02.2023,ADULT SOCIAL CARE,CARE DIRECT UK LTD,"1,059.05",PHY LTS 65+,HOMECARE - SPOT,2103619444,1000066322
03.02.2023,ADULT SOCIAL CARE,UNIQUE PERSONNEL (UK) LTD,"1,063.20",PHY LTS 65+,HOMECARE - C&V,2103619327,1000075451
03.02.2023,ADULT SOCIAL CARE,CARE OUTLOOK LTD,"1,096.80",PHY LTS 65+,HOMECARE - C&V,2103619479,1000064508
03.02.2023,ADULT SOCIAL CARE,CARE OUTLOOK LTD,"1,096.80",PHY LTS 65+,HOMECARE - C&V,2103619482,1000064508
03.02.2023,ADULT SOCIAL CARE,UNIQUE PERSONNEL (UK) LTD,"1,107.50",PHY LTS 65+,HOMECARE - C&V,2103619401,1000075451
03.02.2023,ADULT SOCIAL CARE,UNIQUE PERSONNEL (UK) LTD,"1,169.52",PHY LTS 65+,HOMECARE - C&V,2103619370,1000075451
03.02.2023,ADULT SOCIAL CARE,UNIQUE PERSONNEL (UK) LTD,"1,178.38",PHY LTS 65+,HOMECARE - C&V,2103619350,1000075451
03.02.2023,ADULT SOCIAL CARE,UNIQUE PERSONNEL (UK) LTD,"1,258.12",PHY LTS 65+,HOMECARE - C&V,2103619412,1000075451
03.02.2023,ADULT SOCIAL CARE,UNIQUE PERSONNEL (UK) LTD,"1,293.56",PHY LTS 65+,HOMECARE - C&V,2103619396,1000075451
03.02.2023,ADULT SOCIAL CARE,UNIQUE PERSONNEL (UK) LTD,"1,346.72",PHY LTS 65+,HOMECARE - C&V,2103619379,1000075451
03.02.2023,ADULT SOCIAL CARE,UNIQUE PERSONNEL (UK) LTD,"1,470.76",PHY LTS 65+,HOMECARE - C&V,2103619403,1000075451
03.02.2023,ADULT SOCIAL CARE,UNIQUE PERSONNEL (UK) LTD,"1,523.92",PHY LTS 65+,HOMECARE - C&V,2103619329,1000075451
03.02.2023,ADULT SOCIAL CARE,UNIQUE PERSONNEL (UK) LTD,"1,532.78",PHY LTS 65+,HOMECARE - C&V,2103619398,1000075451
03.02.2023,ADULT SOCIAL CARE,UNIQUE PERSONNEL (UK) LTD,"1,559.36",PHY LTS 65+,HOMECARE - C&V,2103619378,1000075451
03.02.2023,ADULT SOCIAL CARE,UNIQUE PERSONNEL (UK) LTD,"1,577.08",PHY LTS 65+,HOMECARE - C&V,2103619349,1000075451
03.02.2023,ADULT SOCIAL CARE,UNIQUE PERSONNEL (UK) LTD,"1,665.68",PHY LTS 65+,HOMECARE - C&V,2103619290,1000075451
03.02.2023,ADULT SOCIAL CARE,UNIQUE PERSONNEL (UK) LTD,"1,701.12",PHY LTS 65+,HOMECARE - C&V,2103619413,1000075451
03.02.2023,ADULT SOCIAL CARE,UNIQUE PERSONNEL (UK) LTD,"1,736.56",PHY LTS 65+,HOMECARE - C&V,2103619371,1000075451
03.02.2023,ADULT SOCIAL CARE,UNIQUE PERSONNEL (UK) LTD,"1,736.56",PHY LTS 65+,HOMECARE - C&V,2103619390,1000075451
03.02.2023,ADULT SOCIAL CARE,UNIQUE PERSONNEL (UK) LTD,"1,887.18",PHY LTS 65+,HOMECARE - C&V,2103619405,1000075451
03.02.2023,ADULT SOCIAL CARE,UNIQUE PERSONNEL (UK) LTD,"1,984.64",PHY LTS 65+,HOMECARE - SPOT,2103619363,1000075451
03.02.2023,ADULT SOCIAL CARE,UNIQUE PERSONNEL (UK) LTD,"1,993.50",PHY LTS 65+,HOMECARE - C&V,2103619408,1000075451
03.02.2023,ADULT SOCIAL CARE,UNIQUE PERSONNEL (UK) LTD,"2,099.82",PHY LTS 65+,HOMECARE - C&V,2103619402,1000075451
03.02.2023,ADULT SOCIAL CARE,UNIQUE PERSONNEL (UK) LTD,"2,113.11",PHY LTS 65+,HOMECARE - C&V,2103619330,1000075451
03.02.2023,ADULT SOCIAL CARE,UNIQUE PERSONNEL (UK) LTD,"2,170.70",PHY LTS 65+,HOMECARE - C&V,2103619361,1000075451
03.02.2023,ADULT SOCIAL CARE,UNIQUE PERSONNEL (UK) LTD,"2,232.72",PHY LTS 65+,HOMECARE - C&V,2103619294,1000075451
03.02.2023,ADULT SOCIAL CARE,UNIQUE PERSONNEL (UK) LTD,"2,232.72",PHY LTS 65+,HOMECARE - C&V,2103619303,1000075451
03.02.2023,ADULT SOCIAL CARE,UNIQUE PERSONNEL (UK) LTD,"2,339.04",PHY LTS 65+,HOMECARE - C&V,2103619392,1000075451
03.02.2023,ADULT SOCIAL CARE,UNIQUE PERSONNEL (UK) LTD,"2,396.63",PHY LTS 65+,HOMECARE - C&V,2103619288,1000075451
03.02.2023,ADULT SOCIAL CARE,CARE OUTLOOK LTD,"2,408.39",PHY LTS 65+,HOMECARE - C&V,2103619469,1000064508
03.02.2023,ADULT SOCIAL CARE,UNIQUE PERSONNEL (UK) LTD,"2,480.80",PHY LTS 65+,HOMECARE - C&V,2103619307,1000075451
03.02.2023,ADULT SOCIAL CARE,UNIQUE PERSONNEL (UK) LTD,"2,480.80",PHY LTS 65+,HOMECARE - C&V,2103619360,1000075451
03.02.2023,ADULT SOCIAL CARE,UNIQUE PERSONNEL (UK) LTD,"2,569.40",PHY LTS 65+,HOMECARE - C&V,2103619317,1000075451
03.02.2023,ADULT SOCIAL CARE,CARE OUTLOOK LTD,"2,632.32",PHY LTS 65+,HOMECARE - C&V,2103619478,1000064508
03.02.2023,ADULT SOCIAL CARE,UNIQUE PERSONNEL (UK) LTD,"2,675.72",PHY LTS 65+,HOMECARE - C&V,2103619336,1000075451
03.02.2023,ADULT SOCIAL CARE,UNIQUE PERSONNEL (UK) LTD,"2,976.96",PHY LTS 65+,HOMECARE - C&V,2103619306,1000075451
03.02.2023,ADULT SOCIAL CARE,UNIQUE PERSONNEL (UK) LTD,"3,021.26",PHY LTS 65+,HOMECARE - C&V,2103619395,1000075451
03.02.2023,ADULT SOCIAL CARE,UNIQUE PERSONNEL (UK) LTD,"3,366.80",PHY LTS 65+,HOMECARE - C&V,2103619341,1000075451
03.02.2023,ADULT SOCIAL CARE,UNIQUE PERSONNEL (UK) LTD,"4,288.24",PHY LTS 65+,HOMECARE - C&V,2103619373,1000075451
03.02.2023,ADULT SOCIAL CARE,UNIQUE PERSONNEL (UK) LTD,425.28,SEN LTS 18-64,HOMECARE - C&V,2103619357,1000075451
03.02.2023,ADULT SOCIAL CARE,LEWISHAM INDO CHINESE COMMUNITY,352.00,SEN LTS 65+,DAYCARE,2103619500,1000076593
03.02.2023,ADULT SOCIAL CARE,CARE DIRECT UK LTD,565.43,SEN LTS 65+,HOMECARE - SPOT,2103619427,1000066322
03.02.2023,ADULT SOCIAL CARE,UNIQUE PERSONNEL (UK) LTD,487.30,SOCIAL ISOLATION,HOMECARE - C&V,2103619365,1000075451
03.02.2023,ADULT SOCIAL CARE,SURREY DOCKS FARM PROVIDENT SOCIETY,500.00,SOCIAL ISOLATION,DAYCARE,2103619507,1000000958
03.02.2023,ADULT SOCIAL CARE,UNIQUE PERSONNEL (UK) LTD,"1,506.20",SOCIAL ISOLATION,HOMECARE - C&V,2103619375,1000075451
03.02.2023,ADULT SOCIAL CARE,NPOWER,665.11,SOUTHWARK RESOURCE CENTRE,SERVICE CHARGES,5902560800,1000055441
03.02.2023,ADULT SOCIAL CARE,NPOWER,725.41,SOUTHWARK RESOURCE CENTRE,SERVICE CHARGES,5902560799,1000055441
03.02.2023,ADULT SOCIAL CARE,NPOWER,779.89,SOUTHWARK RESOURCE CENTRE,SERVICE CHARGES,5902560798,1000055441
03.02.2023,ADULT SOCIAL CARE,NPOWER,"1,059.46",SOUTHWARK RESOURCE CENTRE,SERVICE CHARGES,5902561591,1000055441
03.02.2023,ADULT SOCIAL CARE,NPOWER,"1,073.81",SOUTHWARK RESOURCE CENTRE,SERVICE CHARGES,5902560803,1000055441
03.02.2023,ADULT SOCIAL CARE,NPOWER,"1,080.32",SOUTHWARK RESOURCE CENTRE,SERVICE CHARGES,5902561604,1000055441
03.02.2023,ADULT SOCIAL CARE,NPOWER,"1,190.41",SOUTHWARK RESOURCE CENTRE,SERVICE CHARGES,5902561598,1000055441
03.02.2023,ASSET MANAGEMENT,PROPERTY FACILITIES GROUP LTD,573.14,DISREPAIR,BUILDING R&M,5902564075,1000063713
03.02.2023,ASSET MANAGEMENT,TRAVIS PERKINS TRADING COMPANY LTD,262.00,REPAIRS OPERATIONS,MATERIALS,5902564333,1514319
03.02.2023,ASSET MANAGEMENT,TRAVIS PERKINS TRADING COMPANY LTD,262.00,REPAIRS OPERATIONS,MATERIALS,5902564333,1514319
03.02.2023,ASSET MANAGEMENT,TRAVIS PERKINS TRADING COMPANY LTD,262.00,REPAIRS OPERATIONS,MATERIALS,5902564333,1514319
03.02.2023,ASSET MANAGEMENT,TRAVIS PERKINS TRADING COMPANY LTD,262.00,REPAIRS OPERATIONS,MATERIALS,5902564333,1514319
03.02.2023,ASSET MANAGEMENT,TRAVIS PERKINS TRADING COMPANY LTD,262.00,REPAIRS OPERATIONS,MATERIALS,5902564337,1514319
03.02.2023,ASSET MANAGEMENT,TRAVIS PERKINS TRADING COMPANY LTD,262.00,REPAIRS OPERATIONS,MATERIALS,5902564337,1514319
03.02.2023,CENTRAL FUNCTIONS,BRESLIN CONSTRUCTION LTD,680.00,COMMERCIAL PROPERTIES,BUILDING R&M,5902563168,1000078031
03.02.2023,CENTRAL FUNCTIONS,EXPIDERE LTD,"1,875.00",GARAGE REPAIRS,PROFESSIONAL FEES,5902564359,1000088861
03.02.2023,CENTRAL FUNCTIONS,VEOLIA ES (UK)LTD,"197,996.95",HEATING ACCOUNT,GAS,5902564236,1824835
03.02.2023,CHIEF EXECUTIVE,DECONSTRUCT (UK) LTD,"145,445.70",CAPITAL PS (REGEN),CONSTRUCTION SITE COSTS,2103619524,3000002260
03.02.2023,CHIEF EXECUTIVE,DECONSTRUCT (UK) LTD,"201,738.88",CAPITAL PS (REGEN),CONSTRUCTION SITE COSTS,2103619525,3000002260
03.02.2023,CHIEF EXECUTIVE,PARK RETAIL LTD,"5,488.00",CORPORATE & DEPARTMENTAL EXPENDITURE,MISCELLANEOUS EXPENSES,5902564214,1000053528
03.02.2023,CHILDREN AND ADULT,HAVERSTOCK,527.18,CAPITAL PS (EDUCATION),CONSTRUCTION FEES - ARCHITECT,5902564211,1000074288
03.02.2023,CHILDREN AND ADULT,HAVERSTOCK,"21,087.00",CAPITAL PS (EDUCATION),CONSTRUCTION FEES - ARCHITECT,5902564211,1000074288
03.02.2023,CHILDREN AND FAMILIES,DOG KENNEL HILL ADVENTURE PLAYGROUND LTD,350.00,ADOPT LONDON SOUTH,EXTERNAL AGENCIES AND BODIES,5902564278,11134529
03.02.2023,CHILDREN AND FAMILIES,REDACTED PERSONAL DATA,"1,080.00",ADOPT LONDON SOUTH,EXTERNAL AGENCIES AND BODIES,REDACTED,REDACTED
03.02.2023,CHILDREN AND FAMILIES,JORDAN AND ASSOCIATES LTD,297.00,ADOPTION SUPP FUND 1,EXTERNAL AGENCIES AND BODIES,5902564287,1000088103
03.02.2023,CHILDREN AND FAMILIES,REDACTED PERSONAL DATA,280.00,ADOPTION SUPP FUND 2,EXTERNAL AGENCIES AND BODIES,REDACTED,REDACTED
03.02.2023,CHILDREN AND FAMILIES,ALEX VOLOVISKY LTD,400.00,ADOPTION SUPP FUND 2,EXTERNAL AGENCIES AND BODIES,5902564266,1000088469
03.02.2023,CHILDREN AND FAMILIES,DARIT PUCHKOV PLAY THERAPY,450.00,ADOPTION SUPP FUND 2,EXTERNAL AGENCIES AND BODIES,5902564274,1000087958
03.02.2023,CHILDREN AND FAMILIES,FAMILY FUTURES CIC,480.00,ADOPTION SUPP FUND 2,EXTERNAL AGENCIES AND BODIES,5902563382,1000027893
03.02.2023,CHILDREN AND FAMILIES,REDACTED PERSONAL DATA,550.00,ADOPTION SUPP FUND 2,EXTERNAL AGENCIES AND BODIES,REDACTED,REDACTED
03.02.2023,CHILDREN AND FAMILIES,REDACTED PERSONAL DATA,700.00,ADOPTION SUPP FUND 2,EXTERNAL AGENCIES AND BODIES,REDACTED,REDACTED
03.02.2023,CHILDREN AND FAMILIES,FAMILY FUTURES CIC,"2,101.00",ADOPTION SUPP FUND 2,EXTERNAL AGENCIES AND BODIES,5902563083,1000027893
03.02.2023,CHILDREN AND FAMILIES,HEADS & HEARTS LIMITED,"2,500.00",ADOPTION SUPP FUND 2,EXTERNAL AGENCIES AND BODIES,5902564292,1000088646
03.02.2023,CHILDREN AND FAMILIES,KENT COUNTY COUNCIL,"18,000.00",ALS INTER AGENCY,EXTERNAL AGENCIES AND BODIES,5902564293,1000053817
03.02.2023,CHILDREN AND FAMILIES,PARENTS AND CHILDREN TOGETHER,"24,839.00",ALS INTER AGENCY,EXTERNAL AGENCIES AND BODIES,5902564294,1000068128
03.02.2023,CHILDREN AND FAMILIES,FGC PRACTICE UK LTD,611.00,FAMILY GROUP CONF�S,PROFESSIONAL FEES,5902564290,1000088322
03.02.2023,CHILDREN AND FAMILIES,REDACTED PERSONAL DATA,787.65,FAMILY GROUP CONF�S,PROFESSIONAL FEES,REDACTED,REDACTED
03.02.2023,CHILDREN AND FAMILIES,HC EXECUTIVE CONTRACTS LIMITED,"2,530.00",FRIENDS & FAMILY FOSTERING,EXTERNAL AGENCIES AND BODIES,5902564301,1000089159
03.02.2023,CHILDREN AND FAMILIES,POWER2 LTD,"14,400.00",GRANT FUNDED PROJ�S,EXTERNAL AGENCIES AND BODIES,5902564357,1000089217
03.02.2023,CHILDREN AND FAMILIES,REDACTED PERSONAL DATA,320.00,P & R CARE TEAM,OTHER PAYMENTS FOR CLIENTS,REDACTED,REDACTED
03.02.2023,CHILDREN AND FAMILIES,HM PRISON & PROBATION SERVICE,"8,903.00",REMAND - YDA YOI,RESIDENTIAL CARE,5902564121,1000083827
03.02.2023,CHILDREN AND FAMILIES,PURPLE PEBBLES(CHILD CARE) SERVICES,"-1,788.88",SEMI-IND CARELEAVERS,COSTS RECOVERED,2103619515,1000070705
03.02.2023,CHILDREN AND FAMILIES,PURPLE PEBBLES(CHILD CARE) SERVICES,-894.99,SEMI-IND CARELEAVERS,COSTS RECOVERED,2103619512,1000070705
03.02.2023,CHILDREN AND FAMILIES,PURPLE PEBBLES(CHILD CARE) SERVICES,-374.38,SEMI-IND CARELEAVERS,COSTS RECOVERED,2103619516,1000070705
03.02.2023,CHILDREN AND FAMILIES,PURPLE PEBBLES(CHILD CARE) SERVICES,553.57,SEMI-IND CARELEAVERS,EXTERNAL AGENCIES AND BODIES,2103619248,1000070705
03.02.2023,CHILDREN AND FAMILIES,PURPLE PEBBLES(CHILD CARE) SERVICES,"2,103.57",SEMI-IND CARELEAVERS,EXTERNAL AGENCIES AND BODIES,2103619249,1000070705
03.02.2023,CHILDREN AND FAMILIES,PURPLE PEBBLES(CHILD CARE) SERVICES,"2,214.29",SEMI-IND CARELEAVERS,EXTERNAL AGENCIES AND BODIES,2103619253,1000070705
03.02.2023,CHILDREN AND FAMILIES,PURPLE PEBBLES(CHILD CARE) SERVICES,"2,480.00",SEMI-IND CARELEAVERS,EXTERNAL AGENCIES AND BODIES,2103619263,1000070705
03.02.2023,CHILDREN AND FAMILIES,FINEFAIR LTD,"2,590.67",SEMI-IND CARELEAVERS,EXTERNAL AGENCIES AND BODIES,2103619254,1000075570
03.02.2023,CHILDREN AND FAMILIES,PURPLE PEBBLES(CHILD CARE) SERVICES,"3,985.71",SEMI-IND CARELEAVERS,EXTERNAL AGENCIES AND BODIES,2103619243,1000070705
03.02.2023,CHILDREN AND FAMILIES,STEP AHEAD SERVICES LTD,300.00,SEMI-IND LAC 16-17,OTHER PAYMENTS FOR CLIENTS,2103619463,1000036544
03.02.2023,CHILDREN AND FAMILIES,STEP AHEAD SERVICES LTD,"3,142.86",SEMI-IND LAC 16-17,EXTERNAL AGENCIES AND BODIES,2103619276,1000036544
03.02.2023,CHILDREN AND FAMILIES,PURPLE PEBBLES(CHILD CARE) SERVICES,"4,207.14",SEMI-IND LAC 16-17,EXTERNAL AGENCIES AND BODIES,2103619287,1000070705
03.02.2023,CHILDREN AND FAMILIES,PURPLE PEBBLES(CHILD CARE) SERVICES,"4,428.57",SEMI-IND LAC 16-17,EXTERNAL AGENCIES AND BODIES,2103619269,1000070705
03.02.2023,CHILDREN AND FAMILIES,STEP AHEAD SERVICES LTD,"4,871.43",SEMI-IND LAC 16-17,EXTERNAL AGENCIES AND BODIES,2103619465,1000036544
03.02.2023,CHILDREN AND FAMILIES,PURPLE PEBBLES(CHILD CARE) SERVICES,"-1,789.98",UASC CARELEAVERS,COSTS RECOVERED,2103619513,1000070705
03.02.2023,CHILDREN AND FAMILIES,PURPLE PEBBLES(CHILD CARE) SERVICES,-894.99,UASC CARELEAVERS,COSTS RECOVERED,2103619514,1000070705
03.02.2023,CHILDREN AND FAMILIES,PURPLE PEBBLES(CHILD CARE) SERVICES,-875.00,UASC CARELEAVERS,COSTS RECOVERED,2103619517,1000070705
03.02.2023,CHILDREN AND FAMILIES,STEP AHEAD SERVICES LTD,300.00,UASC CARELEAVERS,OTHER PAYMENTS FOR CLIENTS,2103619467,1000036544
03.02.2023,CHILDREN AND FAMILIES,PURPLE PEBBLES(CHILD CARE) SERVICES,300.00,UASC CARELEAVERS,OTHER PAYMENTS FOR CLIENTS,2103619240,1000070705
03.02.2023,CHILDREN AND FAMILIES,PURPLE PEBBLES(CHILD CARE) SERVICES,300.00,UASC CARELEAVERS,OTHER PAYMENTS FOR CLIENTS,2103619257,1000070705
03.02.2023,CHILDREN AND FAMILIES,PURPLE PEBBLES(CHILD CARE) SERVICES,"1,285.71",UASC CARELEAVERS,EXTERNAL AGENCIES AND BODIES,2103619241,1000070705
03.02.2023,CHILDREN AND FAMILIES,PURPLE PEBBLES(CHILD CARE) SERVICES,"1,550.00",UASC CARELEAVERS,EXTERNAL AGENCIES AND BODIES,2103619247,1000070705
03.02.2023,CHILDREN AND FAMILIES,PURPLE PEBBLES(CHILD CARE) SERVICES,"1,660.71",UASC CARELEAVERS,EXTERNAL AGENCIES AND BODIES,2103619260,1000070705
03.02.2023,CHILDREN AND FAMILIES,PURPLE PEBBLES(CHILD CARE) SERVICES,"1,660.71",UASC CARELEAVERS,EXTERNAL AGENCIES AND BODIES,2103619264,1000070705
03.02.2023,CHILDREN AND FAMILIES,PURPLE PEBBLES(CHILD CARE) SERVICES,"1,749.29",UASC CARELEAVERS,EXTERNAL AGENCIES AND BODIES,2103619236,1000070705
03.02.2023,CHILDREN AND FAMILIES,PURPLE PEBBLES(CHILD CARE) SERVICES,"1,771.43",UASC CARELEAVERS,EXTERNAL AGENCIES AND BODIES,2103619244,1000070705
03.02.2023,CHILDREN AND FAMILIES,PURPLE PEBBLES(CHILD CARE) SERVICES,"1,771.43",UASC CARELEAVERS,EXTERNAL AGENCIES AND BODIES,2103619265,1000070705
03.02.2023,CHILDREN AND FAMILIES,PURPLE PEBBLES(CHILD CARE) SERVICES,"1,815.71",UASC CARELEAVERS,EXTERNAL AGENCIES AND BODIES,2103619255,1000070705
03.02.2023,CHILDREN AND FAMILIES,PURPLE PEBBLES(CHILD CARE) SERVICES,"1,882.14",UASC CARELEAVERS,EXTERNAL AGENCIES AND BODIES,2103619239,1000070705
03.02.2023,CHILDREN AND FAMILIES,PURPLE PEBBLES(CHILD CARE) SERVICES,"1,882.14",UASC CARELEAVERS,EXTERNAL AGENCIES AND BODIES,2103619262,1000070705
03.02.2023,CHILDREN AND FAMILIES,PURPLE PEBBLES(CHILD CARE) SERVICES,"1,882.14",UASC CARELEAVERS,EXTERNAL AGENCIES AND BODIES,2103619267,1000070705
03.02.2023,CHILDREN AND FAMILIES,PURPLE PEBBLES(CHILD CARE) SERVICES,"1,948.57",UASC CARELEAVERS,EXTERNAL AGENCIES AND BODIES,2103619245,1000070705
03.02.2023,CHILDREN AND FAMILIES,PURPLE PEBBLES(CHILD CARE) SERVICES,"1,948.57",UASC CARELEAVERS,EXTERNAL AGENCIES AND BODIES,2103619246,1000070705
03.02.2023,CHILDREN AND FAMILIES,PURPLE PEBBLES(CHILD CARE) SERVICES,"1,948.57",UASC CARELEAVERS,EXTERNAL AGENCIES AND BODIES,2103619256,1000070705
03.02.2023,CHILDREN AND FAMILIES,PURPLE PEBBLES(CHILD CARE) SERVICES,"1,948.57",UASC CARELEAVERS,EXTERNAL AGENCIES AND BODIES,2103619259,1000070705
03.02.2023,CHILDREN AND FAMILIES,PURPLE PEBBLES(CHILD CARE) SERVICES,"1,981.79",UASC CARELEAVERS,EXTERNAL AGENCIES AND BODIES,2103619250,1000070705
03.02.2023,CHILDREN AND FAMILIES,PURPLE PEBBLES(CHILD CARE) SERVICES,"2,059.29",UASC CARELEAVERS,EXTERNAL AGENCIES AND BODIES,2103619268,1000070705
03.02.2023,CHILDREN AND FAMILIES,PURPLE PEBBLES(CHILD CARE) SERVICES,"2,103.57",UASC CARELEAVERS,EXTERNAL AGENCIES AND BODIES,2103619242,1000070705
03.02.2023,CHILDREN AND FAMILIES,HARVEST CARE GROUP LTD,"2,103.57",UASC CARELEAVERS,EXTERNAL AGENCIES AND BODIES,2103619266,1000079059
03.02.2023,CHILDREN AND FAMILIES,STEP AHEAD SERVICES LTD,"2,125.71",UASC CARELEAVERS,EXTERNAL AGENCIES AND BODIES,2103619466,1000036544
03.02.2023,CHILDREN AND FAMILIES,PURPLE PEBBLES(CHILD CARE) SERVICES,"2,214.28",UASC CARELEAVERS,EXTERNAL AGENCIES AND BODIES,2103619251,1000070705
03.02.2023,CHILDREN AND FAMILIES,PURPLE PEBBLES(CHILD CARE) SERVICES,"3,542.86",UASC CARELEAVERS,EXTERNAL AGENCIES AND BODIES,2103619238,1000070705
03.02.2023,CHILDREN AND FAMILIES,PURPLE PEBBLES(CHILD CARE) SERVICES,"3,542.86",UASC CARELEAVERS,EXTERNAL AGENCIES AND BODIES,2103619261,1000070705
03.02.2023,CHILDREN AND FAMILIES,PURPLE PEBBLES(CHILD CARE) SERVICES,300.00,UASC LAC 16-17,OTHER PAYMENTS FOR CLIENTS,2103619274,1000070705
03.02.2023,CHILDREN AND FAMILIES,PURPLE PEBBLES(CHILD CARE) SERVICES,300.00,UASC LAC 16-17,OTHER PAYMENTS FOR CLIENTS,2103619286,1000070705
03.02.2023,CHILDREN AND FAMILIES,PURPLE PEBBLES(CHILD CARE) SERVICES,420.00,UASC LAC 16-17,OTHER PAYMENTS FOR CLIENTS,2103619285,1000070705
03.02.2023,CHILDREN AND FAMILIES,PURPLE PEBBLES(CHILD CARE) SERVICES,"1,700.00",UASC LAC 16-17,EXTERNAL AGENCIES AND BODIES,2103619271,1000070705
03.02.2023,CHILDREN AND FAMILIES,PURPLE PEBBLES(CHILD CARE) SERVICES,"1,882.14",UASC LAC 16-17,EXTERNAL AGENCIES AND BODIES,2103619275,1000070705
03.02.2023,CHILDREN AND FAMILIES,PURPLE PEBBLES(CHILD CARE) SERVICES,"3,542.86",UASC LAC 16-17,EXTERNAL AGENCIES AND BODIES,2103619273,1000070705
03.02.2023,CHILDREN AND FAMILIES,PURPLE PEBBLES(CHILD CARE) SERVICES,"3,764.29",UASC LAC 16-17,EXTERNAL AGENCIES AND BODIES,2103619282,1000070705
03.02.2023,CHILDREN AND FAMILIES,PURPLE PEBBLES(CHILD CARE) SERVICES,"3,875.00",UASC LAC 16-17,EXTERNAL AGENCIES AND BODIES,2103619277,1000070705
03.02.2023,CHILDREN AND FAMILIES,PURPLE PEBBLES(CHILD CARE) SERVICES,"3,875.00",UASC LAC 16-17,EXTERNAL AGENCIES AND BODIES,2103619280,1000070705
03.02.2023,CHILDREN AND FAMILIES,PURPLE PEBBLES(CHILD CARE) SERVICES,"3,985.71",UASC LAC 16-17,EXTERNAL AGENCIES AND BODIES,2103619278,1000070705
03.02.2023,COMMUNITIES,UNIQUE PERSONNEL (UK) LTD,779.68,NO RECOURSE TO PUBLIC FUNDS,HOMECARE - C&V,2103619462,1000075451
03.02.2023,COMMUNITIES,REDACTED PERSONAL DATA,350.00,UKRAINIAN PROGRAMME,GRANTS,REDACTED,REDACTED
03.02.2023,COMMUNITIES,REDACTED PERSONAL DATA,350.00,UKRAINIAN PROGRAMME,GRANTS,REDACTED,REDACTED
03.02.2023,COMMUNITIES,REDACTED PERSONAL DATA,350.00,UKRAINIAN PROGRAMME,GRANTS,REDACTED,REDACTED
03.02.2023,COMMUNITIES,REDACTED PERSONAL DATA,350.00,UKRAINIAN PROGRAMME,GRANTS,REDACTED,REDACTED
03.02.2023,COMMUNITIES,REDACTED PERSONAL DATA,350.00,UKRAINIAN PROGRAMME,GRANTS,REDACTED,REDACTED
03.02.2023,COMMUNITIES,REDACTED PERSONAL DATA,350.00,UKRAINIAN PROGRAMME,GRANTS,REDACTED,REDACTED
03.02.2023,COMMUNITIES,REDACTED PERSONAL DATA,350.00,UKRAINIAN PROGRAMME,GRANTS,REDACTED,REDACTED
03.02.2023,COMMUNITIES,REDACTED PERSONAL DATA,350.00,UKRAINIAN PROGRAMME,GRANTS,REDACTED,REDACTED
03.02.2023,COMMUNITIES HRA,PARTNERSHIP MEDIA GROUP,395.00,RESIDENTS PARTICIPATION FUND,TRAINING,5902563407,1000050132
03.02.2023,CUSTOMER EXPERIENCE HGF,M SHEPPARD PATHOLOGY LTD,350.00,CORONER'S,PROFESSIONAL FEES,5902564167,1000087249
03.02.2023,CUSTOMER EXPERIENCE HGF,VENN GROUP LTD,"10,010.00",IT MANAGEMENT,AGENCY STAFF,5902564183,1000033315
03.02.2023,DSG,VIBE TEACHER RECRUITMENT LTD,275.73,AP & HOSPITAL SCHLS,STATEMENTED FEES,2103619056,1000081423
03.02.2023,DSG,VIBE TEACHER RECRUITMENT LTD,477.18,AP & HOSPITAL SCHLS,STATEMENTED FEES,2103619064,1000081423
03.02.2023,DSG,VIBE TEACHER RECRUITMENT LTD,789.07,AP & HOSPITAL SCHLS,STATEMENTED FEES,2103619058,1000081423
03.02.2023,DSG,VIBE TEACHER RECRUITMENT LTD,795.30,AP & HOSPITAL SCHLS,STATEMENTED FEES,2103619057,1000081423
03.02.2023,DSG,VIBE TEACHER RECRUITMENT LTD,795.30,AP & HOSPITAL SCHLS,STATEMENTED FEES,2103619070,1000081423
03.02.2023,DSG,VIBE TEACHER RECRUITMENT LTD,840.00,AP & HOSPITAL SCHLS,STATEMENTED FEES,2103619055,1000081423
03.02.2023,DSG,VIBE TEACHER RECRUITMENT LTD,840.00,AP & HOSPITAL SCHLS,STATEMENTED FEES,2103619068,1000081423
03.02.2023,DSG,VIBE TEACHER RECRUITMENT LTD,"1,102.87",AP & HOSPITAL SCHLS,STATEMENTED FEES,2103619059,1000081423
03.02.2023,DSG,VIBE TEACHER RECRUITMENT LTD,"1,102.92",AP & HOSPITAL SCHLS,STATEMENTED FEES,2103619063,1000081423
03.02.2023,DSG,VIBE TEACHER RECRUITMENT LTD,"1,378.60",AP & HOSPITAL SCHLS,STATEMENTED FEES,2103619053,1000081423
03.02.2023,DSG,VIBE TEACHER RECRUITMENT LTD,"1,378.60",AP & HOSPITAL SCHLS,STATEMENTED FEES,2103619066,1000081423
03.02.2023,DSG,VIBE TEACHER RECRUITMENT LTD,"1,378.65",AP & HOSPITAL SCHLS,STATEMENTED FEES,2103619069,1000081423
03.02.2023,DSG,VIBE TEACHER RECRUITMENT LTD,"1,463.47",AP & HOSPITAL SCHLS,STATEMENTED FEES,2103619062,1000081423
03.02.2023,DSG,VIBE TEACHER RECRUITMENT LTD,"1,739.16",AP & HOSPITAL SCHLS,STATEMENTED FEES,2103619061,1000081423
03.02.2023,DSG,VIBE TEACHER RECRUITMENT LTD,"1,739.20",AP & HOSPITAL SCHLS,STATEMENTED FEES,2103619060,1000081423
03.02.2023,DSG,VIBE TEACHER RECRUITMENT LTD,"1,898.27",AP & HOSPITAL SCHLS,STATEMENTED FEES,2103619067,1000081423
03.02.2023,DSG,VIBE TEACHER RECRUITMENT LTD,"2,014.89",AP & HOSPITAL SCHLS,STATEMENTED FEES,2103619052,1000081423
03.02.2023,DSG,VIBE TEACHER RECRUITMENT LTD,"2,173.95",AP & HOSPITAL SCHLS,STATEMENTED FEES,2103619065,1000081423
03.02.2023,DSG,VIBE TEACHER RECRUITMENT LTD,"2,174.00",AP & HOSPITAL SCHLS,STATEMENTED FEES,2103619051,1000081423
03.02.2023,DSG,VIBE TEACHER RECRUITMENT LTD,"2,174.00",AP & HOSPITAL SCHLS,STATEMENTED FEES,2103619054,1000081423
03.02.2023,EDUCATION,INVESTEC ASSET FINANCE PLC,334.44,THOMAS CALTON CENTRE,OP LEASE/HIRE CHARGES:PLANT/EQUIP/FURNIT,5902564235,1000046072
03.02.2023,ENVIRONMENT AND LEISURE,TRACSIS TRAFFIC DATA LTD,"1,095.00",CAPITAL PS (LEISURE),CONSTRUCTION FEES  - EXTERNAL,5902564215,1000079382
03.02.2023,ENVIRONMENT AND LEISURE,T LOUGHMAN AND CO LIMITED,"1,168.16",CAPITAL PS (LEISURE),CONSTRUCTION FEES  - EXTERNAL,2103616466,4013329
03.02.2023,ENVIRONMENT AND LEISURE,METIS CONSULTANTS LIMITED,"2,096.25",CAPITAL PS (LEISURE),CONSTRUCTION FEES  - EXTERNAL,5902563807,1000086330
03.02.2023,ENVIRONMENT AND LEISURE,T LOUGHMAN AND CO LIMITED,"3,705.65",CAPITAL PS (LEISURE),CONSTRUCTION FEES  - EXTERNAL,2103616466,4013329
03.02.2023,ENVIRONMENT AND LEISURE,T LOUGHMAN AND CO LIMITED,"11,771.10",CAPITAL PS (LEISURE),CONSTRUCTION FEES  - EXTERNAL,2103616466,4013329
03.02.2023,ENVIRONMENT AND LEISURE,F M CONWAY LTD,"300,000.00",CAPITAL PS (LEISURE),CONSTRUCTION FEES  - EXTERNAL,2103617413,4001384
03.02.2023,ENVIRONMENT AND LEISURE,CENTRAL & NORTH WEST LONDON,"55,677.48",SEXUAL HEALTH - STI,MEDICAL / HEALTH & SAFETY SERVICES,5902564367,1000066666
03.02.2023,ENVIRONMENT DIRECTORATE,PACE ACCIDENT REPAIRS CENTRE LTD,380.00,COMMERCIAL VEH CTRL A/C,HIRED VEHICLES,5902563828,1000069899
03.02.2023,ENVIRONMENT DIRECTORATE,BERKELEY HOMES (SOUTH EAST LONDON),"12,922.91",FLEET SERVICES MANAGEMENT,NNDR,5902564223,1000082826
03.02.2023,ENVIRONMENT DIRECTORATE,SPALDINGS (UK) LTD,259.00,GROUNDS MAINTENANCE - GENERAL,MATERIALS,5902564240,1907384
03.02.2023,ENVIRONMENT DIRECTORATE,KILLGERM CHEMICALS LTD,886.39,PEST CONTROL,MATERIALS,5902564056,1000045706
03.02.2023,ENVIRONMENT DIRECTORATE,1ENV SOLUTIONS LTD,771.38,PEST CONTROL-CDN A/C,MATERIALS,5902564010,1000075410
03.02.2023,F & C S EXCLUDING CORPORATE BUDGETS,WILKS HEAD & EVE LLP,"7,000.00",NNDR,CONSULTANTS SERVICES,5902563907,1000042700
03.02.2023,HOUSING GENERAL FUND,RELOVISION LTD,500.00,CAPITAL PS (HOUSING GF),ICT ACQUISITION,5902563463,1000084942
03.02.2023,HOUSING GENERAL FUND,UNIFIED CONSULTANCY LTD,697.33,CAPITAL PS (HOUSING GF),ICT ACQUISITION,5902564225,1000081827
03.02.2023,HOUSING GENERAL FUND,UNIFIED CONSULTANCY LTD,"4,709.67",CAPITAL PS (HOUSING GF),ICT ACQUISITION,5902564225,1000081827
03.02.2023,HOUSING GENERAL FUND,PLAN LONDON LTD,"2,800.00",CAPITAL PS (REGEN),CONSTRUCTION MAIN CONTRACT,5902564079,1000056065
03.02.2023,HOUSING GENERAL FUND,LIBRA CONSTRUCTION SERVICES LTD,"73,206.60",CAPITAL PS (REGEN),CONSTRUCTION MAIN CONTRACT,2103616429,3000000875
03.02.2023,HOUSING HRA,SILVER DCC LTD,538.97,CAPITAL PS (HRA),CONSTRUCTION FEES  - EXTERNAL,5902563348,1000087546
03.02.2023,HOUSING HRA,SILVER DCC LTD,"1,315.18",CAPITAL PS (HRA),CONSTRUCTION FEES  - EXTERNAL,5902563283,1000087546
03.02.2023,HOUSING HRA,SILVER DCC LTD,"1,342.65",CAPITAL PS (HRA),CONSTRUCTION FEES  - EXTERNAL,5902563369,1000087546
03.02.2023,HOUSING HRA,POINT 2 SURVEYORS LTD,"2,427.90",CAPITAL PS (HRA),CONSTRUCTION FEES  - EXTERNAL,5902564356,1000076513
03.02.2023,HOUSING HRA,SILVER DCC LTD,"2,445.94",CAPITAL PS (HRA),CONSTRUCTION FEES  - EXTERNAL,5902563320,1000087546
03.02.2023,HOUSING HRA,BAILY  GARNER LLP,"2,816.00",CAPITAL PS (HRA),CONSTRUCTION FEES  - EXTERNAL,5902563520,1000663
03.02.2023,HOUSING HRA,SILVER DCC LTD,"3,200.00",CAPITAL PS (HRA),CONSTRUCTION FEES  - EXTERNAL,5902564209,1000087546
03.02.2023,HOUSING HRA,FAITHFUL & GOULD,"26,226.50",CAPITAL PS (HRA),CONSTRUCTION FEES - EMPLOYERS AGENT,5902563487,1000061390
03.02.2023,HOUSING HRA,PREMIER PROPERTY LAWYERS LTD,"35,000.00",CAPITAL PS (HRA),CAPITAL GRANTS,2103617779,1000060267
03.02.2023,HOUSING HRA,DURKAN LTD,"147,158.26",CAPITAL PS (HRA),CONSTRUCTION MAIN CONTRACT -CERTIFICATED,2103618870,3000000960
03.02.2023,HOUSING HRA,BY DEVELOPMENT LTD,"2,246,928.42",CAPITAL PS (HRA),CONSTRUCTION MAIN CONTRACT -CERTIFICATED,2103616419,3000002255
03.02.2023,HOUSING HRA,GLOBAL GUARDIANS FACILITIES MANAGEMENT LTD,"2,400.00",CAPITAL PS (REGEN),CONSTRUCTION SITE COSTS,5902564224,1000071841
03.02.2023,HOUSING HRA,STEPHEN TAYLOR ARCHITECTS LTD,"13,452.55",CAPITAL PS (REGEN),CONSTRUCTION FEES - ARCHITECT,5902564202,1000083590
03.02.2023,HOUSING HRA,STEPHEN TAYLOR ARCHITECTS LTD,"27,025.72",CAPITAL PS (REGEN),CONSTRUCTION FEES - ARCHITECT,5902564205,1000083590
03.02.2023,HOUSING HRA,STEPHEN TAYLOR ARCHITECTS LTD,"28,735.00",CAPITAL PS (REGEN),CONSTRUCTION FEES - ARCHITECT,5902564204,1000083590
03.02.2023,LEISURE DIRECTORATE,LONDON FURNITURE OUTLET LTD,300.00,CEMETERIES,EQUIPMENT PURCHASE & REPAIR,5902563110,1000089323
03.02.2023,LEISURE DIRECTORATE,CLYDE & CO,364.00,LEISURE INSOURCING MOBILISATION COST,PAYMENTS FOR LEGAL SERVICES,5902564352,1000067838
03.02.2023,LEISURE DIRECTORATE,CLYDE & CO,950.00,LEISURE INSOURCING MOBILISATION COST,PAYMENTS FOR LEGAL SERVICES,5902564347,1000067838
03.02.2023,LEISURE DIRECTORATE,REDAPPLES NEWSAGENT,386.60,STOCK SERVICES,BOOKS & PUBLICATIONS,5902563181,11319405
03.02.2023,LEISURE DIRECTORATE,LANDSCAPE SUPPLY COMPANY,465.60,TREES � IN-HOUSE TEAM,EQUIPMENT PURCHASE & REPAIR,5902564234,1000051937
03.02.2023,LEISURE DIRECTORATE,LAND SKILLS TRAINING LTD,"2,242.00",TREES � IN-HOUSE TEAM,TRAINING,5902562985,1000060035
03.02.2023,NEW BUILD,TAMLA TREES LTD,337.50,DEVELOPMENT DELIVERY,PROFESSIONAL FEES,5902564364,1000077904
03.02.2023,PLANNING & GROWTH,WILLIAM MARTIN PROPERTY CONSULTANTS,"2,750.00","COURAGE YARD, SHAD THAMES",PROFESSIONAL FEES,5902564233,1000062171
03.02.2023,PLANNING & GROWTH,BNP PARIBAS REAL ESTATE ADVISORY & PROPERTY MANAGEMENT,"4,500.00",MAJOR APPLICATIONS,PROFESSIONAL FEES,5902564203,1000053153
03.02.2023,PLANNING & GROWTH,BNP PARIBAS REAL ESTATE ADVISORY & PROPERTY MANAGEMENT,"1,080.00",OKR MASTER PLANNING,PROFESSIONAL FEES,5902563414,1000053153
03.02.2023,RESIDENT SERVICES HGF,JMAA PROPERTY MANAGEMENT LTD,"2,718.50",HOMELESS PROJECTS,GRANTS,5902564238,1000089336
03.02.2023,RESIDENT SERVICES HGF,JMAA PROPERTY MANAGEMENT LTD,"2,718.50",HOMELESS PROJECTS,GRANTS,5902564239,1000089336
03.02.2023,RESIDENT SERVICES HGF,CIRCA HOMES LTD,"2,689.75",PSL PLACEMENTS,EXTERNAL AGENCIES AND BODIES,5902564237,1000083021
03.02.2023,RESIDENT SERVICES HGF,LTA DIRECT LTD,"20,159.30",PSL PLACEMENTS,EXTERNAL AGENCIES AND BODIES,5902564221,1000085314
03.02.2023,SOUTHWARK BUILDING SERVICES,TRAVIS PERKINS TRADING COMPANY LTD,255.00,STORES/LOGISTICS,CREDITORS -GR/IR CLEARING ACCOUNT,5902564340,1514319
03.02.2023,SOUTHWARK BUILDING SERVICES,TRAVIS PERKINS TRADING COMPANY LTD,265.20,STORES/LOGISTICS,CREDITORS -GR/IR CLEARING ACCOUNT,5902564348,1514319
03.02.2023,SOUTHWARK BUILDING SERVICES,TRAVIS PERKINS TRADING COMPANY LTD,267.12,STORES/LOGISTICS,CREDITORS -GR/IR CLEARING ACCOUNT,5902564345,1514319
03.02.2023,SOUTHWARK BUILDING SERVICES,TRAVIS PERKINS TRADING COMPANY LTD,267.40,STORES/LOGISTICS,CREDITORS -GR/IR CLEARING ACCOUNT,5902564335,1514319
03.02.2023,SOUTHWARK BUILDING SERVICES,TRAVIS PERKINS TRADING COMPANY LTD,272.80,STORES/LOGISTICS,CREDITORS -GR/IR CLEARING ACCOUNT,5902564340,1514319
03.02.2023,SOUTHWARK BUILDING SERVICES,TRAVIS PERKINS TRADING COMPANY LTD,276.00,STORES/LOGISTICS,CREDITORS -GR/IR CLEARING ACCOUNT,5902564328,1514319
03.02.2023,SOUTHWARK BUILDING SERVICES,TRAVIS PERKINS TRADING COMPANY LTD,276.00,STORES/LOGISTICS,CREDITORS -GR/IR CLEARING ACCOUNT,5902564328,1514319
03.02.2023,SOUTHWARK BUILDING SERVICES,TRAVIS PERKINS TRADING COMPANY LTD,286.00,STORES/LOGISTICS,CREDITORS -GR/IR CLEARING ACCOUNT,5902564340,1514319
03.02.2023,SOUTHWARK BUILDING SERVICES,TRAVIS PERKINS TRADING COMPANY LTD,288.00,STORES/LOGISTICS,CREDITORS -GR/IR CLEARING ACCOUNT,5902564335,1514319
03.02.2023,SOUTHWARK BUILDING SERVICES,TRAVIS PERKINS TRADING COMPANY LTD,288.00,STORES/LOGISTICS,CREDITORS -GR/IR CLEARING ACCOUNT,5902564340,1514319
03.02.2023,SOUTHWARK BUILDING SERVICES,TRAVIS PERKINS TRADING COMPANY LTD,301.10,STORES/LOGISTICS,CREDITORS -GR/IR CLEARING ACCOUNT,5902564348,1514319
03.02.2023,SOUTHWARK BUILDING SERVICES,TRAVIS PERKINS TRADING COMPANY LTD,312.96,STORES/LOGISTICS,CREDITORS -GR/IR CLEARING ACCOUNT,5902564340,1514319
03.02.2023,SOUTHWARK BUILDING SERVICES,TRAVIS PERKINS TRADING COMPANY LTD,316.20,STORES/LOGISTICS,CREDITORS -GR/IR CLEARING ACCOUNT,5902564345,1514319
03.02.2023,SOUTHWARK BUILDING SERVICES,TRAVIS PERKINS TRADING COMPANY LTD,319.00,STORES/LOGISTICS,CREDITORS -GR/IR CLEARING ACCOUNT,5902564335,1514319
03.02.2023,SOUTHWARK BUILDING SERVICES,TRAVIS PERKINS TRADING COMPANY LTD,319.00,STORES/LOGISTICS,CREDITORS -GR/IR CLEARING ACCOUNT,5902564348,1514319
03.02.2023,SOUTHWARK BUILDING SERVICES,TRAVIS PERKINS TRADING COMPANY LTD,322.40,STORES/LOGISTICS,CREDITORS -GR/IR CLEARING ACCOUNT,5902564340,1514319
03.02.2023,SOUTHWARK BUILDING SERVICES,TRAVIS PERKINS TRADING COMPANY LTD,344.00,STORES/LOGISTICS,CREDITORS -GR/IR CLEARING ACCOUNT,5902564340,1514319
03.02.2023,SOUTHWARK BUILDING SERVICES,TRAVIS PERKINS TRADING COMPANY LTD,352.80,STORES/LOGISTICS,CREDITORS -GR/IR CLEARING ACCOUNT,5902564335,1514319
03.02.2023,SOUTHWARK BUILDING SERVICES,TRAVIS PERKINS TRADING COMPANY LTD,360.00,STORES/LOGISTICS,CREDITORS -GR/IR CLEARING ACCOUNT,5902564348,1514319
03.02.2023,SOUTHWARK BUILDING SERVICES,TRAVIS PERKINS TRADING COMPANY LTD,389.20,STORES/LOGISTICS,CREDITORS -GR/IR CLEARING ACCOUNT,5902564335,1514319
03.02.2023,SOUTHWARK BUILDING SERVICES,TRAVIS PERKINS TRADING COMPANY LTD,399.70,STORES/LOGISTICS,CREDITORS -GR/IR CLEARING ACCOUNT,5902564345,1514319
03.02.2023,SOUTHWARK BUILDING SERVICES,TRAVIS PERKINS TRADING COMPANY LTD,412.00,STORES/LOGISTICS,CREDITORS -GR/IR CLEARING ACCOUNT,5902564340,1514319
03.02.2023,SOUTHWARK BUILDING SERVICES,TRAVIS PERKINS TRADING COMPANY LTD,413.40,STORES/LOGISTICS,CREDITORS -GR/IR CLEARING ACCOUNT,5902564345,1514319
03.02.2023,SOUTHWARK BUILDING SERVICES,TRAVIS PERKINS TRADING COMPANY LTD,436.20,STORES/LOGISTICS,CREDITORS -GR/IR CLEARING ACCOUNT,5902564340,1514319
03.02.2023,SOUTHWARK BUILDING SERVICES,TRAVIS PERKINS TRADING COMPANY LTD,437.00,STORES/LOGISTICS,CREDITORS -GR/IR CLEARING ACCOUNT,5902564345,1514319
03.02.2023,SOUTHWARK BUILDING SERVICES,TRAVIS PERKINS TRADING COMPANY LTD,442.00,STORES/LOGISTICS,CREDITORS -GR/IR CLEARING ACCOUNT,5902564335,1514319
03.02.2023,SOUTHWARK BUILDING SERVICES,TRAVIS PERKINS TRADING COMPANY LTD,448.80,STORES/LOGISTICS,CREDITORS -GR/IR CLEARING ACCOUNT,5902564335,1514319
03.02.2023,SOUTHWARK BUILDING SERVICES,TRAVIS PERKINS TRADING COMPANY LTD,449.10,STORES/LOGISTICS,CREDITORS -GR/IR CLEARING ACCOUNT,5902564340,1514319
03.02.2023,SOUTHWARK BUILDING SERVICES,TRAVIS PERKINS TRADING COMPANY LTD,469.20,STORES/LOGISTICS,CREDITORS -GR/IR CLEARING ACCOUNT,5902564328,1514319
03.02.2023,SOUTHWARK BUILDING SERVICES,TRAVIS PERKINS TRADING COMPANY LTD,472.20,STORES/LOGISTICS,CREDITORS -GR/IR CLEARING ACCOUNT,5902564345,1514319
03.02.2023,SOUTHWARK BUILDING SERVICES,TRAVIS PERKINS TRADING COMPANY LTD,475.40,STORES/LOGISTICS,CREDITORS -GR/IR CLEARING ACCOUNT,5902564345,1514319
03.02.2023,SOUTHWARK BUILDING SERVICES,TRAVIS PERKINS TRADING COMPANY LTD,478.00,STORES/LOGISTICS,CREDITORS -GR/IR CLEARING ACCOUNT,5902564348,1514319
03.02.2023,SOUTHWARK BUILDING SERVICES,TRAVIS PERKINS TRADING COMPANY LTD,506.88,STORES/LOGISTICS,CREDITORS -GR/IR CLEARING ACCOUNT,5902564335,1514319
03.02.2023,SOUTHWARK BUILDING SERVICES,TRAVIS PERKINS TRADING COMPANY LTD,523.80,STORES/LOGISTICS,CREDITORS -GR/IR CLEARING ACCOUNT,5902564348,1514319
03.02.2023,SOUTHWARK BUILDING SERVICES,TRAVIS PERKINS TRADING COMPANY LTD,524.40,STORES/LOGISTICS,CREDITORS -GR/IR CLEARING ACCOUNT,5902564335,1514319
03.02.2023,SOUTHWARK BUILDING SERVICES,TRAVIS PERKINS TRADING COMPANY LTD,528.00,STORES/LOGISTICS,CREDITORS -GR/IR CLEARING ACCOUNT,5902564340,1514319
03.02.2023,SOUTHWARK BUILDING SERVICES,TRAVIS PERKINS TRADING COMPANY LTD,540.00,STORES/LOGISTICS,CREDITORS -GR/IR CLEARING ACCOUNT,5902564335,1514319
03.02.2023,SOUTHWARK BUILDING SERVICES,TRAVIS PERKINS TRADING COMPANY LTD,540.00,STORES/LOGISTICS,CREDITORS -GR/IR CLEARING ACCOUNT,5902564348,1514319
03.02.2023,SOUTHWARK BUILDING SERVICES,TRAVIS PERKINS TRADING COMPANY LTD,564.20,STORES/LOGISTICS,CREDITORS -GR/IR CLEARING ACCOUNT,5902564348,1514319
03.02.2023,SOUTHWARK BUILDING SERVICES,TRAVIS PERKINS TRADING COMPANY LTD,582.00,STORES/LOGISTICS,CREDITORS -GR/IR CLEARING ACCOUNT,5902564345,1514319
03.02.2023,SOUTHWARK BUILDING SERVICES,TRAVIS PERKINS TRADING COMPANY LTD,601.60,STORES/LOGISTICS,CREDITORS -GR/IR CLEARING ACCOUNT,5902564335,1514319
03.02.2023,SOUTHWARK BUILDING SERVICES,TRAVIS PERKINS TRADING COMPANY LTD,609.00,STORES/LOGISTICS,CREDITORS -GR/IR CLEARING ACCOUNT,5902564340,1514319
03.02.2023,SOUTHWARK BUILDING SERVICES,TRAVIS PERKINS TRADING COMPANY LTD,610.30,STORES/LOGISTICS,CREDITORS -GR/IR CLEARING ACCOUNT,5902564345,1514319
03.02.2023,SOUTHWARK BUILDING SERVICES,TRAVIS PERKINS TRADING COMPANY LTD,616.00,STORES/LOGISTICS,CREDITORS -GR/IR CLEARING ACCOUNT,5902564345,1514319
03.02.2023,SOUTHWARK BUILDING SERVICES,TRAVIS PERKINS TRADING COMPANY LTD,622.70,STORES/LOGISTICS,CREDITORS -GR/IR CLEARING ACCOUNT,5902564340,1514319
03.02.2023,SOUTHWARK BUILDING SERVICES,TRAVIS PERKINS TRADING COMPANY LTD,629.76,STORES/LOGISTICS,CREDITORS -GR/IR CLEARING ACCOUNT,5902564335,1514319
03.02.2023,SOUTHWARK BUILDING SERVICES,TRAVIS PERKINS TRADING COMPANY LTD,643.20,STORES/LOGISTICS,CREDITORS -GR/IR CLEARING ACCOUNT,5902564335,1514319
03.02.2023,SOUTHWARK BUILDING SERVICES,TRAVIS PERKINS TRADING COMPANY LTD,786.60,STORES/LOGISTICS,CREDITORS -GR/IR CLEARING ACCOUNT,5902564340,1514319
03.02.2023,SOUTHWARK BUILDING SERVICES,TRAVIS PERKINS TRADING COMPANY LTD,825.00,STORES/LOGISTICS,CREDITORS -GR/IR CLEARING ACCOUNT,5902564335,1514319
03.02.2023,SOUTHWARK BUILDING SERVICES,TRAVIS PERKINS TRADING COMPANY LTD,826.80,STORES/LOGISTICS,CREDITORS -GR/IR CLEARING ACCOUNT,5902564340,1514319
03.02.2023,SOUTHWARK BUILDING SERVICES,TRAVIS PERKINS TRADING COMPANY LTD,836.10,STORES/LOGISTICS,CREDITORS -GR/IR CLEARING ACCOUNT,5902564348,1514319
03.02.2023,SOUTHWARK BUILDING SERVICES,TRAVIS PERKINS TRADING COMPANY LTD,854.82,STORES/LOGISTICS,CREDITORS -GR/IR CLEARING ACCOUNT,5902564345,1514319
03.02.2023,SOUTHWARK BUILDING SERVICES,TRAVIS PERKINS TRADING COMPANY LTD,924.00,STORES/LOGISTICS,CREDITORS -GR/IR CLEARING ACCOUNT,5902564340,1514319
03.02.2023,SOUTHWARK BUILDING SERVICES,TRAVIS PERKINS TRADING COMPANY LTD,925.44,STORES/LOGISTICS,CREDITORS -GR/IR CLEARING ACCOUNT,5902564335,1514319
03.02.2023,SOUTHWARK BUILDING SERVICES,TRAVIS PERKINS TRADING COMPANY LTD,925.44,STORES/LOGISTICS,CREDITORS -GR/IR CLEARING ACCOUNT,5902564335,1514319
03.02.2023,SOUTHWARK BUILDING SERVICES,TRAVIS PERKINS TRADING COMPANY LTD,925.44,STORES/LOGISTICS,CREDITORS -GR/IR CLEARING ACCOUNT,5902564348,1514319
03.02.2023,SOUTHWARK BUILDING SERVICES,TRAVIS PERKINS TRADING COMPANY LTD,"1,040.00",STORES/LOGISTICS,CREDITORS -GR/IR CLEARING ACCOUNT,5902564335,1514319
03.02.2023,SOUTHWARK BUILDING SERVICES,TRAVIS PERKINS TRADING COMPANY LTD,"1,050.96",STORES/LOGISTICS,CREDITORS -GR/IR CLEARING ACCOUNT,5902564335,1514319
03.02.2023,SOUTHWARK BUILDING SERVICES,TRAVIS PERKINS TRADING COMPANY LTD,"1,129.95",STORES/LOGISTICS,CREDITORS -GR/IR CLEARING ACCOUNT,5902564328,1514319
03.02.2023,SOUTHWARK BUILDING SERVICES,TRAVIS PERKINS TRADING COMPANY LTD,"1,129.95",STORES/LOGISTICS,CREDITORS -GR/IR CLEARING ACCOUNT,5902564348,1514319
03.02.2023,SOUTHWARK BUILDING SERVICES,TRAVIS PERKINS TRADING COMPANY LTD,"1,147.00",STORES/LOGISTICS,CREDITORS -GR/IR CLEARING ACCOUNT,5902564348,1514319
03.02.2023,SOUTHWARK BUILDING SERVICES,TRAVIS PERKINS TRADING COMPANY LTD,"1,166.16",STORES/LOGISTICS,CREDITORS -GR/IR CLEARING ACCOUNT,5902564348,1514319
03.02.2023,SOUTHWARK BUILDING SERVICES,TRAVIS PERKINS TRADING COMPANY LTD,"1,167.48",STORES/LOGISTICS,CREDITORS -GR/IR CLEARING ACCOUNT,5902564348,1514319
03.02.2023,SOUTHWARK BUILDING SERVICES,TRAVIS PERKINS TRADING COMPANY LTD,"1,220.60",STORES/LOGISTICS,CREDITORS -GR/IR CLEARING ACCOUNT,5902564345,1514319
03.02.2023,SOUTHWARK BUILDING SERVICES,TRAVIS PERKINS TRADING COMPANY LTD,"1,269.00",STORES/LOGISTICS,CREDITORS -GR/IR CLEARING ACCOUNT,5902564345,1514319
03.02.2023,SOUTHWARK BUILDING SERVICES,TRAVIS PERKINS TRADING COMPANY LTD,"1,286.40",STORES/LOGISTICS,CREDITORS -GR/IR CLEARING ACCOUNT,5902564340,1514319
03.02.2023,SOUTHWARK BUILDING SERVICES,TRAVIS PERKINS TRADING COMPANY LTD,"1,286.40",STORES/LOGISTICS,CREDITORS -GR/IR CLEARING ACCOUNT,5902564348,1514319
03.02.2023,SOUTHWARK BUILDING SERVICES,TRAVIS PERKINS TRADING COMPANY LTD,"1,286.40",STORES/LOGISTICS,CREDITORS -GR/IR CLEARING ACCOUNT,5902564348,1514319
03.02.2023,SOUTHWARK BUILDING SERVICES,TRAVIS PERKINS TRADING COMPANY LTD,"1,286.40",STORES/LOGISTICS,CREDITORS -GR/IR CLEARING ACCOUNT,5902564348,1514319
03.02.2023,SOUTHWARK BUILDING SERVICES,TRAVIS PERKINS TRADING COMPANY LTD,"1,286.40",STORES/LOGISTICS,CREDITORS -GR/IR CLEARING ACCOUNT,5902564348,1514319
03.02.2023,SOUTHWARK BUILDING SERVICES,TRAVIS PERKINS TRADING COMPANY LTD,"1,286.40",STORES/LOGISTICS,CREDITORS -GR/IR CLEARING ACCOUNT,5902564348,1514319
03.02.2023,SOUTHWARK BUILDING SERVICES,TRAVIS PERKINS TRADING COMPANY LTD,"1,293.00",STORES/LOGISTICS,CREDITORS -GR/IR CLEARING ACCOUNT,5902564340,1514319
03.02.2023,SOUTHWARK BUILDING SERVICES,TRAVIS PERKINS TRADING COMPANY LTD,"1,374.80",STORES/LOGISTICS,CREDITORS -GR/IR CLEARING ACCOUNT,5902564340,1514319
03.02.2023,SOUTHWARK BUILDING SERVICES,TRAVIS PERKINS TRADING COMPANY LTD,"1,400.40",STORES/LOGISTICS,CREDITORS -GR/IR CLEARING ACCOUNT,5902564328,1514319
03.02.2023,SOUTHWARK BUILDING SERVICES,TRAVIS PERKINS TRADING COMPANY LTD,"1,400.40",STORES/LOGISTICS,CREDITORS -GR/IR CLEARING ACCOUNT,5902564340,1514319
03.02.2023,SOUTHWARK BUILDING SERVICES,TRAVIS PERKINS TRADING COMPANY LTD,"1,477.50",STORES/LOGISTICS,CREDITORS -GR/IR CLEARING ACCOUNT,5902564335,1514319
03.02.2023,SOUTHWARK BUILDING SERVICES,TRAVIS PERKINS TRADING COMPANY LTD,"1,500.70",STORES/LOGISTICS,CREDITORS -GR/IR CLEARING ACCOUNT,5902564328,1514319
03.02.2023,SOUTHWARK BUILDING SERVICES,TRAVIS PERKINS TRADING COMPANY LTD,"1,543.36",STORES/LOGISTICS,CREDITORS -GR/IR CLEARING ACCOUNT,5902564345,1514319
03.02.2023,SOUTHWARK BUILDING SERVICES,TRAVIS PERKINS TRADING COMPANY LTD,"1,577.40",STORES/LOGISTICS,CREDITORS -GR/IR CLEARING ACCOUNT,5902564348,1514319
03.02.2023,SOUTHWARK BUILDING SERVICES,TRAVIS PERKINS TRADING COMPANY LTD,"1,577.40",STORES/LOGISTICS,CREDITORS -GR/IR CLEARING ACCOUNT,5902564348,1514319
03.02.2023,SOUTHWARK BUILDING SERVICES,TRAVIS PERKINS TRADING COMPANY LTD,"1,773.00",STORES/LOGISTICS,CREDITORS -GR/IR CLEARING ACCOUNT,5902564335,1514319
03.02.2023,SOUTHWARK BUILDING SERVICES,TRAVIS PERKINS TRADING COMPANY LTD,"1,868.10",STORES/LOGISTICS,CREDITORS -GR/IR CLEARING ACCOUNT,5902564340,1514319
03.02.2023,SOUTHWARK BUILDING SERVICES,TRAVIS PERKINS TRADING COMPANY LTD,"1,920.00",STORES/LOGISTICS,CREDITORS -GR/IR CLEARING ACCOUNT,5902564335,1514319
03.02.2023,SOUTHWARK BUILDING SERVICES,TRAVIS PERKINS TRADING COMPANY LTD,"2,099.50",STORES/LOGISTICS,CREDITORS -GR/IR CLEARING ACCOUNT,5902564328,1514319
03.02.2023,SOUTHWARK BUILDING SERVICES,TRAVIS PERKINS TRADING COMPANY LTD,"2,199.36",STORES/LOGISTICS,CREDITORS -GR/IR CLEARING ACCOUNT,5902564328,1514319
03.02.2023,SOUTHWARK BUILDING SERVICES,TRAVIS PERKINS TRADING COMPANY LTD,"2,889.60",STORES/LOGISTICS,CREDITORS -GR/IR CLEARING ACCOUNT,5902564328,1514319
03.02.2023,SOUTHWARK BUILDING SERVICES,TRAVIS PERKINS TRADING COMPANY LTD,"3,001.40",STORES/LOGISTICS,CREDITORS -GR/IR CLEARING ACCOUNT,5902564340,1514319
03.02.2023,SOUTHWARK BUILDING SERVICES,TRAVIS PERKINS TRADING COMPANY LTD,"3,009.36",STORES/LOGISTICS,CREDITORS -GR/IR CLEARING ACCOUNT,5902564328,1514319
03.02.2023,SOUTHWARK BUILDING SERVICES,TRAVIS PERKINS TRADING COMPANY LTD,"3,066.72",STORES/LOGISTICS,CREDITORS -GR/IR CLEARING ACCOUNT,5902564345,1514319
04.02.2023,ADULT SOCIAL CARE,REALITY FAMILY SUPPORT SERVICES LTD,916.30,PHY LTS 18-64,OTHER PAYMENTS FOR CLIENTS,5902564131,1000087878
04.02.2023,CENTRAL FUNCTIONS,BRESLIN CONSTRUCTION LTD,"1,880.00",COMMERCIAL PROPERTIES,BUILDING R&M,2103617406,3000001948
04.02.2023,CHIEF EXECUTIVE,MACE LTD,"10,334.69",CAPITAL PS (REGEN),CONSTRUCTION FEES,5902563757,1000067959
04.02.2023,CHIEF EXECUTIVE,SODEXO MOTIVATION SOLUTIONS UK LTD,900.00,CORPORATE & DEPARTMENTAL EXPENDITURE,OTHER EMPLOYEE EXPENSES,5902563478,1000078322
04.02.2023,CHILDREN AND FAMILIES,PLACEMENT SUPPORT LTD,360.00,ADOPTION SUPP FUND 1,EXTERNAL AGENCIES AND BODIES,5902564355,1000085153
04.02.2023,CHILDREN AND FAMILIES,PLACEMENT SUPPORT LTD,600.00,ADOPTION SUPP FUND 1,EXTERNAL AGENCIES AND BODIES,5902563394,1000085153
04.02.2023,CHILDREN AND FAMILIES,PLACEMENT SUPPORT LTD,360.00,ADOPTION SUPP FUND 2,EXTERNAL AGENCIES AND BODIES,5902563396,1000085153
04.02.2023,CHILDREN AND FAMILIES,FAMILY FUTURES CIC,400.00,ADOPTION SUPP FUND 2,EXTERNAL AGENCIES AND BODIES,5902563380,1000027893
04.02.2023,CHILDREN AND FAMILIES,PLACEMENT SUPPORT LTD,570.00,ADOPTION SUPP FUND 2,EXTERNAL AGENCIES AND BODIES,5902564088,1000085153
04.02.2023,CHILDREN AND FAMILIES,PLACEMENT SUPPORT LTD,600.00,ADOPTION SUPP FUND 2,EXTERNAL AGENCIES AND BODIES,5902563392,1000085153
04.02.2023,CHILDREN AND FAMILIES,FAMILY FUTURES CIC,800.00,ADOPTION SUPP FUND 2,EXTERNAL AGENCIES AND BODIES,5902563381,1000027893
04.02.2023,CHILDREN AND FAMILIES,REALITY FAMILY SUPPORT SERVICES LTD,392.70,EDGE OF CARE DECIS�S,OTHER PAYMENTS FOR CLIENTS,5902564131,1000087878
04.02.2023,CHILDREN AND FAMILIES,GETTY IMAGES (UK) LTD,887.50,FOSTER CARER RECRUIT,MARKETING & PUBLICITY SERVICES,5902564365,1000034798
04.02.2023,CHILDREN AND FAMILIES,CONNEXIONS CUISINE LTD T/A MASONS CATERING,359.90,YJS MGMT & SUPPORT,CATERING MATERIALS & SUPPLIES,5902564123,11317153
04.02.2023,COMMUNITIES HRA,BROWNING EST MGMT ASSN,400.57,BROWNING EMB,M&M ALLOWANCE CO-OPS,5902563728,1000059362
04.02.2023,COMMUNITIES HRA,BRANDON 1 TRA,"3,685.00",RESIDENTS PARTICIPATION FUND,GRANTS,5902564033,1000051013
04.02.2023,COMMUNITIES HRA,BRANDON 1 TRA,"3,685.00",RESIDENTS PARTICIPATION FUND,GRANTS,5902564036,1000051013
04.02.2023,ENVIRONMENT AND LEISURE,RED R DESIGN,350.00,CAPITAL PS (LEISURE),CONSTRUCTION FEES  - EXTERNAL,5902563749,1000035984
04.02.2023,ENVIRONMENT AND LEISURE,ST BARNABAS PARISH HALL,"1,352.40",CAPITAL PS (LEISURE),"PLANT, MACHINERY & EQUIPMENT ACQUISITION",5902563884,11291741
04.02.2023,ENVIRONMENT AND LEISURE,GRANGE PRIMARY SCHOOL,"5,000.00",CAPITAL PS (LEISURE),"PLANT, MACHINERY & EQUIPMENT ACQUISITION",5902563894,5001000029
04.02.2023,ENVIRONMENT AND LEISURE,SOUTHWARK CITIZENS ADVICE,600.00,MANAGEMENT TEAM,TRAINING,5902563185,1874379
04.02.2023,ENVIRONMENT AND LEISURE,KENT COUNTY COUNCIL - LASER,265.01,SANDGATE STREET,ELECTRICITY,5902563717,1000012926
04.02.2023,ENVIRONMENT AND LEISURE,KENT COUNTY COUNCIL - LASER,292.05,SANDGATE STREET,ELECTRICITY,5902563720,1000012926
04.02.2023,ENVIRONMENT AND LEISURE,KENT COUNTY COUNCIL - LASER,308.19,SANDGATE STREET,ELECTRICITY,5902563724,1000012926
04.02.2023,ENVIRONMENT AND LEISURE,KENT COUNTY COUNCIL - LASER,316.47,SANDGATE STREET,ELECTRICITY,5902563722,1000012926
04.02.2023,ENVIRONMENT AND LEISURE,KENT COUNTY COUNCIL - LASER,324.95,SANDGATE STREET,ELECTRICITY,5902563712,1000012926
04.02.2023,ENVIRONMENT AND LEISURE,KENT COUNTY COUNCIL - LASER,346.83,SANDGATE STREET,ELECTRICITY,5902563714,1000012926
04.02.2023,ENVIRONMENT AND LEISURE,KENT COUNTY COUNCIL - LASER,439.31,SANDGATE STREET,ELECTRICITY,5902563715,1000012926
04.02.2023,ENVIRONMENT AND LEISURE,KENT COUNTY COUNCIL - LASER,543.20,SANDGATE STREET,ELECTRICITY,5902563721,1000012926
04.02.2023,ENVIRONMENT AND LEISURE,KENT COUNTY COUNCIL - LASER,851.54,SANDGATE STREET,ELECTRICITY,5902563719,1000012926
04.02.2023,ENVIRONMENT DIRECTORATE,GRADKO INTERNATIONAL LTD,312.85,ENVIRONMENTAL PROTECTION,EQUIPMENT PURCHASE & REPAIR,5902563765,1000068330
04.02.2023,HOUSING GENERAL FUND,LEADTEC LIMITED,"8,075.00",CAPITAL PS (STRAT SERV),ICT ACQUISITION,5902563439,1000088992
04.02.2023,HOUSING HRA,AMBER MEEF 2 LLP,"1,500.00",CAPITAL PS (HRA),CONSTRUCTION FEES  - EXTERNAL,5902564022,1000085256
04.02.2023,HOUSING HRA,PRB ESTATES LTD,"4,407.57",CAPITAL PS (HRA),CONSTRUCTION,2103617414,3000001691
04.02.2023,HOUSING HRA,PULSE ASSOCIATES LTD (T/A PULSE CONSULT),"15,725.00",CAPITAL PS (HRA),CONSTRUCTION FEES,5902563766,1000087233
04.02.2023,HR & OT,SOUTHWARK CITIZENS ADVICE,600.00,HR PAYROLL COSTS,MEDICAL / HEALTH & SAFETY SERVICES,5902563247,1874379
04.02.2023,HR & OT,STARFISH SEARCH LTD,"4,800.00",HR PAYROLL COSTS,OTHER EMPLOYEE EXPENSES,5902563262,1000086886
04.02.2023,LEISURE DIRECTORATE,NEWLINE (ESSEX) LTD,766.48,CREMATORIUM,OTHER CLEANING,5902563217,1000047169
04.02.2023,LEISURE DIRECTORATE,APPLES & SNAKES LTD,500.00,LIBRARIES DEVELOPMENT,FREELANCE SPECIALISTS,5902563665,1000043895
04.02.2023,LEISURE DIRECTORATE,ASKEWS & HOLTS LIBRARY SERVICES LTD,"1,127.39",STOCK SERVICES,BOOKS & PUBLICATIONS,5902563198,1494168
04.02.2023,PLANNING & GROWTH,ALTAIR CONSULTANCY AND ADVISORY SERVICES,"2,350.00",MAJOR APPLICATIONS,PROFESSIONAL FEES,5902563470,1000080546
04.02.2023,PLANNING & GROWTH,ALTAIR CONSULTANCY AND ADVISORY SERVICES,"1,950.00",VALIDATION & FAST TRACK,PROFESSIONAL FEES,5902563310,1000080546
04.02.2023,PUBLIC HEALTH,BURGESS SPORTS,"1,856.00",HOLIDAY ACTIVITIES & FOOD,EXTERNAL AGENCIES AND BODIES,5902563936,1000069532
04.02.2023,SBS OPERATIONS,REDFORD CHARLES LTD,"4,370.00",ELECTRICAL TEAM,TRAINING,5902563292,1000060421
05.02.2023,CHIEF EXECUTIVE,PELLINGS LLP,873.60,CAPITAL PS (REGEN),CONSTRUCTION FEES - QUANTITY SURVEYOR,5902563358,1009262
05.02.2023,CHILDREN AND FAMILIES,FAMILY FUTURES CIC,960.00,ADOPTION SUPP FUND 2,EXTERNAL AGENCIES AND BODIES,5902563404,1000027893
05.02.2023,CHILDREN AND FAMILIES,FAMILY FUTURES CIC,"1,240.00",ADOPTION SUPP FUND 2,EXTERNAL AGENCIES AND BODIES,5902563405,1000027893
05.02.2023,CHILDREN AND FAMILIES,HUNTERS CONTRACTS LTD,343.35,EDUC INCLUSION TEAM,FURNITURE PURCHASE & REPAIR,5902563890,1000065904
05.02.2023,COMMUNITIES HRA,TWO TOWERS HOUSING CO-OP LTD,"1,029.42",TWO TOWERS,M&M ALLOWANCE CO-OPS,5902563465,1000006843
05.02.2023,ENVIRONMENT AND LEISURE,BAILY GARNER (HEALTH AND SAFETY) LIMITED,"1,440.00",CAPITAL PS (REGEN),CONSTRUCTION FEES,5902563482,1000033754
05.02.2023,ENVIRONMENT DIRECTORATE,SOUTHWARK NEWSPAPER LTD,684.00,HIGHWAYS DEVELOPMENT,MARKETING & PUBLICITY SERVICES,5902564198,1556957
05.02.2023,ENVIRONMENT DIRECTORATE,1ENV SOLUTIONS LTD,409.98,PEST CONTROL-CDN A/C,MATERIALS,5902564005,1000075410
05.02.2023,F & C S EXCLUDING CORPORATE BUDGETS,POST OFFICE LTD,"1,050.00",HOUSEHOLD SUPPORT GRANT,EXTERNAL AGENCIES AND BODIES,5902563900,1000087679
05.02.2023,F & C S EXCLUDING CORPORATE BUDGETS,BDO LLP,"2,426.67",RISK ADMIN,PROFESSIONAL FEES,5902563839,1000057898
05.02.2023,HOUSING HRA,CALFORD SEADEN LLP,"3,700.00",CAPITAL PS (HRA),CONSTRUCTION FEES,5902563756,1061592
05.02.2023,LEISURE DIRECTORATE,SOUTHERN CRANES & ACCESS LTD,"1,957.50",SDM BUDGET,OP LEASE/HIRE CHARGES:PLANT/EQUIP/FURNIT,5902563914,1000088668
05.02.2023,LEISURE DIRECTORATE,CONSTELLIA PUBLIC LIMITED,"10,880.21",TREES PRINCIPAL ROADS,TREE MAINTENANCE,5902563359,1000088137
05.02.2023,PUBLIC HEALTH,JAEGAR ACADEMY,348.00,HOLIDAY ACTIVITIES & FOOD,EXTERNAL AGENCIES AND BODIES,5902563796,1000089108
05.02.2023,PUBLIC HEALTH,CAMELOT PRIMARY SCHOOL,"1,350.00",HOLIDAY ACTIVITIES & FOOD,EXTERNAL AGENCIES AND BODIES,5902563435,5001000014
05.02.2023,PUBLIC HEALTH,CAMELOT PRIMARY SCHOOL,"3,290.00",HOLIDAY ACTIVITIES & FOOD,EXTERNAL AGENCIES AND BODIES,5902563435,5001000014
05.02.2023,RESIDENT SERVICES HGF,KINGSPRIDE INVESTMENTS LTD,"57,660.00",RAPID REHOUSING,EXTERNAL AGENCIES AND BODIES,5902563340,1000084216
06.02.2023,ADULT SOCIAL CARE,AGE UK  LEWISHAM & SOUTHWARK,328.12,APPOINTEESHIPS,OTHER PAYMENTS FOR CLIENTS,2103619544,1000066751
06.02.2023,ADULT SOCIAL CARE,BRANDON TRUST,600.02,APPOINTEESHIPS,OTHER PAYMENTS FOR CLIENTS,2103619547,1000042417
06.02.2023,ADULT SOCIAL CARE,STONEBRIDGE COMMUNITY LIVING LTD,875.00,APPOINTEESHIPS,OTHER PAYMENTS FOR CLIENTS,2103619546,1000088466
06.02.2023,ADULT SOCIAL CARE,METROPOLITAN HOUSING TRUST LTD,"3,494.05",APPOINTEESHIPS,OTHER PAYMENTS FOR CLIENTS,2103619550,1000047547
06.02.2023,ADULT SOCIAL CARE,BY THE BRIDGE LTD,"-5,571.30",DISABILITIES LAC,EXTERNAL AGENCIES AND BODIES,2103619632,1000043961
06.02.2023,ADULT SOCIAL CARE,BEDE HOUSE ASSOCIATION,300.00,LD LTS 18-64,DAYCARE,2103619792,1553877
06.02.2023,ADULT SOCIAL CARE,BEDE HOUSE ASSOCIATION,300.00,LD LTS 18-64,DAYCARE,2103619804,1553877
06.02.2023,ADULT SOCIAL CARE,BEDE HOUSE ASSOCIATION,300.00,LD LTS 18-64,DAYCARE,2103619805,1553877
06.02.2023,ADULT SOCIAL CARE,BEDE HOUSE ASSOCIATION,390.00,LD LTS 18-64,DAYCARE,2103619803,1553877
06.02.2023,ADULT SOCIAL CARE,BEDE HOUSE ASSOCIATION,420.00,LD LTS 18-64,DAYCARE,2103619812,1553877
06.02.2023,ADULT SOCIAL CARE,BEDE HOUSE ASSOCIATION,436.00,LD LTS 18-64,DAYCARE,2103619811,1553877
06.02.2023,ADULT SOCIAL CARE,SHARE COMMUNITY LTD,544.00,LD LTS 18-64,DAYCARE,2103619606,1000062408
06.02.2023,ADULT SOCIAL CARE,BEDE HOUSE ASSOCIATION,600.00,LD LTS 18-64,DAYCARE,2103619779,1553877
06.02.2023,ADULT SOCIAL CARE,BEDE HOUSE ASSOCIATION,600.00,LD LTS 18-64,DAYCARE,2103619784,1553877
06.02.2023,ADULT SOCIAL CARE,BEDE HOUSE ASSOCIATION,600.00,LD LTS 18-64,DAYCARE,2103619793,1553877
06.02.2023,ADULT SOCIAL CARE,BEDE HOUSE ASSOCIATION,600.00,LD LTS 18-64,DAYCARE,2103619797,1553877
06.02.2023,ADULT SOCIAL CARE,BEDE HOUSE ASSOCIATION,600.00,LD LTS 18-64,DAYCARE,2103619801,1553877
06.02.2023,ADULT SOCIAL CARE,BEDE HOUSE ASSOCIATION,600.00,LD LTS 18-64,DAYCARE,2103619810,1553877
06.02.2023,ADULT SOCIAL CARE,BEDE HOUSE ASSOCIATION,600.00,LD LTS 18-64,DAYCARE,2103619816,1553877
06.02.2023,ADULT SOCIAL CARE,BEDE HOUSE ASSOCIATION,640.00,LD LTS 18-64,DAYCARE,2103619814,1553877
06.02.2023,ADULT SOCIAL CARE,CONTACT PROFESSIONALS,684.00,LD LTS 18-64,SUPPORTED LIVING,2103619584,1000057263
06.02.2023,ADULT SOCIAL CARE,BEDE HOUSE ASSOCIATION,738.40,LD LTS 18-64,DAYCARE,2103619794,1553877
06.02.2023,ADULT SOCIAL CARE,BEDE HOUSE ASSOCIATION,760.00,LD LTS 18-64,DAYCARE,2103619778,1553877
06.02.2023,ADULT SOCIAL CARE,SHARE COMMUNITY LTD,780.00,LD LTS 18-64,DAYCARE,2103619604,1000062408
06.02.2023,ADULT SOCIAL CARE,SHARE COMMUNITY LTD,780.00,LD LTS 18-64,DAYCARE,2103619605,1000062408
06.02.2023,ADULT SOCIAL CARE,BEDE HOUSE ASSOCIATION,792.00,LD LTS 18-64,DAYCARE,2103619795,1553877
06.02.2023,ADULT SOCIAL CARE,BEDE HOUSE ASSOCIATION,810.00,LD LTS 18-64,DAYCARE,2103619819,1553877
06.02.2023,ADULT SOCIAL CARE,BEDE HOUSE ASSOCIATION,824.00,LD LTS 18-64,DAYCARE,2103619809,1553877
06.02.2023,ADULT SOCIAL CARE,BEDE HOUSE ASSOCIATION,840.00,LD LTS 18-64,DAYCARE,2103619815,1553877
06.02.2023,ADULT SOCIAL CARE,BEDE HOUSE ASSOCIATION,900.00,LD LTS 18-64,DAYCARE,2103619798,1553877
06.02.2023,ADULT SOCIAL CARE,BEDE HOUSE ASSOCIATION,900.00,LD LTS 18-64,DAYCARE,2103619806,1553877
06.02.2023,ADULT SOCIAL CARE,CONTACT PROFESSIONALS,912.00,LD LTS 18-64,SUPPORTED LIVING,2103619586,1000057263
06.02.2023,ADULT SOCIAL CARE,HARTWIG CARE LTD,956.88,LD LTS 18-64,HOMECARE - C&V,2103619589,1000088354
06.02.2023,ADULT SOCIAL CARE,BEDE HOUSE ASSOCIATION,"1,170.00",LD LTS 18-64,DAYCARE,2103619774,1553877
06.02.2023,ADULT SOCIAL CARE,BEDE HOUSE ASSOCIATION,"1,200.00",LD LTS 18-64,DAYCARE,2103619777,1553877
06.02.2023,ADULT SOCIAL CARE,BEDE HOUSE ASSOCIATION,"1,200.00",LD LTS 18-64,DAYCARE,2103619780,1553877
06.02.2023,ADULT SOCIAL CARE,BEDE HOUSE ASSOCIATION,"1,200.00",LD LTS 18-64,DAYCARE,2103619782,1553877
06.02.2023,ADULT SOCIAL CARE,BEDE HOUSE ASSOCIATION,"1,200.00",LD LTS 18-64,DAYCARE,2103619791,1553877
06.02.2023,ADULT SOCIAL CARE,BEDE HOUSE ASSOCIATION,"1,200.00",LD LTS 18-64,DAYCARE,2103619800,1553877
06.02.2023,ADULT SOCIAL CARE,BEDE HOUSE ASSOCIATION,"1,200.00",LD LTS 18-64,DAYCARE,2103619808,1553877
06.02.2023,ADULT SOCIAL CARE,BEDE HOUSE ASSOCIATION,"1,256.00",LD LTS 18-64,DAYCARE,2103619787,1553877
06.02.2023,ADULT SOCIAL CARE,BEDE HOUSE ASSOCIATION,"1,274.00",LD LTS 18-64,DAYCARE,2103619799,1553877
06.02.2023,ADULT SOCIAL CARE,BEDE HOUSE ASSOCIATION,"1,410.00",LD LTS 18-64,DAYCARE,2103619785,1553877
06.02.2023,ADULT SOCIAL CARE,BEDE HOUSE ASSOCIATION,"1,410.00",LD LTS 18-64,DAYCARE,2103619802,1553877
06.02.2023,ADULT SOCIAL CARE,BEDE HOUSE ASSOCIATION,"1,650.00",LD LTS 18-64,DAYCARE,2103619789,1553877
06.02.2023,ADULT SOCIAL CARE,BEDE HOUSE ASSOCIATION,"1,728.00",LD LTS 18-64,DAYCARE,2103619775,1553877
06.02.2023,ADULT SOCIAL CARE,BEDE HOUSE ASSOCIATION,"1,800.00",LD LTS 18-64,DAYCARE,2103619813,1553877
06.02.2023,ADULT SOCIAL CARE,BEDE HOUSE ASSOCIATION,"2,040.00",LD LTS 18-64,DAYCARE,2103619796,1553877
06.02.2023,ADULT SOCIAL CARE,BEDE HOUSE ASSOCIATION,"3,000.00",LD LTS 18-64,DAYCARE,2103619783,1553877
06.02.2023,ADULT SOCIAL CARE,BEDE HOUSE ASSOCIATION,460.00,LD LTS 65+,DAYCARE,2103619781,1553877
06.02.2023,ADULT SOCIAL CARE,BEDE HOUSE ASSOCIATION,"1,708.30",LD LTS 65+,DAYCARE,2103619786,1553877
06.02.2023,ADULT SOCIAL CARE,WILSON PARKER T/A AVAILL,257.16,MH LTS 18-64,HOMECARE - SPOT,2103619773,1000089282
06.02.2023,ADULT SOCIAL CARE,BEDE HOUSE ASSOCIATION,320.00,MH LTS 18-64,DAYCARE,2103619788,1553877
06.02.2023,ADULT SOCIAL CARE,LONDON CARE LTD,"1,676.75",MH LTS 65+,HOMECARE - C&V,2103619670,1000003398
06.02.2023,ADULT SOCIAL CARE,BEDE HOUSE ASSOCIATION,600.00,PHY LTS 18-64,DAYCARE,2103619807,1553877
06.02.2023,ADULT SOCIAL CARE,LONDON CARE LTD,803.93,PHY LTS 18-64,HOMECARE - C&V,2103619660,1000003398
06.02.2023,ADULT SOCIAL CARE,LONDON CARE LTD,825.78,PHY LTS 18-64,HOMECARE - C&V,2103619663,1000003398
06.02.2023,ADULT SOCIAL CARE,PEOPLES CARE LTD,"1,900.27",PHY LTS 18-64,HOMECARE - SPOT,2103619772,1000077465
06.02.2023,ADULT SOCIAL CARE,LONDON CARE LTD,"2,370.25",PHY LTS 18-64,HOMECARE - C&V,2103619666,1000003398
06.02.2023,ADULT SOCIAL CARE,LONDON CARE LTD,256.50,PHY LTS 65+,HOMECARE - C&V,2103619691,1000003398
06.02.2023,ADULT SOCIAL CARE,LONDON CARE LTD,341.96,PHY LTS 65+,HOMECARE - C&V,2103619659,1000003398
06.02.2023,ADULT SOCIAL CARE,LONDON CARE LTD,342.00,PHY LTS 65+,HOMECARE - C&V,2103619687,1000003398
06.02.2023,ADULT SOCIAL CARE,HARTWIG CARE LTD,358.83,PHY LTS 65+,HOMECARE - C&V,2103619595,1000088354
06.02.2023,ADULT SOCIAL CARE,LONDON CARE LTD,361.00,PHY LTS 65+,HOMECARE - C&V,2103619668,1000003398
06.02.2023,ADULT SOCIAL CARE,LONDON CARE LTD,384.75,PHY LTS 65+,HOMECARE - C&V,2103619667,1000003398
06.02.2023,ADULT SOCIAL CARE,LONDON CARE LTD,408.50,PHY LTS 65+,HOMECARE - C&V,2103619664,1000003398
06.02.2023,ADULT SOCIAL CARE,HARTWIG CARE LTD,478.44,PHY LTS 65+,HOMECARE - SPOT,2103619588,1000088354
06.02.2023,ADULT SOCIAL CARE,LONDON CARE LTD,527.25,PHY LTS 65+,HOMECARE - C&V,2103619674,1000003398
06.02.2023,ADULT SOCIAL CARE,HARTWIG CARE LTD,567.04,PHY LTS 65+,HOMECARE - SPOT,2103619593,1000088354
06.02.2023,ADULT SOCIAL CARE,HARTWIG CARE LTD,620.20,PHY LTS 65+,HOMECARE - C&V,2103619592,1000088354
06.02.2023,ADULT SOCIAL CARE,HARTWIG CARE LTD,620.20,PHY LTS 65+,HOMECARE - C&V,2103619596,1000088354
06.02.2023,ADULT SOCIAL CARE,LONDON CARE LTD,655.50,PHY LTS 65+,HOMECARE - C&V,2103619682,1000003398
06.02.2023,ADULT SOCIAL CARE,LONDON CARE LTD,665.00,PHY LTS 65+,HOMECARE - C&V,2103619680,1000003398
06.02.2023,ADULT SOCIAL CARE,LONDON CARE LTD,731.46,PHY LTS 65+,HOMECARE - C&V,2103619677,1000003398
06.02.2023,ADULT SOCIAL CARE,LONDON CARE LTD,793.25,PHY LTS 65+,HOMECARE - C&V,2103619688,1000003398
06.02.2023,ADULT SOCIAL CARE,LONDON CARE LTD,802.69,PHY LTS 65+,HOMECARE - C&V,2103619673,1000003398
06.02.2023,ADULT SOCIAL CARE,LONDON CARE LTD,812.17,PHY LTS 65+,HOMECARE - C&V,2103619661,1000003398
06.02.2023,ADULT SOCIAL CARE,HARTWIG CARE LTD,853.51,PHY LTS 65+,HOMECARE - C&V,2103619591,1000088354
06.02.2023,ADULT SOCIAL CARE,LONDON CARE LTD,921.50,PHY LTS 65+,HOMECARE - C&V,2103619678,1000003398
06.02.2023,ADULT SOCIAL CARE,LONDON CARE LTD,930.72,PHY LTS 65+,HOMECARE - C&V,2103619696,1000003398
06.02.2023,ADULT SOCIAL CARE,HARTWIG CARE LTD,939.16,PHY LTS 65+,HOMECARE - SPOT,2103619594,1000088354
06.02.2023,ADULT SOCIAL CARE,LONDON CARE LTD,987.62,PHY LTS 65+,HOMECARE - C&V,2103619676,1000003398
06.02.2023,ADULT SOCIAL CARE,LONDON CARE LTD,"1,115.20",PHY LTS 65+,HOMECARE - C&V,2103619690,1000003398
06.02.2023,ADULT SOCIAL CARE,HARTWIG CARE LTD,"1,116.36",PHY LTS 65+,HOMECARE - C&V,2103619602,1000088354
06.02.2023,ADULT SOCIAL CARE,LONDON CARE LTD,"1,159.05",PHY LTS 65+,HOMECARE - C&V,2103619675,1000003398
06.02.2023,ADULT SOCIAL CARE,LONDON CARE LTD,"1,187.50",PHY LTS 65+,HOMECARE - C&V,2103619671,1000003398
06.02.2023,ADULT SOCIAL CARE,HARTWIG CARE LTD,"2,219.43",PHY LTS 65+,HOMECARE - C&V,2103619601,1000088354
06.02.2023,ADULT SOCIAL CARE,HARTWIG CARE LTD,"2,374.48",PHY LTS 65+,HOMECARE - C&V,2103619598,1000088354
06.02.2023,ADULT SOCIAL CARE,SIDLOFF ASSOCIATES LTD,572.00,SAFEGUARDING & DOLS,EXTERNAL AGENCIES AND BODIES,5902564603,1000081744
06.02.2023,ADULT SOCIAL CARE,STEPHEN DOWN,783.55,SAFEGUARDING & DOLS,EXTERNAL AGENCIES AND BODIES,5902564633,1000075102
06.02.2023,ADULT SOCIAL CARE,SIDLOFF ASSOCIATES LTD,"2,794.00",SAFEGUARDING & DOLS,EXTERNAL AGENCIES AND BODIES,5902564603,1000081744
06.02.2023,ADULT SOCIAL CARE,ROMEDICAL LTD,"6,905.08",SAFEGUARDING & DOLS,OTHER CONTRACTORS,5902564594,1000076318
06.02.2023,ADULT SOCIAL CARE,KENT COUNTY COUNCIL - LASER,"2,181.06",SOUTHWARK RESOURCE CENTRE,ELECTRICITY,5902564601,1000012926
06.02.2023,ASSET MANAGEMENT,PENNINGTON CHOICES LTD,"2,693.90",ASBESTOS R&M (NORTH),PLANNED MAINTENANCE,5902564715,1000067888
06.02.2023,ASSET MANAGEMENT,PENNINGTON CHOICES LTD,"3,009.90",ASBESTOS R&M (NORTH),PLANNED MAINTENANCE,5902564709,1000067888
06.02.2023,ASSET MANAGEMENT,BOND TURNER  SOLICITORS,312.62,DISREPAIR,PAYMENTS FOR LEGAL SERVICES,2103619843,1000085362
06.02.2023,ASSET MANAGEMENT,BOND TURNER  SOLICITORS,416.67,DISREPAIR,PAYMENTS FOR LEGAL SERVICES,2103619836,1000085362
06.02.2023,ASSET MANAGEMENT,MJV & CO  SOLICITORS LTD,416.67,DISREPAIR,PAYMENTS FOR LEGAL SERVICES,2103619833,1000086326
06.02.2023,ASSET MANAGEMENT,PROPERTY FACILITIES GROUP LTD,443.04,DISREPAIR,BUILDING R&M,5902564449,1000063713
06.02.2023,ASSET MANAGEMENT,HIGH STREET  SOLICITORS,625.00,DISREPAIR,PAYMENTS FOR LEGAL SERVICES,2103619839,1000088784
06.02.2023,ASSET MANAGEMENT,BOND TURNER  SOLICITORS,800.00,DISREPAIR,PAYMENTS FOR LEGAL SERVICES,2103619837,1000085362
06.02.2023,ASSET MANAGEMENT,MLA SOLICITORS,833.33,DISREPAIR,PAYMENTS FOR LEGAL SERVICES,2103619831,1000079716
06.02.2023,ASSET MANAGEMENT,RESOLUTE  LEGAL,945.17,DISREPAIR,PAYMENTS FOR LEGAL SERVICES,2103619830,1000087819
06.02.2023,ASSET MANAGEMENT,ARMINA LTD,"1,071.60",DISREPAIR,BUILDING R&M,2103619579,3000002121
06.02.2023,ASSET MANAGEMENT,ARMINA LTD,"1,075.75",DISREPAIR,BUILDING R&M,2103619578,3000002121
06.02.2023,ASSET MANAGEMENT,ARMINA LTD,"1,171.25",DISREPAIR,BUILDING R&M,2103619574,3000002121
06.02.2023,ASSET MANAGEMENT,FRANKHAM CONSULTANCY GROUP LTD,"1,250.00",DISREPAIR,BUILDING R&M,5902563741,1000043952
06.02.2023,ASSET MANAGEMENT,BOND TURNER  SOLICITORS,"1,250.00",DISREPAIR,PAYMENTS FOR LEGAL SERVICES,2103619844,1000085362
06.02.2023,ASSET MANAGEMENT,VERITAS  SOLICITORS,"1,250.00",DISREPAIR,PAYMENTS FOR LEGAL SERVICES,2103619838,1000088269
06.02.2023,ASSET MANAGEMENT,M&S LAW  LTD,"1,250.00",DISREPAIR,PAYMENTS FOR LEGAL SERVICES,2103619840,1000089057
06.02.2023,ASSET MANAGEMENT,ARMINA LTD,"1,501.64",DISREPAIR,BUILDING R&M,2103619565,3000002121
06.02.2023,ASSET MANAGEMENT,ARMINA LTD,"1,705.27",DISREPAIR,BUILDING R&M,2103619577,3000002121
06.02.2023,ASSET MANAGEMENT,ARMINA LTD,"2,340.32",DISREPAIR,BUILDING R&M,2103619575,3000002121
06.02.2023,ASSET MANAGEMENT,ARMINA LTD,"2,538.40",DISREPAIR,BUILDING R&M,2103619573,3000002121
06.02.2023,ASSET MANAGEMENT,VERITAS  SOLICITORS,"2,708.33",DISREPAIR,PAYMENTS FOR LEGAL SERVICES,2103619835,1000088269
06.02.2023,ASSET MANAGEMENT,QUINN NOBLE SOLICITORS,"4,166.67",DISREPAIR,PAYMENTS FOR LEGAL SERVICES,2103619841,1000083954
06.02.2023,ASSET MANAGEMENT,ANTONY HODARI  SOLICITORS,"4,333.33",DISREPAIR,PAYMENTS FOR LEGAL SERVICES,2103619832,1000031040
06.02.2023,ASSET MANAGEMENT,BOND TURNER  SOLICITORS,"5,000.00",DISREPAIR,PAYMENTS FOR LEGAL SERVICES,2103619845,1000085362
06.02.2023,ASSET MANAGEMENT,BOND TURNER  SOLICITORS,"5,145.83",DISREPAIR,PAYMENTS FOR LEGAL SERVICES,2103619829,1000085362
06.02.2023,ASSET MANAGEMENT,MJV & CO  SOLICITORS LTD,"5,291.67",DISREPAIR,PAYMENTS FOR LEGAL SERVICES,2103619842,1000086326
06.02.2023,ASSET MANAGEMENT,AVONLINE NETWORK SERVICES LTD,405.00,ENG CONTRACTS (NORTH),TV AERIALS R&M,5902564706,1000068672
06.02.2023,ASSET MANAGEMENT,FRANKHAM CONSULTANCY GROUP LTD,"1,368.00",REPAIRS OPERATIONS,BUILDING R&M,5902564621,1000043952
06.02.2023,ASSET MANAGEMENT,P J COFFEY LTD,"13,000.00",REPAIRS OPERATIONS,PROFESSIONAL FEES,5902564719,1000084701
06.02.2023,ASSET MANAGEMENT HGF,ROYAL MAIL GROUP LTD,751.74,160 TOOLEY ST.,POSTAGES,5902564503,1000061535
06.02.2023,ASSET MANAGEMENT HGF,QUADIENT FINANCE UK LIMITED,"1,911.76",160 TOOLEY ST.,POSTAGES,5902563476,1000087139
06.02.2023,ASSET MANAGEMENT HGF,EDF ENERGY PLC,"3,379.26",47B EAST DULWICH ROAD,ELECTRICITY,5902564552,1008746
06.02.2023,CENTRAL FUNCTIONS,MORGAN SINDALL PROPERTY SERVICES LTD,"9,902.86",GAINS/LOSSES I & E,PROFESSIONAL FEES,5902564228,1000089196
06.02.2023,CENTRAL FUNCTIONS,NPOWER LTD,"-23,102.59",HEATING ACCOUNT,ELECTRICITY,5902563194,1000078994
06.02.2023,CENTRAL FUNCTIONS,NPOWER LTD,"-7,869.61",HEATING ACCOUNT,ELECTRICITY,5902563194,1000078994
06.02.2023,CENTRAL FUNCTIONS,NPOWER LTD,"-7,513.09",HEATING ACCOUNT,ELECTRICITY,5902563194,1000078994
06.02.2023,CENTRAL FUNCTIONS,NPOWER LTD,"-7,464.10",HEATING ACCOUNT,ELECTRICITY,5902563194,1000078994
06.02.2023,CENTRAL FUNCTIONS,NPOWER LTD,"-6,929.15",HEATING ACCOUNT,ELECTRICITY,2103616691,1000078994
06.02.2023,CENTRAL FUNCTIONS,NPOWER LTD,"-6,152.33",HEATING ACCOUNT,ELECTRICITY,5902563194,1000078994
06.02.2023,CENTRAL FUNCTIONS,NPOWER LTD,"-5,180.42",HEATING ACCOUNT,ELECTRICITY,5902563194,1000078994
06.02.2023,CENTRAL FUNCTIONS,NPOWER LTD,"-3,596.81",HEATING ACCOUNT,ELECTRICITY,5902563194,1000078994
06.02.2023,CENTRAL FUNCTIONS,NPOWER LTD,"-3,265.88",HEATING ACCOUNT,ELECTRICITY,5902563194,1000078994
06.02.2023,CENTRAL FUNCTIONS,NPOWER LTD,"-3,176.04",HEATING ACCOUNT,ELECTRICITY,5902563194,1000078994
06.02.2023,CENTRAL FUNCTIONS,NPOWER LTD,"-3,154.20",HEATING ACCOUNT,ELECTRICITY,5902563194,1000078994
06.02.2023,CENTRAL FUNCTIONS,NPOWER LTD,"-2,687.30",HEATING ACCOUNT,ELECTRICITY,5902563194,1000078994
06.02.2023,CENTRAL FUNCTIONS,NPOWER LTD,"-2,481.14",HEATING ACCOUNT,ELECTRICITY,5902563194,1000078994
06.02.2023,CENTRAL FUNCTIONS,NPOWER LTD,"-2,183.73",HEATING ACCOUNT,ELECTRICITY,5902563194,1000078994
06.02.2023,CENTRAL FUNCTIONS,NPOWER LTD,"-2,100.72",HEATING ACCOUNT,ELECTRICITY,5902563194,1000078994
06.02.2023,CENTRAL FUNCTIONS,NPOWER LTD,"-2,098.90",HEATING ACCOUNT,ELECTRICITY,5902563194,1000078994
06.02.2023,CENTRAL FUNCTIONS,NPOWER LTD,"-1,911.77",HEATING ACCOUNT,ELECTRICITY,5902563194,1000078994
06.02.2023,CENTRAL FUNCTIONS,NPOWER LTD,"-1,909.83",HEATING ACCOUNT,ELECTRICITY,5902563194,1000078994
06.02.2023,CENTRAL FUNCTIONS,NPOWER LTD,"-1,737.25",HEATING ACCOUNT,ELECTRICITY,5902563194,1000078994
06.02.2023,CENTRAL FUNCTIONS,NPOWER LTD,"-1,688.74",HEATING ACCOUNT,ELECTRICITY,5902563194,1000078994
06.02.2023,CENTRAL FUNCTIONS,NPOWER LTD,"-1,467.68",HEATING ACCOUNT,ELECTRICITY,5902563194,1000078994
06.02.2023,CENTRAL FUNCTIONS,NPOWER LTD,"-1,467.16",HEATING ACCOUNT,ELECTRICITY,5902563194,1000078994
06.02.2023,CENTRAL FUNCTIONS,NPOWER LTD,"-1,462.22",HEATING ACCOUNT,ELECTRICITY,5902563194,1000078994
06.02.2023,CENTRAL FUNCTIONS,NPOWER LTD,"-1,459.75",HEATING ACCOUNT,ELECTRICITY,5902563194,1000078994
06.02.2023,CENTRAL FUNCTIONS,NPOWER LTD,"-1,451.82",HEATING ACCOUNT,ELECTRICITY,5902563194,1000078994
06.02.2023,CENTRAL FUNCTIONS,NPOWER LTD,"-1,064.78",HEATING ACCOUNT,ELECTRICITY,5902563194,1000078994
06.02.2023,CENTRAL FUNCTIONS,NPOWER LTD,-993.97,HEATING ACCOUNT,ELECTRICITY,5902563194,1000078994
06.02.2023,CENTRAL FUNCTIONS,NPOWER LTD,-704.38,HEATING ACCOUNT,ELECTRICITY,5902563194,1000078994
06.02.2023,CENTRAL FUNCTIONS,NPOWER LTD,-650.65,HEATING ACCOUNT,ELECTRICITY,5902563194,1000078994
06.02.2023,CENTRAL FUNCTIONS,NPOWER LTD,-630.80,HEATING ACCOUNT,ELECTRICITY,5902563194,1000078994
06.02.2023,CENTRAL FUNCTIONS,NPOWER LTD,-630.77,HEATING ACCOUNT,ELECTRICITY,5902563194,1000078994
06.02.2023,CENTRAL FUNCTIONS,NPOWER LTD,-628.03,HEATING ACCOUNT,ELECTRICITY,5902563194,1000078994
06.02.2023,CENTRAL FUNCTIONS,NPOWER LTD,-605.97,HEATING ACCOUNT,ELECTRICITY,5902563194,1000078994
06.02.2023,CENTRAL FUNCTIONS,NPOWER LTD,-597.30,HEATING ACCOUNT,ELECTRICITY,5902563194,1000078994
06.02.2023,CENTRAL FUNCTIONS,NPOWER LTD,-582.55,HEATING ACCOUNT,ELECTRICITY,5902563194,1000078994
06.02.2023,CENTRAL FUNCTIONS,NPOWER LTD,-580.06,HEATING ACCOUNT,ELECTRICITY,5902563194,1000078994
06.02.2023,CENTRAL FUNCTIONS,NPOWER LTD,-578.04,HEATING ACCOUNT,ELECTRICITY,5902563194,1000078994
06.02.2023,CENTRAL FUNCTIONS,NPOWER LTD,-577.10,HEATING ACCOUNT,ELECTRICITY,5902563194,1000078994
06.02.2023,CENTRAL FUNCTIONS,NPOWER LTD,-567.83,HEATING ACCOUNT,ELECTRICITY,5902563194,1000078994
06.02.2023,CENTRAL FUNCTIONS,NPOWER LTD,700.57,HEATING ACCOUNT,ELECTRICITY,2103616689,1000078994
06.02.2023,CENTRAL FUNCTIONS,NPOWER LTD,"6,418.93",HEATING ACCOUNT,ELECTRICITY,5902563212,1000078994
06.02.2023,CENTRAL FUNCTIONS,NPOWER LTD,"97,238.59",HEATING ACCOUNT,ELECTRICITY,5902563212,1000078994
06.02.2023,CENTRAL FUNCTIONS,BLOOM PROCUREMENT SERVICES LTD,"92,668.80",LEDBURY ESTATE,SECURITY SERVICES,5902564382,1000082531
06.02.2023,CENTRAL FUNCTIONS,MFD COMMUNICATION INFRASTRUCTURE LTD,950.00,TECHNICAL SUPPORT,PROFESSIONAL FEES,5902564374,1000080277
06.02.2023,CENTRAL FUNCTIONS,MFD COMMUNICATION INFRASTRUCTURE LTD,950.00,TECHNICAL SUPPORT,PROFESSIONAL FEES,5902564377,1000080277
06.02.2023,CHIEF EXECUTIVE,AWORTH LAND SURVEYS LTD,870.00,CAPITAL PS (REGEN),CONSTRUCTION FEES  - EXTERNAL,5902563770,1000072575
06.02.2023,CHIEF EXECUTIVE,TOPOCREW LTD,"1,000.00",CAPITAL PS (REGEN),CONSTRUCTION FEES - ENGINEER,5902563775,1000070929
06.02.2023,CHIEF EXECUTIVE'S OFFICE,RENAISI LTD,"32,777.82",CHIEF EXECUTIVE'S OFFICE,EXTERNAL AGENCIES AND BODIES,5902564373,1000022051
06.02.2023,CHILDREN AND ADULT,IAN MORRIS,750.00,CAPITAL PS (EDUCATION),CONSTRUCTION FEES - INTERNAL,5902564540,1000088811
06.02.2023,CHILDREN AND ADULT,MITIE PROPERTY SERVICES (UK) LTD,"3,838.00",CAPITAL PS (EDUCATION),CONST'N MAIN CONTRACT - NON CERTIFICATED,2103619530,4010766
06.02.2023,CHILDREN AND ADULT,IAN MORRIS,"4,170.00",CAPITAL PS (EDUCATION),CONSTRUCTION FEES - INTERNAL,5902564541,1000088811
06.02.2023,CHILDREN AND ADULT,ST GEORGES CE SCHOOL,"40,416.48",CAPITAL PS (EDUCATION),CONSTRUCTION FEES - INTERNAL,5902564501,5001000069
06.02.2023,CHILDREN AND FAMILIES,ALICE MALLORIE THERAPY SERVICE,"1,160.00",ADOPTION SUPP FUND 2,EXTERNAL AGENCIES AND BODIES,5902564445,1000085491
06.02.2023,CHILDREN AND FAMILIES,PARENTS AND CHILDREN TOGETHER,"60,093.00",ALS INTER AGENCY,EXTERNAL AGENCIES AND BODIES,5902564637,1000068128
06.02.2023,CHILDREN AND FAMILIES,KEYS PCE LTD,"9,120.00",CHILDREN�S RESID,RESIDENTIAL CARE,2103619652,1000080090
06.02.2023,CHILDREN AND FAMILIES,KEYS PCE LTD,"16,759.29",CHILDREN�S RESID,RESIDENTIAL CARE,2103619657,1000080090
06.02.2023,CHILDREN AND FAMILIES,KEYS PCE LTD,"16,759.29",CHILDREN�S RESID,RESIDENTIAL CARE,2103619658,1000080090
06.02.2023,CHILDREN AND FAMILIES,CAMERON & COOPER LIMITED,"17,980.00",CHILDREN�S RESID,RESIDENTIAL CARE,2103619653,1000087598
06.02.2023,CHILDREN AND FAMILIES,KEYS PCE LTD,"18,240.00",CHILDREN�S RESID,RESIDENTIAL CARE,2103619655,1000080090
06.02.2023,CHILDREN AND FAMILIES,STONELAKE LONDON LTD,"18,600.00",CHILDREN�S RESID,RESIDENTIAL CARE,2103619654,1000080075
06.02.2023,CHILDREN AND FAMILIES,PARKVIEW CARE (BROADSTAIRS) LTD,"24,335.00",CHILDREN�S RESID,RESIDENTIAL CARE,2103619656,1000083678
06.02.2023,CHILDREN AND FAMILIES,REDACTED PERSONAL DATA,300.00,FE SUPPORT,CLIENT TRANSPORT,REDACTED,REDACTED
06.02.2023,CHILDREN AND FAMILIES,REDACTED PERSONAL DATA,500.00,FE SUPPORT,OTHER PAYMENTS FOR CLIENTS,REDACTED,REDACTED
06.02.2023,CHILDREN AND FAMILIES,SILVER LINING FOSTERING LTD,"3,432.14",FRIENDS & FAMILY FOSTERING,EXTERNAL AGENCIES AND BODIES,2103619636,1000087318
06.02.2023,CHILDREN AND FAMILIES,GREATER LONDON FOSTERING,"3,534.00",FRIENDS & FAMILY FOSTERING,EXTERNAL AGENCIES AND BODIES,2103619635,1000029184
06.02.2023,CHILDREN AND FAMILIES,CARING HEARTS FOSTERING,"3,542.99",FRIENDS & FAMILY FOSTERING,EXTERNAL AGENCIES AND BODIES,2103619641,1000087065
06.02.2023,CHILDREN AND FAMILIES,CARING HEARTS FOSTERING,"3,542.99",FRIENDS & FAMILY FOSTERING,EXTERNAL AGENCIES AND BODIES,2103619642,1000087065
06.02.2023,CHILDREN AND FAMILIES,GREATER LONDON FOSTERING,"3,760.30",FRIENDS & FAMILY FOSTERING,EXTERNAL AGENCIES AND BODIES,2103619639,1000029184
06.02.2023,CHILDREN AND FAMILIES,RAINBOW FOSTERING SERVICES LTD,"3,963.57",FRIENDS & FAMILY FOSTERING,EXTERNAL AGENCIES AND BODIES,2103619650,1000076620
06.02.2023,CHILDREN AND FAMILIES,SURE START FOSTERING AGENCY,"3,963.88",FRIENDS & FAMILY FOSTERING,EXTERNAL AGENCIES AND BODIES,2103619769,1000088495
06.02.2023,CHILDREN AND FAMILIES,FAMILY FIRST FOSTERING LTD,"4,074.29",FRIENDS & FAMILY FOSTERING,EXTERNAL AGENCIES AND BODIES,2103619649,1000080631
06.02.2023,CHILDREN AND FAMILIES,BY THE BRIDGE LTD,"4,440.44",FRIENDS & FAMILY FOSTERING,EXTERNAL AGENCIES AND BODIES,2103619646,1000043961
06.02.2023,CHILDREN AND FAMILIES,FAMILY FOSTERING LTD,"4,601.64",FRIENDS & FAMILY FOSTERING,EXTERNAL AGENCIES AND BODIES,2103619643,1000075179
06.02.2023,CHILDREN AND FAMILIES,GREATER LONDON FOSTERING,"4,645.35",FRIENDS & FAMILY FOSTERING,EXTERNAL AGENCIES AND BODIES,2103619640,1000029184
06.02.2023,CHILDREN AND FAMILIES,BY THE BRIDGE LTD,"4,749.20",FRIENDS & FAMILY FOSTERING,EXTERNAL AGENCIES AND BODIES,2103619647,1000043961
06.02.2023,CHILDREN AND FAMILIES,BY THE BRIDGE LTD,"4,903.58",FRIENDS & FAMILY FOSTERING,EXTERNAL AGENCIES AND BODIES,2103619644,1000043961
06.02.2023,CHILDREN AND FAMILIES,GREATER LONDON FOSTERING,"5,108.80",FRIENDS & FAMILY FOSTERING,EXTERNAL AGENCIES AND BODIES,2103619633,1000029184
06.02.2023,CHILDREN AND FAMILIES,RAINBOW FOSTERING SERVICES LTD,"6,200.00",FRIENDS & FAMILY FOSTERING,EXTERNAL AGENCIES AND BODIES,2103619634,1000076620
06.02.2023,CHILDREN AND FAMILIES,FAMILY WORKS FOSTERING LTD,"6,275.33",FRIENDS & FAMILY FOSTERING,EXTERNAL AGENCIES AND BODIES,2103619638,1000082529
06.02.2023,CHILDREN AND FAMILIES,CHOICE FOSTERING LTD,"6,642.99",FRIENDS & FAMILY FOSTERING,EXTERNAL AGENCIES AND BODIES,2103619631,1000089265
06.02.2023,CHILDREN AND FAMILIES,FAMILY WORKS FOSTERING LTD,"8,347.99",FRIENDS & FAMILY FOSTERING,EXTERNAL AGENCIES AND BODIES,2103619637,1000082529
06.02.2023,CHILDREN AND FAMILIES,REDACTED PERSONAL DATA,326.57,FRIENDS &FAMILY FOST,ADDITIONAL PAYMENTS TO AGENCIES/CARERS,REDACTED,REDACTED
06.02.2023,CHILDREN AND FAMILIES,REDACTED PERSONAL DATA,342.00,FRIENDS &FAMILY FOST,PAYMENTS TO CARERS,REDACTED,REDACTED
06.02.2023,CHILDREN AND FAMILIES,REDACTED PERSONAL DATA,396.00,FRIENDS &FAMILY FOST,PAYMENTS TO CARERS,REDACTED,REDACTED
06.02.2023,CHILDREN AND FAMILIES,REDACTED PERSONAL DATA,396.00,FRIENDS &FAMILY FOST,PAYMENTS TO CARERS,REDACTED,REDACTED
06.02.2023,CHILDREN AND FAMILIES,REDACTED PERSONAL DATA,409.86,FRIENDS &FAMILY FOST,PAYMENTS TO CARERS,REDACTED,REDACTED
06.02.2023,CHILDREN AND FAMILIES,REDACTED PERSONAL DATA,474.57,FRIENDS &FAMILY FOST,PAYMENTS TO CARERS,REDACTED,REDACTED
06.02.2023,CHILDREN AND FAMILIES,REDACTED PERSONAL DATA,496.72,FRIENDS &FAMILY FOST,PAYMENTS TO CARERS,REDACTED,REDACTED
06.02.2023,CHILDREN AND FAMILIES,REDACTED PERSONAL DATA,528.00,FRIENDS &FAMILY FOST,PAYMENTS TO CARERS,REDACTED,REDACTED
06.02.2023,CHILDREN AND FAMILIES,REDACTED PERSONAL DATA,528.00,FRIENDS &FAMILY FOST,PAYMENTS TO CARERS,REDACTED,REDACTED
06.02.2023,CHILDREN AND FAMILIES,REDACTED PERSONAL DATA,576.00,FRIENDS &FAMILY FOST,PAYMENTS TO CARERS,REDACTED,REDACTED
06.02.2023,CHILDREN AND FAMILIES,REDACTED PERSONAL DATA,600.00,FRIENDS &FAMILY FOST,ADDITIONAL PAYMENTS TO AGENCIES/CARERS,REDACTED,REDACTED
06.02.2023,CHILDREN AND FAMILIES,REDACTED PERSONAL DATA,620.00,FRIENDS &FAMILY FOST,PAYMENTS TO CARERS,REDACTED,REDACTED
06.02.2023,CHILDREN AND FAMILIES,REDACTED PERSONAL DATA,660.00,FRIENDS &FAMILY FOST,PAYMENTS TO CARERS,REDACTED,REDACTED
06.02.2023,CHILDREN AND FAMILIES,REDACTED PERSONAL DATA,689.43,FRIENDS &FAMILY FOST,ADDITIONAL PAYMENTS TO AGENCIES/CARERS,REDACTED,REDACTED
06.02.2023,CHILDREN AND FAMILIES,REDACTED PERSONAL DATA,798.29,FRIENDS &FAMILY FOST,ADDITIONAL PAYMENTS TO AGENCIES/CARERS,REDACTED,REDACTED
06.02.2023,CHILDREN AND FAMILIES,REDACTED PERSONAL DATA,798.29,FRIENDS &FAMILY FOST,ADDITIONAL PAYMENTS TO AGENCIES/CARERS,REDACTED,REDACTED
06.02.2023,CHILDREN AND FAMILIES,REDACTED PERSONAL DATA,798.29,FRIENDS &FAMILY FOST,ADDITIONAL PAYMENTS TO AGENCIES/CARERS,REDACTED,REDACTED
06.02.2023,CHILDREN AND FAMILIES,REDACTED PERSONAL DATA,798.29,FRIENDS &FAMILY FOST,ADDITIONAL PAYMENTS TO AGENCIES/CARERS,REDACTED,REDACTED
06.02.2023,CHILDREN AND FAMILIES,REDACTED PERSONAL DATA,826.28,FRIENDS &FAMILY FOST,PAYMENTS TO CARERS,REDACTED,REDACTED
06.02.2023,CHILDREN AND FAMILIES,REDACTED PERSONAL DATA,826.57,FRIENDS &FAMILY FOST,PAYMENTS TO CARERS,REDACTED,REDACTED
06.02.2023,CHILDREN AND FAMILIES,REDACTED PERSONAL DATA,841.43,FRIENDS &FAMILY FOST,PAYMENTS TO CARERS,REDACTED,REDACTED
06.02.2023,CHILDREN AND FAMILIES,REDACTED PERSONAL DATA,841.43,FRIENDS &FAMILY FOST,PAYMENTS TO CARERS,REDACTED,REDACTED
06.02.2023,CHILDREN AND FAMILIES,REDACTED PERSONAL DATA,841.43,FRIENDS &FAMILY FOST,PAYMENTS TO CARERS,REDACTED,REDACTED
06.02.2023,CHILDREN AND FAMILIES,REDACTED PERSONAL DATA,841.43,FRIENDS &FAMILY FOST,PAYMENTS TO CARERS,REDACTED,REDACTED
06.02.2023,CHILDREN AND FAMILIES,REDACTED PERSONAL DATA,841.45,FRIENDS &FAMILY FOST,PAYMENTS TO CARERS,REDACTED,REDACTED
06.02.2023,CHILDREN AND FAMILIES,REDACTED PERSONAL DATA,870.86,FRIENDS &FAMILY FOST,ADDITIONAL PAYMENTS TO AGENCIES/CARERS,REDACTED,REDACTED
06.02.2023,CHILDREN AND FAMILIES,REDACTED PERSONAL DATA,870.86,FRIENDS &FAMILY FOST,ADDITIONAL PAYMENTS TO AGENCIES/CARERS,REDACTED,REDACTED
06.02.2023,CHILDREN AND FAMILIES,REDACTED PERSONAL DATA,925.71,FRIENDS &FAMILY FOST,ADDITIONAL PAYMENTS TO AGENCIES/CARERS,REDACTED,REDACTED
06.02.2023,CHILDREN AND FAMILIES,REDACTED PERSONAL DATA,925.86,FRIENDS &FAMILY FOST,ADDITIONAL PAYMENTS TO AGENCIES/CARERS,REDACTED,REDACTED
06.02.2023,CHILDREN AND FAMILIES,REDACTED PERSONAL DATA,959.28,FRIENDS &FAMILY FOST,PAYMENTS TO CARERS,REDACTED,REDACTED
06.02.2023,CHILDREN AND FAMILIES,REDACTED PERSONAL DATA,974.28,FRIENDS &FAMILY FOST,PAYMENTS TO CARERS,REDACTED,REDACTED
06.02.2023,CHILDREN AND FAMILIES,REDACTED PERSONAL DATA,974.28,FRIENDS &FAMILY FOST,PAYMENTS TO CARERS,REDACTED,REDACTED
06.02.2023,CHILDREN AND FAMILIES,REDACTED PERSONAL DATA,974.28,FRIENDS &FAMILY FOST,PAYMENTS TO CARERS,REDACTED,REDACTED
06.02.2023,CHILDREN AND FAMILIES,REDACTED PERSONAL DATA,974.28,FRIENDS &FAMILY FOST,PAYMENTS TO CARERS,REDACTED,REDACTED
06.02.2023,CHILDREN AND FAMILIES,REDACTED PERSONAL DATA,974.28,FRIENDS &FAMILY FOST,PAYMENTS TO CARERS,REDACTED,REDACTED
06.02.2023,CHILDREN AND FAMILIES,REDACTED PERSONAL DATA,974.28,FRIENDS &FAMILY FOST,PAYMENTS TO CARERS,REDACTED,REDACTED
06.02.2023,CHILDREN AND FAMILIES,REDACTED PERSONAL DATA,974.28,FRIENDS &FAMILY FOST,PAYMENTS TO CARERS,REDACTED,REDACTED
06.02.2023,CHILDREN AND FAMILIES,REDACTED PERSONAL DATA,974.28,FRIENDS &FAMILY FOST,PAYMENTS TO CARERS,REDACTED,REDACTED
06.02.2023,CHILDREN AND FAMILIES,REDACTED PERSONAL DATA,974.28,FRIENDS &FAMILY FOST,PAYMENTS TO CARERS,REDACTED,REDACTED
06.02.2023,CHILDREN AND FAMILIES,REDACTED PERSONAL DATA,974.28,FRIENDS &FAMILY FOST,PAYMENTS TO CARERS,REDACTED,REDACTED
06.02.2023,CHILDREN AND FAMILIES,REDACTED PERSONAL DATA,974.28,FRIENDS &FAMILY FOST,PAYMENTS TO CARERS,REDACTED,REDACTED
06.02.2023,CHILDREN AND FAMILIES,REDACTED PERSONAL DATA,974.28,FRIENDS &FAMILY FOST,PAYMENTS TO CARERS,REDACTED,REDACTED
06.02.2023,CHILDREN AND FAMILIES,REDACTED PERSONAL DATA,"1,006.57",FRIENDS &FAMILY FOST,PAYMENTS TO CARERS,REDACTED,REDACTED
06.02.2023,CHILDREN AND FAMILIES,REDACTED PERSONAL DATA,"1,013.14",FRIENDS &FAMILY FOST,PAYMENTS TO CARERS,REDACTED,REDACTED
06.02.2023,CHILDREN AND FAMILIES,REDACTED PERSONAL DATA,"1,027.42",FRIENDS &FAMILY FOST,PAYMENTS TO CARERS,REDACTED,REDACTED
06.02.2023,CHILDREN AND FAMILIES,REDACTED PERSONAL DATA,"1,040.58",FRIENDS &FAMILY FOST,PAYMENTS TO CARERS,REDACTED,REDACTED
06.02.2023,CHILDREN AND FAMILIES,REDACTED PERSONAL DATA,"1,062.86",FRIENDS &FAMILY FOST,PAYMENTS TO CARERS,REDACTED,REDACTED
06.02.2023,CHILDREN AND FAMILIES,REDACTED PERSONAL DATA,"1,076.57",FRIENDS &FAMILY FOST,ADDITIONAL PAYMENTS TO AGENCIES/CARERS,REDACTED,REDACTED
06.02.2023,CHILDREN AND FAMILIES,REDACTED PERSONAL DATA,"3,547.62",FRIENDS &FAMILY FOST,ADDITIONAL PAYMENTS TO AGENCIES/CARERS,REDACTED,REDACTED
06.02.2023,CHILDREN AND FAMILIES,REDACTED PERSONAL DATA,"1,000.00",LEAVING CARE GRANT,OTHER PAYMENTS FOR CLIENTS,REDACTED,REDACTED
06.02.2023,CHILDREN AND FAMILIES,REDACTED PERSONAL DATA,"2,000.00",LEAVING CARE GRANT,OTHER PAYMENTS FOR CLIENTS,REDACTED,REDACTED
06.02.2023,CHILDREN AND FAMILIES,SITTARA LTD,"1,457.00",SEMI-IND CARELEAVERS,EXTERNAL AGENCIES AND BODIES,2103619618,1000080857
06.02.2023,CHILDREN AND FAMILIES,ELLIOT LEIGH TLC LTD,"1,651.50",SEMI-IND CARELEAVERS,EXTERNAL AGENCIES AND BODIES,2103619617,1000079022
06.02.2023,CHILDREN AND FAMILIES,NETPEX LTD CORPORATE SERVICES,"1,964.38",SEMI-IND CARELEAVERS,EXTERNAL AGENCIES AND BODIES,2103619613,1000076073
06.02.2023,CHILDREN AND FAMILIES,NETPEX LTD CORPORATE SERVICES,"2,546.40",SEMI-IND CARELEAVERS,EXTERNAL AGENCIES AND BODIES,2103619619,1000076073
06.02.2023,CHILDREN AND FAMILIES,NETPEX LTD CORPORATE SERVICES,"2,794.40",SEMI-IND CARELEAVERS,EXTERNAL AGENCIES AND BODIES,2103619609,1000076073
06.02.2023,CHILDREN AND FAMILIES,NETPEX LTD CORPORATE SERVICES,"3,613.02",SEMI-IND CARELEAVERS,EXTERNAL AGENCIES AND BODIES,2103619612,1000076073
06.02.2023,CHILDREN AND FAMILIES,NETPEX LTD CORPORATE SERVICES,"4,406.65",SEMI-IND CARELEAVERS,EXTERNAL AGENCIES AND BODIES,2103619607,1000076073
06.02.2023,CHILDREN AND FAMILIES,DREAMFO HOUSING LTD,265.71,SEMI-IND LAC 16-17,OTHER PAYMENTS FOR CLIENTS,2103619622,1000087273
06.02.2023,CHILDREN AND FAMILIES,DREAMFO HOUSING LTD,265.71,SEMI-IND LAC 16-17,OTHER PAYMENTS FOR CLIENTS,2103619625,1000087273
06.02.2023,CHILDREN AND FAMILIES,OPENMINDS SOCIAL CARE,270.14,SEMI-IND LAC 16-17,OTHER PAYMENTS FOR CLIENTS,2103619628,1000085800
06.02.2023,CHILDREN AND FAMILIES,REDACTED PERSONAL DATA,714.29,SEMI-IND LAC 16-17,OTHER PAYMENTS FOR CLIENTS,REDACTED,REDACTED
06.02.2023,CHILDREN AND FAMILIES,NETPEX LTD CORPORATE SERVICES,"2,775.00",SEMI-IND LAC 16-17,EXTERNAL AGENCIES AND BODIES,2103619630,1000076073
06.02.2023,CHILDREN AND FAMILIES,DREAMFO HOUSING LTD,"3,321.20",SEMI-IND LAC 16-17,EXTERNAL AGENCIES AND BODIES,2103619626,1000087273
06.02.2023,CHILDREN AND FAMILIES,DREAMFO HOUSING LTD,"3,586.91",SEMI-IND LAC 16-17,EXTERNAL AGENCIES AND BODIES,2103619624,1000087273
06.02.2023,CHILDREN AND FAMILIES,OPENMINDS SOCIAL CARE,"4,318.08",SEMI-IND LAC 16-17,EXTERNAL AGENCIES AND BODIES,2103619629,1000085800
06.02.2023,CHILDREN AND FAMILIES,DREAMFO HOUSING LTD,"5,712.64",SEMI-IND LAC 16-17,EXTERNAL AGENCIES AND BODIES,2103619623,1000087273
06.02.2023,CHILDREN AND FAMILIES,GREATER LONDON FOSTERING,"1,882.01",STAYPUT- FOST CARERS,EXTERNAL AGENCIES AND BODIES,2103619610,1000029184
06.02.2023,CHILDREN AND FAMILIES,GREATER LONDON FOSTERING,"2,214.02",STAYPUT- FOST CARERS,EXTERNAL AGENCIES AND BODIES,2103619611,1000029184
06.02.2023,CHILDREN AND FAMILIES,BY THE BRIDGE LTD,"3,321.34",STAYPUT- FOST CARERS,EXTERNAL AGENCIES AND BODIES,2103619615,1000043961
06.02.2023,CHILDREN AND FAMILIES,ELLIOT LEIGH TLC LTD,"1,758.01",UASC CARELEAVERS,EXTERNAL AGENCIES AND BODIES,2103619616,1000079022
06.02.2023,CHILDREN AND FAMILIES,ELLIOT LEIGH TLC LTD,"1,758.01",UASC CARELEAVERS,EXTERNAL AGENCIES AND BODIES,2103619620,1000079022
06.02.2023,CHILDREN AND FAMILIES,ELLIOT LEIGH TLC LTD,"1,771.34",UASC CARELEAVERS,EXTERNAL AGENCIES AND BODIES,2103619614,1000079022
06.02.2023,CHILDREN AND FAMILIES,NETPEX LTD CORPORATE SERVICES,"2,170.00",UASC CARELEAVERS,EXTERNAL AGENCIES AND BODIES,2103619608,1000076073
06.02.2023,COMMUNITIES,WILSON SOLICITORS LLP,500.00,NO RECOURSE TO PUBLIC FUNDS,LEGAL FEES & COURT COSTS,5902564511,1000084191
06.02.2023,COMMUNITIES,LONDON CARE LTD,738.12,NO RECOURSE TO PUBLIC FUNDS,HOMECARE - C&V,2103619684,1000003398
06.02.2023,COMMUNITIES,LONDON CARE LTD,"1,320.15",NO RECOURSE TO PUBLIC FUNDS,HOMECARE - C&V,2103619665,1000003398
06.02.2023,COMMUNITIES,PRIORY CARE SERVICES LTD,"1,418.86",NO RECOURSE TO PUBLIC FUNDS,HOMECARE - C&V,2103619770,1000088866
06.02.2023,COMMUNITIES,REDACTED PERSONAL DATA,350.00,UKRAINIAN PROGRAMME,GRANTS,REDACTED,REDACTED
06.02.2023,COMMUNITIES,REDACTED PERSONAL DATA,350.00,UKRAINIAN PROGRAMME,GRANTS,REDACTED,REDACTED
06.02.2023,COMMUNITIES,REDACTED PERSONAL DATA,350.00,UKRAINIAN PROGRAMME,GRANTS,REDACTED,REDACTED
06.02.2023,COMMUNITIES,REDACTED PERSONAL DATA,350.00,UKRAINIAN PROGRAMME,GRANTS,REDACTED,REDACTED
06.02.2023,COMMUNITIES,REDACTED PERSONAL DATA,350.00,UKRAINIAN PROGRAMME,GRANTS,REDACTED,REDACTED
06.02.2023,COMMUNITIES HRA,BROWNING EST MGMT ASSN,"13,246.01",BROWNING EMB,M&M ALLOWANCE CO-OPS,5902563727,1000059362
06.02.2023,COMMUNITIES HRA,EDF ENERGY PLC,890.90,TRA HALLS (REPAIRS),ELECTRICITY,5902564635,1008746
06.02.2023,COMMUNITIES HRA,EDF ENERGY PLC,"1,311.67",TRA HALLS (REPAIRS),ELECTRICITY,5902564624,1008746
06.02.2023,CUSTOMER EXPERIENCE HGF,EMMA MARINOS COACHING LIMITED,825.00,IT MANAGEMENT,TRAINING,5902563963,1000086554
06.02.2023,CUSTOMER EXPERIENCE HGF,ITS DESIGNS LIMITED,397.34,LAMBETH RESPONSE,EQUIPMENT PURCHASE & REPAIR,5902564663,1000067887
06.02.2023,DSG,KINTORE WAY CHILDRENS CENTRE,"294,000.00",KINTORE WAY CHILDRENS CENTRE,SCHOOLS CAPITATION,2103619526,5001000047
06.02.2023,DSG,BDO LLP,"3,106.00",SCHOOLS AUDIT,PAYMENTS FOR FINANCIAL SERVICES,5902564590,1000057898
06.02.2023,DSG,NPOWER LTD,365.96,SUMMERHOUSE,ELECTRICITY,5902563683,1000078994
06.02.2023,DSG,MOSSBOURNE VICTORIA PARK ACADEMY,294.00,VIRTUAL SCHOOL PP,SCHOOLS CAPITATION,2103619559,1000087905
06.02.2023,DSG,THE THINKING SCHOOLS ACADEMY TRUST,450.00,VIRTUAL SCHOOL PP,SCHOOLS CAPITATION,2103619558,1000088113
06.02.2023,DSG,BENSHAM MANOR SCHOOL,640.00,VIRTUAL SCHOOL PP,SCHOOLS CAPITATION,2103619554,1000079195
06.02.2023,DSG,OUR LADY OF THE ROSARY CATHOLIC SCHOOL,770.00,VIRTUAL SCHOOL PP,SCHOOLS CAPITATION,2103619557,1000073163
06.02.2023,DSG,THE SIGMA TRUST,896.65,VIRTUAL SCHOOL PP,SCHOOLS CAPITATION,2103619553,1000087993
06.02.2023,DSG,KING ETHELBERT SCHOOL,"1,157.00",VIRTUAL SCHOOL PP,SCHOOLS CAPITATION,2103619556,1000068498
06.02.2023,DSG,THE CHARTER SCHOOLS EDUCATIONAL TRUST,"1,500.00",VIRTUAL SCHOOL PP,SCHOOLS CAPITATION,2103619560,1000066949
06.02.2023,DSG,ST ETHELBERTS CATHOLIC PRIMARY SCHOOL,"1,500.00",VIRTUAL SCHOOL PP,SCHOOLS CAPITATION,2103619561,1000079327
06.02.2023,DSG,BEORMUND PRIMARY SCHOOL,"3,000.00",VIRTUAL SCHOOL PP,SCHOOLS CAPITATION,2103619551,5001000008
06.02.2023,DSG,RYE OAK PRIMARY SCHOOL,"4,500.00",VIRTUAL SCHOOL PP,SCHOOLS CAPITATION,2103619552,5001000059
06.02.2023,DSG,WALWORTH ACADEMY,"6,000.00",VIRTUAL SCHOOL PP,SCHOOLS CAPITATION,2103619555,1000062868
06.02.2023,EDUCATION,WALWORTH GARDEN LTD,700.00,ALC COMMUNITY LEARNING,GRANTS,5902564682,1000042204
06.02.2023,EDUCATION,WALWORTH GARDEN LTD,875.00,ALC COMMUNITY LEARNING,GRANTS,5902564682,1000042204
06.02.2023,EDUCATION,HATS GROUP LTD,"17,977.18",SCH TRANS � TRAVEL,EXTERNAL AGENCIES AND BODIES,5902564380,1000042743
06.02.2023,ENVIRONMENT AND LEISURE,CYB ENVIRONMENTAL LTD,700.00,CAPITAL PS (LEISURE),CONSTRUCTION FEES  - EXTERNAL,5902564077,1000079812
06.02.2023,ENVIRONMENT AND LEISURE,FRIENDS OF GALLEYWALL NATURE RESERVE,710.00,CAPITAL PS (LEISURE),CAPITAL GRANTS,5902563949,1000052377
06.02.2023,ENVIRONMENT AND LEISURE,ERECT ARCHITECTURE LTD,"1,000.00",CAPITAL PS (LEISURE),CONSTRUCTION SITE COSTS,5902564598,1000078487
06.02.2023,ENVIRONMENT AND LEISURE,DEBRA GOSLING,"1,550.00",CAPITAL PS (LEISURE),CONSTRUCTION FEES - ARCHITECT,5902564523,1000064666
06.02.2023,ENVIRONMENT AND LEISURE,STUDIO GIL LTD,"5,362.50",CAPITAL PS (LEISURE),CONSTRUCTION MAIN CONTRACT,5902563876,1000089337
06.02.2023,ENVIRONMENT AND LEISURE,STUDIO GIL LTD,"5,362.50",CAPITAL PS (LEISURE),CONSTRUCTION MAIN CONTRACT,5902563876,1000089337
06.02.2023,ENVIRONMENT AND LEISURE,STUART ROAD ALLOTMENT SOCIETY,"8,670.00",CAPITAL PS (LEISURE),CAPITAL GRANTS,5902563803,1000089161
06.02.2023,ENVIRONMENT AND LEISURE,F M CONWAY LTD,"31,438.69",CAPITAL PS (LEISURE),CONSTRUCTION FEES,2103619823,4001384
06.02.2023,ENVIRONMENT AND LEISURE,F M CONWAY LTD,"48,658.27",CAPITAL PS (LEISURE),CONSTRUCTION FEES,2103619822,4001384
06.02.2023,ENVIRONMENT AND LEISURE,F M CONWAY LTD,"98,655.29",CAPITAL PS (LEISURE),CONSTRUCTION,2103619827,4001384
06.02.2023,ENVIRONMENT AND LEISURE,F M CONWAY LTD,"167,378.76",CAPITAL PS (LEISURE),CONSTRUCTION FEES,2103619821,4001384
06.02.2023,ENVIRONMENT AND LEISURE,COTTRELL AND VERMEULEN ARCH LTD,"16,694.80",CAPITAL PS (REGEN),CONSTRUCTION FEES - ARCHITECT,5902563735,1000012119
06.02.2023,ENVIRONMENT AND LEISURE,BELL BRUSH COMPANY,940.65,MANAGEMENT TEAM,MATERIALS,5902564007,1259776
06.02.2023,ENVIRONMENT AND LEISURE,NHS SOUTH EAST LONDON CCG,"13,750.00",SEXUAL HEALTH - CONTRACEPTION,EXTERNAL AGENCIES AND BODIES,5902563987,1000085592
06.02.2023,ENVIRONMENT AND LEISURE,LONDON NORTH WEST UNIVERSITY HEALTHCARE NHS TRUST,501.62,SEXUAL HEALTH - STI,MEDICAL / HEALTH & SAFETY SERVICES,5902564648,1000075293
06.02.2023,ENVIRONMENT DIRECTORATE,F H BRUNDLE,374.80,ENGINEERING CRAFTS,MATERIALS,5902564669,1082714
06.02.2023,ENVIRONMENT DIRECTORATE,AUTO SISTANCE LTD,406.00,ENGINEERING CRAFTS,MATERIALS,5902564629,1000070536
06.02.2023,ENVIRONMENT DIRECTORATE,AUTO SISTANCE LTD,"1,044.00",ENGINEERING CRAFTS,MATERIALS,5902564626,1000070536
06.02.2023,ENVIRONMENT DIRECTORATE,SMI INT GROUP LTD,361.20,GROUNDS (CENTRAL),"CLOTHING, UNIFORMS & LAUNDRY",5902564484,1000076606
06.02.2023,ENVIRONMENT DIRECTORATE,CITY ELECTRICAL FACTORS LTD,266.85,PUBLIC LIGHTING,MATERIALS,5902564650,1003485
06.02.2023,ENVIRONMENT DIRECTORATE,CITY ELECTRICAL FACTORS LTD,284.25,PUBLIC LIGHTING,MATERIALS,5902564664,1003485
06.02.2023,ENVIRONMENT DIRECTORATE,CITY ELECTRICAL FACTORS LTD,681.32,PUBLIC LIGHTING,MATERIALS,5902564661,1003485
06.02.2023,ENVIRONMENT DIRECTORATE,F M CONWAY LTD,932.50,PUBLIC LIGHTING,MATERIALS,5902564691,1000002412
06.02.2023,ENVIRONMENT DIRECTORATE,HALDO DEVELOPMENTS LTD,"1,058.00",PUBLIC LIGHTING,MATERIALS,5902564609,1000029608
06.02.2023,ENVIRONMENT DIRECTORATE,ASD LIGHTING PLC,"1,210.00",PUBLIC LIGHTING,MATERIALS,5902564704,1000079671
06.02.2023,ENVIRONMENT DIRECTORATE,NAL LTD,"4,088.56",PUBLIC LIGHTING,MATERIALS,5902564699,1000063814
06.02.2023,ENVIRONMENT DIRECTORATE,HALDO DEVELOPMENTS LTD,"4,532.00",PUBLIC LIGHTING,MATERIALS,5902564614,1000029608
06.02.2023,ENVIRONMENT DIRECTORATE,MARWOOD ELECTRICAL COMPANY LTD,"15,580.50",PUBLIC LIGHTING,MATERIALS,5902564649,1001874
06.02.2023,ENVIRONMENT DIRECTORATE,MARK BAILEY ASSOCIATES LTD,"44,977.50",PUBLIC LIGHTING,MATERIALS,5902564646,1000061353
06.02.2023,ENVIRONMENT DIRECTORATE,MARK BAILEY ASSOCIATES LTD,"44,977.50",PUBLIC LIGHTING,MATERIALS,5902564647,1000061353
06.02.2023,ENVIRONMENT DIRECTORATE,SOCIETYWORKS LTD,"38,000.00",STREET CLEANSING,SOFTWARE,5902564587,1000089214
06.02.2023,F & C S EXCLUDING CORPORATE BUDGETS,TELSOLUTIONS LTD,659.64,ADMINISTRATIVE SUPPORT,TELEPHONES (MOBILES),5902564574,1000074033
06.02.2023,F & C S EXCLUDING CORPORATE BUDGETS,MRO PEOPLE LTD,765.00,ADMINISTRATIVE SUPPORT,TRAINING,5902563879,1000083017
06.02.2023,F & C S EXCLUDING CORPORATE BUDGETS,MRO PEOPLE LTD,"1,075.00",ADMINISTRATIVE SUPPORT,TRAINING,5902563879,1000083017
06.02.2023,F & C S EXCLUDING CORPORATE BUDGETS,GREENCROFT CONSULTING,"8,190.45",ADMINISTRATIVE SUPPORT,OTHER CONTRACTORS,5902564720,1000078147
06.02.2023,F & C S EXCLUDING CORPORATE BUDGETS,IEG4 LIMITED,"95,700.00",ADMINISTRATIVE SUPPORT,SOFTWARE,5902563985,1000083899
06.02.2023,F & C S EXCLUDING CORPORATE BUDGETS,BDO LLP,500.00,INTERNAL AUDIT CONTRACTS,PAYMENTS FOR FINANCIAL SERVICES,5902564590,1000057898
06.02.2023,F & C S EXCLUDING CORPORATE BUDGETS,BDO LLP,"22,849.00",INTERNAL AUDIT CONTRACTS,PAYMENTS FOR FINANCIAL SERVICES,5902564590,1000057898
06.02.2023,HOUSING HRA,LONDON UNDERGROUND LTD,297.50,CAPITAL PS (HRA),CONSTRUCTION FEES  - EXTERNAL,5902563961,1000059727
06.02.2023,HOUSING HRA,DAVID ROGERSON,300.00,CAPITAL PS (HRA),CONSTRUCTION FEES  - EXTERNAL,5902564400,1753617
06.02.2023,HOUSING HRA,SILVER DCC LTD,772.84,CAPITAL PS (HRA),CONSTRUCTION FEES  - EXTERNAL,5902564388,1000087546
06.02.2023,HOUSING HRA,SILVER DCC LTD,772.84,CAPITAL PS (HRA),CONSTRUCTION FEES  - EXTERNAL,5902564391,1000087546
06.02.2023,HOUSING HRA,CALFORD SEADEN (HEALTH & SAFETY) LTD,810.00,CAPITAL PS (HRA),CONSTRUCTION FEES,5902563849,1097125
06.02.2023,HOUSING HRA,SILVER DCC LTD,"1,181.19",CAPITAL PS (HRA),CONSTRUCTION FEES  - EXTERNAL,5902564401,1000087546
06.02.2023,HOUSING HRA,SILVER DCC LTD,"1,181.19",CAPITAL PS (HRA),CONSTRUCTION FEES  - EXTERNAL,5902564403,1000087546
06.02.2023,HOUSING HRA,SILVER DCC LTD,"1,181.19",CAPITAL PS (HRA),CONSTRUCTION FEES  - EXTERNAL,5902564405,1000087546
06.02.2023,HOUSING HRA,JAMES REMOVALS,"1,700.00",CAPITAL PS (HRA),CAPITAL GRANTS,5902564012,1000060016
06.02.2023,HOUSING HRA,BAILY  GARNER LLP,"2,151.10",CAPITAL PS (HRA),CONSTRUCTION FEES - EMPLOYERS AGENT,5902564409,1000663
06.02.2023,HOUSING HRA,BAILY  GARNER LLP,"2,221.64",CAPITAL PS (HRA),CONSTRUCTION FEES - EMPLOYERS AGENT,5902564409,1000663
06.02.2023,HOUSING HRA,MARTIN ARNOLD LTD,"2,236.89",CAPITAL PS (HRA),CONSTRUCTION FEES - EMPLOYERS AGENT,5902564482,1000076993
06.02.2023,HOUSING HRA,BAILY  GARNER LLP,"4,372.74",CAPITAL PS (HRA),CONSTRUCTION FEES - EMPLOYERS AGENT,5902564411,1000663
06.02.2023,HOUSING HRA,BB7 CONSULTING LIMITED,"7,950.00",CAPITAL PS (HRA),CONSTRUCTION FEES  - EXTERNAL,5902564711,1000089347
06.02.2023,HOUSING HRA,FAITHDEAN PLC,"13,227.67",CAPITAL PS (HRA),CONSTRUCTION MAIN CONTRACT -CERTIFICATED,2103619563,3000002188
06.02.2023,HOUSING HRA,CALFORD SEADEN LLP,"27,645.29",CAPITAL PS (HRA),CONSTRUCTION FEES  - EXTERNAL,5902564710,1061592
06.02.2023,HOUSING HRA,BELL PHILLIPS ARCHITECTS LTD,"33,720.00",CAPITAL PS (HRA),CONSTRUCTION FEES,5902563739,1000069307
06.02.2023,HOUSING HRA,CRS DRAWING AND DESIGN LTD,"54,940.00",CAPITAL PS (HRA),CONSTRUCTION,5902563484,1000085835
06.02.2023,HOUSING HRA,FAITHDEAN PLC,"55,041.29",CAPITAL PS (HRA),CONSTRUCTION MAIN CONTRACT -CERTIFICATED,2103619562,3000002188
06.02.2023,HOUSING HRA,STANDAGE & CO LTD,"63,513.19",CAPITAL PS (HRA),CONSTRUCTION MAIN CONTRACT -CERTIFICATED,2103619535,4002817
06.02.2023,HOUSING HRA,ARCHITECTURAL DECORATORS LTD,"118,843.66",CAPITAL PS (HRA),CONSTRUCTION MAIN CONTRACT -CERTIFICATED,2103619533,3000001065
06.02.2023,HOUSING HRA,FAITHDEAN PLC,"123,317.88",CAPITAL PS (HRA),CONSTRUCTION MAIN CONTRACT -CERTIFICATED,2103619564,3000002188
06.02.2023,HOUSING HRA,A & E ELKINS LTD,"151,511.08",CAPITAL PS (HRA),CONSTRUCTION MAIN CONTRACT -CERTIFICATED,2103619540,4012501
06.02.2023,HOUSING HRA,A & E ELKINS LTD,"169,963.45",CAPITAL PS (HRA),CONSTRUCTION MAIN CONTRACT -CERTIFICATED,2103619539,4012501
06.02.2023,HOUSING HRA,EQUANS REGENERATION LTD,"172,558.42",CAPITAL PS (HRA),CONSTRUCTION MAIN CONTRACT -CERTIFICATED,2103619826,3000002035
06.02.2023,HR & OT,SASHA HOARE,"1,490.00",CONTRACT COSTS � NON R/C,TRAINING,5902564080,1000080528
06.02.2023,HR & OT,PSI TALENT MEASUREMENT (UK) LTD,504.00,OCCUPATIONAL ASSESSMENT,PROFESSIONAL FEES,5902563660,1000008858
06.02.2023,HR & OT,PSI TALENT MEASUREMENT (UK) LTD,504.00,OCCUPATIONAL ASSESSMENT,PROFESSIONAL FEES,5902563661,1000008858
06.02.2023,HR & OT,PSI TALENT MEASUREMENT (UK) LTD,588.00,OCCUPATIONAL ASSESSMENT,PROFESSIONAL FEES,5902563657,1000008858
06.02.2023,HR & OT,WORKING ON WELLBEING LTD,"1,790.00",OPTIMA HEALTH,MEDICAL / HEALTH & SAFETY SERVICES,5902564708,1000077251
06.02.2023,LEISURE DIRECTORATE,NPOWER LTD,256.86,BURGESS AREA TEAM,ELECTRICITY,5902564502,1000078994
06.02.2023,LEISURE DIRECTORATE,NPOWER LTD,258.68,BURGESS AREA TEAM,ELECTRICITY,5902564262,1000078994
06.02.2023,LEISURE DIRECTORATE,NPOWER LTD,283.06,BURGESS AREA TEAM,ELECTRICITY,5902564319,1000078994
06.02.2023,LEISURE DIRECTORATE,NPOWER LTD,505.36,BURGESS AREA TEAM,ELECTRICITY,5902564485,1000078994
06.02.2023,LEISURE DIRECTORATE,NPOWER LTD,559.66,BURGESS AREA TEAM,ELECTRICITY,5902564317,1000078994
06.02.2023,LEISURE DIRECTORATE,NPOWER LTD,615.67,BURGESS AREA TEAM,ELECTRICITY,5902564298,1000078994
06.02.2023,LEISURE DIRECTORATE,NPOWER LTD,705.01,BURGESS AREA TEAM,ELECTRICITY,5902564261,1000078994
06.02.2023,LEISURE DIRECTORATE,NPOWER LTD,"1,104.38",BURGESS AREA TEAM,ELECTRICITY,5902564397,1000078994
06.02.2023,LEISURE DIRECTORATE,NPOWER LTD,"1,104.38",BURGESS AREA TEAM,ELECTRICITY,5902564416,1000078994
06.02.2023,LEISURE DIRECTORATE,NPOWER LTD,"1,152.78",BURGESS AREA TEAM,ELECTRICITY,5902564315,1000078994
06.02.2023,LEISURE DIRECTORATE,NPOWER LTD,"1,210.43",BURGESS AREA TEAM,ELECTRICITY,5902564427,1000078994
06.02.2023,LEISURE DIRECTORATE,NPOWER LTD,"1,278.34",BURGESS AREA TEAM,ELECTRICITY,5902564326,1000078994
06.02.2023,LEISURE DIRECTORATE,NPOWER LTD,"1,336.14",BURGESS AREA TEAM,ELECTRICITY,5902564372,1000078994
06.02.2023,LEISURE DIRECTORATE,NPOWER LTD,"1,391.81",BURGESS AREA TEAM,ELECTRICITY,5902564299,1000078994
06.02.2023,LEISURE DIRECTORATE,NPOWER LTD,"1,572.84",BURGESS AREA TEAM,ELECTRICITY,5902564450,1000078994
06.02.2023,LEISURE DIRECTORATE,NPOWER LTD,"1,604.11",BURGESS AREA TEAM,ELECTRICITY,5902564275,1000078994
06.02.2023,LEISURE DIRECTORATE,NPOWER LTD,333.96,CEMETERIES,ELECTRICITY,5902563200,1000078994
06.02.2023,LEISURE DIRECTORATE,NPOWER LTD,501.61,CEMETERIES,ELECTRICITY,5902563201,1000078994
06.02.2023,LEISURE DIRECTORATE,LISTER WILDER LTD,697.46,CEMETERIES,OTHER R&M,5902564592,1000056952
06.02.2023,LEISURE DIRECTORATE,WESTMINSTER WASTE,842.00,CEMETERIES,OTHER CONTRACTORS,5902564576,1000080933
06.02.2023,LEISURE DIRECTORATE,NPOWER LTD,-464.77,DULWICH AREA TEAM,ELECTRICITY,5902564101,1000078994
06.02.2023,LEISURE DIRECTORATE,PALMSTEAD NURSERIES LTD,300.70,DULWICH AREA TEAM,GROUNDS MAINTENANCE,5902564584,1000067566
06.02.2023,LEISURE DIRECTORATE,NPOWER LTD,565.25,DULWICH AREA TEAM,ELECTRICITY,5902564676,1000078994
06.02.2023,LEISURE DIRECTORATE,NPOWER LTD,582.36,DULWICH AREA TEAM,ELECTRICITY,5902564404,1000078994
06.02.2023,LEISURE DIRECTORATE,NPOWER LTD,600.51,DULWICH AREA TEAM,ELECTRICITY,5902564674,1000078994
06.02.2023,LEISURE DIRECTORATE,NPOWER LTD,624.00,DULWICH AREA TEAM,ELECTRICITY,5902564670,1000078994
06.02.2023,LEISURE DIRECTORATE,NPOWER LTD,646.66,DULWICH AREA TEAM,ELECTRICITY,5902564160,1000078994
06.02.2023,LEISURE DIRECTORATE,NPOWER LTD,646.66,DULWICH AREA TEAM,ELECTRICITY,5902564163,1000078994
06.02.2023,LEISURE DIRECTORATE,NPOWER LTD,721.83,DULWICH AREA TEAM,ELECTRICITY,5902564668,1000078994
06.02.2023,LEISURE DIRECTORATE,NPOWER LTD,727.49,DULWICH AREA TEAM,ELECTRICITY,5902564176,1000078994
06.02.2023,LEISURE DIRECTORATE,NPOWER LTD,"1,001.59",DULWICH AREA TEAM,ELECTRICITY,5902564164,1000078994
06.02.2023,LEISURE DIRECTORATE,NPOWER LTD,"1,029.84",DULWICH AREA TEAM,ELECTRICITY,5902564165,1000078994
06.02.2023,LEISURE DIRECTORATE,NPOWER LTD,"1,092.93",DULWICH AREA TEAM,ELECTRICITY,5902564162,1000078994
06.02.2023,LEISURE DIRECTORATE,NPOWER LTD,"1,108.62",DULWICH AREA TEAM,ELECTRICITY,5902564414,1000078994
06.02.2023,LEISURE DIRECTORATE,NPOWER LTD,"1,213.89",DULWICH AREA TEAM,ELECTRICITY,5902564173,1000078994
06.02.2023,LEISURE DIRECTORATE,RH WROUGHT IRON,"4,580.00",DULWICH AREA TEAM,OTHER R&M,2103619529,3000000680
06.02.2023,LEISURE DIRECTORATE,NPOWER LTD,503.83,GROVE VALE LIBRARY,ELECTRICITY,5902564095,1000078994
06.02.2023,LEISURE DIRECTORATE,NPOWER LTD,-287.83,SOUTHWARK AREA TEAM,ELECTRICITY,5902564253,1000078994
06.02.2023,LEISURE DIRECTORATE,NPOWER LTD,287.83,SOUTHWARK AREA TEAM,ELECTRICITY,5902564182,1000078994
06.02.2023,LEISURE DIRECTORATE,NPOWER LTD,287.83,SOUTHWARK AREA TEAM,ELECTRICITY,5902564306,1000078994
06.02.2023,LEISURE DIRECTORATE,NPOWER LTD,334.53,SOUTHWARK AREA TEAM,ELECTRICITY,5902564178,1000078994
06.02.2023,LEISURE DIRECTORATE,NPOWER LTD,354.91,SOUTHWARK AREA TEAM,ELECTRICITY,5902564196,1000078994
06.02.2023,LEISURE DIRECTORATE,NPOWER LTD,375.83,SOUTHWARK AREA TEAM,ELECTRICITY,5902564154,1000078994
06.02.2023,PLANNING & GROWTH,THIS SOLID GROUND LTD,"2,550.00","COURAGE YARD, SHAD THAMES",MARKETING & PUBLICITY SERVICES,5902564378,1000082494
06.02.2023,PLANNING & GROWTH,THIS SOLID GROUND LTD,"2,550.00","COURAGE YARD, SHAD THAMES",MARKETING & PUBLICITY SERVICES,5902564379,1000082494
06.02.2023,PLANNING & GROWTH,CANTERBURY PROPERTIES LIMITED,"14,254.00",OKR MASTER PLANNING,PROFESSIONAL FEES,5902564714,1000089355
06.02.2023,PLANNING & GROWTH,KNOX BHAVAN ARCHITECTS LLP,350.00,PROFESSIONAL SERVICES GENERAL,PROFESSIONAL FEES,5902564486,1000088675
06.02.2023,PLANNING & GROWTH,KNOX BHAVAN ARCHITECTS LLP,"1,365.91",PROFESSIONAL SERVICES GENERAL,PROFESSIONAL FEES,5902564500,1000088675
06.02.2023,PLANNING & GROWTH,KNOX BHAVAN ARCHITECTS LLP,"14,736.75",PROFESSIONAL SERVICES GENERAL,PROFESSIONAL FEES,5902564487,1000088675
06.02.2023,PLANNING & GROWTH,APEX LIFT & ESCALATOR ENGINEERS LTD,"4,777.00",TOWER WORKSHOPS,BUILDING R&M,5902564675,1000088760
06.02.2023,PUBLIC HEALTH,NHS SOUTH EAST LONDON CCG,"55,000.00",HEALTH CHECKS CONTRACTS,EXTERNAL AGENCIES AND BODIES,5902563984,1000085592
06.02.2023,PUBLIC HEALTH,JAEGAR ACADEMY,503.00,HOLIDAY ACTIVITIES & FOOD,EXTERNAL AGENCIES AND BODIES,5902564429,1000089108
06.02.2023,PUBLIC HEALTH,PRO TOUCH SA,"1,624.00",HOLIDAY ACTIVITIES & FOOD,EXTERNAL AGENCIES AND BODIES,5902563833,1000074843
06.02.2023,PUBLIC HEALTH,MARK JENNER ASSOCIATES LTD,"2,288.00",PH DIRECTOR'S TEAM,PROFESSIONAL FEES,5902564506,1000081103
06.02.2023,RESIDENT SERVICES,PARTNERSHIP MEDIA GROUP,"1,250.00",PECKHAM,TRAINING,5902564703,1000050132
06.02.2023,RESIDENT SERVICES,THE CONSERVATION VOLUNTEERS,"3,600.00",PECKHAM,GROUNDS MAINTENANCE,5902564716,1872821
06.02.2023,RESIDENT SERVICES,WILLOW ESTATE AGENTS (LONDON) LTD,467.00,TA PLACEMENTS,EXTERNAL AGENCIES AND BODIES,5902564568,1000060607
06.02.2023,RESIDENT SERVICES,HOMES 2 LET UK LTD,785.00,TA PLACEMENTS,EXTERNAL AGENCIES AND BODIES,5902564468,1000079868
06.02.2023,RESIDENT SERVICES,CITYGLEN LTD,"1,170.00",TA PLACEMENTS,EXTERNAL AGENCIES AND BODIES,5902564467,1000026239
06.02.2023,RESIDENT SERVICES,CITYGLEN LTD,"1,350.00",TA PLACEMENTS,EXTERNAL AGENCIES AND BODIES,5902564471,1000026239
06.02.2023,RESIDENT SERVICES,CITYGLEN LTD,"1,395.00",TA PLACEMENTS,EXTERNAL AGENCIES AND BODIES,5902564465,1000026239
06.02.2023,RESIDENT SERVICES,CITYGLEN LTD,"1,395.00",TA PLACEMENTS,EXTERNAL AGENCIES AND BODIES,5902564466,1000026239
06.02.2023,RESIDENT SERVICES,CITYGLEN LTD,"1,395.00",TA PLACEMENTS,EXTERNAL AGENCIES AND BODIES,5902564470,1000026239
06.02.2023,RESIDENT SERVICES,WILLOW ESTATE AGENTS (LONDON) LTD,"2,090.50",TA PLACEMENTS,EXTERNAL AGENCIES AND BODIES,5902564568,1000060607
06.02.2023,RESIDENT SERVICES HGF,FRESHVIEW ESTATES,"1,853.73",HOMELESS PROJECTS,GRANTS,5902564454,1000086397
06.02.2023,RESIDENT SERVICES HGF,REDACTED PERSONAL DATA,"2,380.00",HOMELESS PROJECTS,GRANTS,REDACTED,REDACTED
06.02.2023,RESIDENT SERVICES HGF,HELP2RENT PROPERTY MANAGEMENT LTD,"2,780.59",HOMELESS PROJECTS,GRANTS,5902564428,1000082282
06.02.2023,RESIDENT SERVICES HGF,LOCAL GOVERNMENT & SOCIAL CARE OMBUDSMAN,"1,000.00",HOUSING OPTIONS,TRAINING,5902564679,1000080298
06.02.2023,RESIDENT SERVICES HGF,OAK HOUSING LTD,"3,641.26",PSL PLACEMENTS,EXTERNAL AGENCIES AND BODIES,5902564628,1000079310
06.02.2023,RESIDENT SERVICES HGF,OAK HOUSING LTD,"3,641.26",PSL PLACEMENTS,EXTERNAL AGENCIES AND BODIES,5902564686,1000079310
06.02.2023,RESIDENT SERVICES HGF,LODGISTICS ESTATES,"9,972.27",PSL PLACEMENTS,EXTERNAL AGENCIES AND BODIES,5902564473,1000080324
06.02.2023,RESIDENT SERVICES HGF,PATHFINDER GTM LTD,770.00,RAPID REHOUSING,EXTERNAL AGENCIES AND BODIES,5902564539,1000087534
06.02.2023,RESIDENT SERVICES HGF,STEF & PHILIPS LTD,"54,313.00",RAPID REHOUSING,EXTERNAL AGENCIES AND BODIES,5902564385,1000088522
06.02.2023,SBS OPERATIONS,PEARSON GLAZING LIMITED,414.68,BOROUGH & BANKSIDE DD,MATERIALS,5902564493,1891977
06.02.2023,SBS OPERATIONS,AKW MEDI-CARE LTD,552.37,SBS IN-HOUR EMERGENCIES,MATERIALS,5902564581,1000047103
06.02.2023,SBS OPERATIONS,AKW MEDI-CARE LTD,552.37,SBS IN-HOUR EMERGENCIES,MATERIALS,5902564582,1000047103
06.02.2023,SOUTHWARK BUILDING SERVICES,INDUSTRIAL CHEMICAL EXPERTS LIMITED,"1,295.00",STORES/LOGISTICS,CREDITORS -GR/IR CLEARING ACCOUNT,5902564634,1000083167
06.02.2023,SOUTHWARK BUILDING SERVICES,INDUSTRIAL CHEMICAL EXPERTS LIMITED,"1,990.00",STORES/LOGISTICS,CREDITORS -GR/IR CLEARING ACCOUNT,5902564634,1000083167
06.02.2023,SOUTHWARK BUILDING SERVICES,FOREMOST PRO LTD,"2,000.00",STORES/LOGISTICS,CREDITORS -GR/IR CLEARING ACCOUNT,5902564639,1000084218
06.02.2023,SOUTHWARK BUILDING SERVICES,CROSSFOLD ELECTRICAL WHOLESALERS,"3,252.50",STORES/LOGISTICS,CREDITORS -GR/IR CLEARING ACCOUNT,5902564595,1918395
06.02.2023,SOUTHWARK BUILDING SERVICES,KEMICO LIMITED,"6,840.00",STORES/LOGISTICS,CREDITORS -GR/IR CLEARING ACCOUNT,5902564593,1000030226
07.02.2023,ADULT SOCIAL CARE,DERWENT RESIDENTIAL CARE LTD,459.00,APPOINTEESHIPS,OTHER PAYMENTS FOR CLIENTS,5902564904,1000069967
07.02.2023,ADULT SOCIAL CARE,REDACTED PERSONAL DATA,488.00,APPOINTEESHIPS,OTHER PAYMENTS FOR CLIENTS,REDACTED,REDACTED
07.02.2023,ADULT SOCIAL CARE,THE RIVERSIDE GROUP LTD,535.08,APPOINTEESHIPS,OTHER PAYMENTS FOR CLIENTS,5902564894,1000069625
07.02.2023,ADULT SOCIAL CARE,THE RIVERSIDE GROUP LTD,617.40,APPOINTEESHIPS,OTHER PAYMENTS FOR CLIENTS,5902564900,1000069625
07.02.2023,ADULT SOCIAL CARE,BLACKFRIARS SETTLEMENT,"10,000.00",DIR OF ASC,EXTERNAL AGENCIES AND BODIES,5902564823,1000071456
07.02.2023,ADULT SOCIAL CARE,OLUMBA CARE LIMITED,304.00,LD LTS 18-64,SUPPORTED LIVING,2103619869,1000087828
07.02.2023,ADULT SOCIAL CARE,OLUMBA CARE LIMITED,640.00,LD LTS 18-64,SUPPORTED LIVING,2103619867,1000087828
07.02.2023,ADULT SOCIAL CARE,CONTACT PROFESSIONALS,684.00,LD LTS 18-64,SUPPORTED LIVING,2103619877,1000057263
07.02.2023,ADULT SOCIAL CARE,CONTACT PROFESSIONALS,912.00,LD LTS 18-64,SUPPORTED LIVING,2103619876,1000057263
07.02.2023,ADULT SOCIAL CARE,OLUMBA CARE LIMITED,988.00,LD LTS 18-64,SUPPORTED LIVING,2103619861,1000087828
07.02.2023,ADULT SOCIAL CARE,KENT HARRIER PROPERTY MANAGEMENT,"1,406.00",LD LTS 18-64,EXTERNAL AGENCIES AND BODIES,2103619874,1000078130
07.02.2023,ADULT SOCIAL CARE,KENT HARRIER PROPERTY MANAGEMENT,"1,510.00",LD LTS 18-64,EXTERNAL AGENCIES AND BODIES,2103619873,1000078130
07.02.2023,ADULT SOCIAL CARE,REDACTED PERSONAL DATA,"3,682.28",LD LTS 18-64,SUPPORTED LIVING,REDACTED,REDACTED
07.02.2023,ADULT SOCIAL CARE,MIHOMECARE LTD,286.13,MEM LTS 65+,HOMECARE - C&V,2103619929,1000042594
07.02.2023,ADULT SOCIAL CARE,MIHOMECARE LTD,"1,883.46",MEM LTS 65+,HOMECARE - C&V,2103619905,1000042594
07.02.2023,ADULT SOCIAL CARE,MIHOMECARE LTD,"3,387.89",MEM LTS 65+,HOMECARE - C&V,2103619894,1000042594
07.02.2023,ADULT SOCIAL CARE,OLUMBA CARE LIMITED,271.60,MH LTS 18-64,SUPPORTED LIVING,2103619870,1000087828
07.02.2023,ADULT SOCIAL CARE,OLUMBA CARE LIMITED,456.00,MH LTS 18-64,SUPPORTED LIVING,2103619866,1000087828
07.02.2023,ADULT SOCIAL CARE,PAULWAYS PET RESORT,"3,600.00",MH LTS 18-64,OTHER PAYMENTS FOR CLIENTS,2103619950,1068767
07.02.2023,ADULT SOCIAL CARE,PAULWAYS PET RESORT,"3,830.50",MH LTS 18-64,OTHER PAYMENTS FOR CLIENTS,2103619871,1068767
07.02.2023,ADULT SOCIAL CARE,MIHOMECARE LTD,489.28,MH LTS 65+,HOMECARE - C&V,2103619940,1000042594
07.02.2023,ADULT SOCIAL CARE,MIHOMECARE LTD,330.43,PHY LTS 18-64,HOMECARE - C&V,2103619890,1000042594
07.02.2023,ADULT SOCIAL CARE,MIHOMECARE LTD,392.31,PHY LTS 18-64,HOMECARE - C&V,2103619917,1000042594
07.02.2023,ADULT SOCIAL CARE,BUDDI LTD,594.00,PHY LTS 18-64,EQUIPMENT PURCHASE & REPAIR,2103619941,1000067243
07.02.2023,ADULT SOCIAL CARE,MIHOMECARE LTD,"1,264.69",PHY LTS 18-64,HOMECARE - C&V,2103619925,1000042594
07.02.2023,ADULT SOCIAL CARE,MIHOMECARE LTD,281.53,PHY LTS 65+,HOMECARE - C&V,2103619924,1000042594
07.02.2023,ADULT SOCIAL CARE,MIHOMECARE LTD,286.23,PHY LTS 65+,HOMECARE - C&V,2103619927,1000042594
07.02.2023,ADULT SOCIAL CARE,MIHOMECARE LTD,297.35,PHY LTS 65+,HOMECARE - C&V,2103619891,1000042594
07.02.2023,ADULT SOCIAL CARE,MIHOMECARE LTD,369.33,PHY LTS 65+,HOMECARE - C&V,2103619913,1000042594
07.02.2023,ADULT SOCIAL CARE,MIHOMECARE LTD,443.15,PHY LTS 65+,HOMECARE - C&V,2103619899,1000042594
07.02.2023,ADULT SOCIAL CARE,ELIMHOUSE COMMUNITY ASSOCIATION,450.00,PHY LTS 65+,DAYCARE,2103619880,1000076454
07.02.2023,ADULT SOCIAL CARE,ELIMHOUSE COMMUNITY ASSOCIATION,450.00,PHY LTS 65+,DAYCARE,2103619881,1000076454
07.02.2023,ADULT SOCIAL CARE,OLUMBA CARE LIMITED,475.00,PHY LTS 65+,HOMECARE - SPOT,2103619859,1000087828
07.02.2023,ADULT SOCIAL CARE,OLUMBA CARE LIMITED,513.00,PHY LTS 65+,HOMECARE - SPOT,2103619862,1000087828
07.02.2023,ADULT SOCIAL CARE,MIHOMECARE LTD,526.26,PHY LTS 65+,HOMECARE - C&V,2103619918,1000042594
07.02.2023,ADULT SOCIAL CARE,MIHOMECARE LTD,531.41,PHY LTS 65+,HOMECARE - C&V,2103619932,1000042594
07.02.2023,ADULT SOCIAL CARE,MIHOMECARE LTD,535.46,PHY LTS 65+,HOMECARE - C&V,2103619923,1000042594
07.02.2023,ADULT SOCIAL CARE,MIHOMECARE LTD,576.99,PHY LTS 65+,HOMECARE - C&V,2103619921,1000042594
07.02.2023,ADULT SOCIAL CARE,MIHOMECARE LTD,581.60,PHY LTS 65+,HOMECARE - C&V,2103619933,1000042594
07.02.2023,ADULT SOCIAL CARE,MIHOMECARE LTD,586.23,PHY LTS 65+,HOMECARE - C&V,2103619909,1000042594
07.02.2023,ADULT SOCIAL CARE,MIHOMECARE LTD,586.25,PHY LTS 65+,HOMECARE - C&V,2103619908,1000042594
07.02.2023,ADULT SOCIAL CARE,MIHOMECARE LTD,623.14,PHY LTS 65+,HOMECARE - C&V,2103619904,1000042594
07.02.2023,ADULT SOCIAL CARE,MIHOMECARE LTD,627.79,PHY LTS 65+,HOMECARE - C&V,2103619903,1000042594
07.02.2023,ADULT SOCIAL CARE,MIHOMECARE LTD,632.41,PHY LTS 65+,HOMECARE - C&V,2103619916,1000042594
07.02.2023,ADULT SOCIAL CARE,ELIMHOUSE COMMUNITY ASSOCIATION,650.00,PHY LTS 65+,DAYCARE,2103619882,1000076454
07.02.2023,ADULT SOCIAL CARE,MIHOMECARE LTD,650.94,PHY LTS 65+,HOMECARE - C&V,2103619911,1000042594
07.02.2023,ADULT SOCIAL CARE,OLUMBA CARE LIMITED,665.00,PHY LTS 65+,HOMECARE - SPOT,2103619865,1000087828
07.02.2023,ADULT SOCIAL CARE,MIHOMECARE LTD,706.27,PHY LTS 65+,HOMECARE - C&V,2103619939,1000042594
07.02.2023,ADULT SOCIAL CARE,MIHOMECARE LTD,710.85,PHY LTS 65+,HOMECARE - C&V,2103619934,1000042594
07.02.2023,ADULT SOCIAL CARE,MIHOMECARE LTD,733.01,PHY LTS 65+,HOMECARE - C&V,2103619914,1000042594
07.02.2023,ADULT SOCIAL CARE,MIHOMECARE LTD,821.54,PHY LTS 65+,HOMECARE - C&V,2103619936,1000042594
07.02.2023,ADULT SOCIAL CARE,MIHOMECARE LTD,853.92,PHY LTS 65+,HOMECARE - C&V,2103619922,1000042594
07.02.2023,ADULT SOCIAL CARE,MIHOMECARE LTD,872.39,PHY LTS 65+,HOMECARE - C&V,2103619901,1000042594
07.02.2023,ADULT SOCIAL CARE,MIHOMECARE LTD,936.98,PHY LTS 65+,HOMECARE - C&V,2103619900,1000042594
07.02.2023,ADULT SOCIAL CARE,MIHOMECARE LTD,941.65,PHY LTS 65+,HOMECARE - C&V,2103619938,1000042594
07.02.2023,ADULT SOCIAL CARE,MIHOMECARE LTD,983.15,PHY LTS 65+,HOMECARE - C&V,2103619926,1000042594
07.02.2023,ADULT SOCIAL CARE,MIHOMECARE LTD,"1,066.30",PHY LTS 65+,HOMECARE - C&V,2103619915,1000042594
07.02.2023,ADULT SOCIAL CARE,MIHOMECARE LTD,"1,075.52",PHY LTS 65+,HOMECARE - C&V,2103619937,1000042594
07.02.2023,ADULT SOCIAL CARE,MIHOMECARE LTD,"1,260.10",PHY LTS 65+,HOMECARE - C&V,2103619907,1000042594
07.02.2023,ADULT SOCIAL CARE,MIHOMECARE LTD,"1,292.64",PHY LTS 65+,HOMECARE - C&V,2103619897,1000042594
07.02.2023,ADULT SOCIAL CARE,OLUMBA CARE LIMITED,"1,311.00",PHY LTS 65+,SUPPORTED LIVING,2103619864,1000087828
07.02.2023,ADULT SOCIAL CARE,MIHOMECARE LTD,"1,853.72",PHY LTS 65+,HOMECARE - C&V,2103619895,1000042594
07.02.2023,ADULT SOCIAL CARE,MIHOMECARE LTD,"1,915.50",PHY LTS 65+,HOMECARE - C&V,2103619919,1000042594
07.02.2023,ADULT SOCIAL CARE,MIHOMECARE LTD,"1,920.16",PHY LTS 65+,HOMECARE - C&V,2103619920,1000042594
07.02.2023,ADULT SOCIAL CARE,MIHOMECARE LTD,"2,197.06",PHY LTS 65+,HOMECARE - C&V,2103619892,1000042594
07.02.2023,ADULT SOCIAL CARE,MIHOMECARE LTD,"2,225.00",PHY LTS 65+,HOMECARE - C&V,2103619912,1000042594
07.02.2023,ADULT SOCIAL CARE,MIHOMECARE LTD,"2,247.83",PHY LTS 65+,HOMECARE - C&V,2103619931,1000042594
07.02.2023,ADULT SOCIAL CARE,OLUMBA CARE LIMITED,"2,394.00",PHY LTS 65+,HOMECARE - SPOT,2103619868,1000087828
07.02.2023,ADULT SOCIAL CARE,OLUMBA CARE LIMITED,"2,774.00",PHY LTS 65+,HOMECARE - SPOT,2103619857,1000087828
07.02.2023,ADULT SOCIAL CARE,OLUMBA CARE LIMITED,"2,812.00",PHY LTS 65+,HOMECARE - SPOT,2103619863,1000087828
07.02.2023,ADULT SOCIAL CARE,MIHOMECARE LTD,"4,661.93",PHY LTS 65+,HOMECARE - C&V,2103619930,1000042594
07.02.2023,ADULT SOCIAL CARE,SSE ENERGY SUPPLY LIMITED,"1,041.13",RIVERSIDE CHERRY GDN,ELECTRICITY,5902564874,1000068376
07.02.2023,ADULT SOCIAL CARE,SSE ENERGY SUPPLY LIMITED,"1,052.27",RIVERSIDE CHERRY GDN,ELECTRICITY,5902564875,1000068376
07.02.2023,ASSET MANAGEMENT,GC CONSTRUCT LTD,400.00,DISREPAIR,BUILDING R&M,2103618862,3000002106
07.02.2023,ASSET MANAGEMENT,GC CONSTRUCT LTD,"1,825.24",DISREPAIR,BUILDING R&M,2103619528,3000002106
07.02.2023,ASSET MANAGEMENT HGF,DISPOSABLES AND CATERING SUPPLIES LTD,538.70,160 TOOLEY ST.,BUILDING R&M,5902564742,1000082869
07.02.2023,ASSET MANAGEMENT HGF,DISPOSABLES AND CATERING SUPPLIES LTD,"1,346.75",160 TOOLEY ST.,BUILDING R&M,5902564740,1000082869
07.02.2023,CENTRAL FUNCTIONS,EDF ENERGY PLC,585.51,HEATING ACCOUNT,ELECTRICITY,5902564886,1008746
07.02.2023,CHIEF EXECUTIVE,LAMBERT SMITH HAMPTON GROUP LTD,850.00,CAPITAL PS (REGEN),CONSTRUCTION FEES  - EXTERNAL,5902564730,1000060045
07.02.2023,CHIEF EXECUTIVE,MARTIN ARNOLD LTD,"2,166.67",CAPITAL PS (REGEN),CONSTRUCTION FEES  - EXTERNAL,5902564835,1000076993
07.02.2023,CHIEF EXECUTIVE,MICA ARCHITECTS LTD,"2,431.06",CAPITAL PS (REGEN),CONSTRUCTION FEES - ARCHITECT,5902564824,1000087566
07.02.2023,CHILDREN AND ADULT,DE GRAAFF & PARTNERS LTD,585.00,CAPITAL PS (SOC SERV),CONSTRUCTION MAIN CONTRACT,5902564891,1000081567
07.02.2023,CHILDREN AND FAMILIES,REDACTED PERSONAL DATA,696.00,ADOPTION ALLOWANCES,PAYMENTS TO CARERS,REDACTED,REDACTED
07.02.2023,CHILDREN AND FAMILIES,RICHMOND MUSIC TRUST LTD,320.00,ADOPTION SUPP FUND 1,EXTERNAL AGENCIES AND BODIES,5902564845,1000085665
07.02.2023,CHILDREN AND FAMILIES,RICHMOND MUSIC TRUST LTD,448.00,ADOPTION SUPP FUND 1,EXTERNAL AGENCIES AND BODIES,5902564776,1000085665
07.02.2023,CHILDREN AND FAMILIES,ALEX VOLOVISKY LTD,500.00,ADOPTION SUPP FUND 1,EXTERNAL AGENCIES AND BODIES,5902564781,1000088469
07.02.2023,CHILDREN AND FAMILIES,RICHMOND MUSIC TRUST LTD,508.00,ADOPTION SUPP FUND 1,EXTERNAL AGENCIES AND BODIES,5902564847,1000085665
07.02.2023,CHILDREN AND FAMILIES,RICHMOND MUSIC TRUST LTD,512.00,ADOPTION SUPP FUND 1,EXTERNAL AGENCIES AND BODIES,5902564778,1000085665
07.02.2023,CHILDREN AND FAMILIES,PLAY THERAPY SERVICES LTD,600.00,ADOPTION SUPP FUND 1,EXTERNAL AGENCIES AND BODIES,5902564881,1000085546
07.02.2023,CHILDREN AND FAMILIES,PLAY THERAPY SERVICES LTD,300.00,ADOPTION SUPP FUND 2,EXTERNAL AGENCIES AND BODIES,5902564877,1000085546
07.02.2023,CHILDREN AND FAMILIES,PLAY THERAPY SERVICES LTD,300.00,ADOPTION SUPP FUND 2,EXTERNAL AGENCIES AND BODIES,5902564882,1000085546
07.02.2023,CHILDREN AND FAMILIES,NURTURING CONNECTIONS LTD,300.00,ADOPTION SUPP FUND 2,EXTERNAL AGENCIES AND BODIES,5902564859,1000088647
07.02.2023,CHILDREN AND FAMILIES,REDACTED PERSONAL DATA,300.00,ADOPTION SUPP FUND 2,EXTERNAL AGENCIES AND BODIES,REDACTED,REDACTED
07.02.2023,CHILDREN AND FAMILIES,THE SENSORY SMART CHILD LTD,374.00,ADOPTION SUPP FUND 2,EXTERNAL AGENCIES AND BODIES,5902564871,1000085374
07.02.2023,CHILDREN AND FAMILIES,PLAY THERAPY SERVICES LTD,400.00,ADOPTION SUPP FUND 2,EXTERNAL AGENCIES AND BODIES,5902564876,1000085546
07.02.2023,CHILDREN AND FAMILIES,REDACTED PERSONAL DATA,606.80,ADOPTION SUPP FUND 2,EXTERNAL AGENCIES AND BODIES,REDACTED,REDACTED
07.02.2023,CHILDREN AND FAMILIES,REDACTED PERSONAL DATA,606.80,ADOPTION SUPP FUND 2,EXTERNAL AGENCIES AND BODIES,REDACTED,REDACTED
07.02.2023,CHILDREN AND FAMILIES,REDACTED PERSONAL DATA,910.20,ADOPTION SUPP FUND 2,EXTERNAL AGENCIES AND BODIES,REDACTED,REDACTED
07.02.2023,CHILDREN AND FAMILIES,JANINA BELL,"1,275.00",ADOPTION SUPP FUND 2,EXTERNAL AGENCIES AND BODIES,5902564775,1000087769
07.02.2023,CHILDREN AND FAMILIES,REDACTED PERSONAL DATA,"1,450.00",ADOPTION SUPP FUND 2,EXTERNAL AGENCIES AND BODIES,REDACTED,REDACTED
07.02.2023,CHILDREN AND FAMILIES,REDACTED PERSONAL DATA,"2,880.00",ADOPTION SUPP FUND 2,EXTERNAL AGENCIES AND BODIES,REDACTED,REDACTED
07.02.2023,CHILDREN AND FAMILIES,CASTLE WATER LTD,524.60,CENTRAL SUPPORT,WATER,5902564852,1000078867
07.02.2023,CHILDREN AND FAMILIES,REDACTED PERSONAL DATA,519.42,FAMILY GROUP CONF�S,PROFESSIONAL FEES,REDACTED,REDACTED
07.02.2023,CHILDREN AND FAMILIES,REDACTED PERSONAL DATA,300.00,FE SUPPORT,CLIENT TRANSPORT,REDACTED,REDACTED
07.02.2023,CHILDREN AND FAMILIES,REDACTED PERSONAL DATA,300.00,FE SUPPORT,CLIENT TRANSPORT,REDACTED,REDACTED
07.02.2023,CHILDREN AND FAMILIES,REDACTED PERSONAL DATA,300.00,FE SUPPORT,CLIENT TRANSPORT,REDACTED,REDACTED
07.02.2023,CHILDREN AND FAMILIES,REDACTED PERSONAL DATA,696.00,FOSTERING ALLOWANCES,PAYMENTS TO CARERS,REDACTED,REDACTED
07.02.2023,CHILDREN AND FAMILIES,REDACTED PERSONAL DATA,"1,028.57",FOSTERING ALLOWANCES,PAYMENTS TO CARERS,REDACTED,REDACTED
07.02.2023,CHILDREN AND FAMILIES,REDACTED PERSONAL DATA,635.71,SEMI-IND LAC 16-17,OTHER PAYMENTS FOR CLIENTS,REDACTED,REDACTED
07.02.2023,CHILDREN AND FAMILIES,REDACTED PERSONAL DATA,"-1,028.57",STAYPUT- FOST CARERS,PAYMENTS TO CARERS,REDACTED,REDACTED
07.02.2023,COMMUNITIES,SK HOUSING LTD,"1,488.00",NO RECOURSE TO PUBLIC FUNDS,ACCOMMODATION CHARGES,5902564917,1000070716
07.02.2023,COMMUNITIES,BEITEL CARE SERVICES LIMITED,"4,643.09",NO RECOURSE TO PUBLIC FUNDS,ACCOMMODATION CHARGES,5902564855,1000089283
07.02.2023,COMMUNITIES,KINDLY PROPERTIES LTD,"35,918.00",NO RECOURSE TO PUBLIC FUNDS,ACCOMMODATION CHARGES,5902564892,1000060734
07.02.2023,COMMUNITIES,REDACTED PERSONAL DATA,350.00,UKRAINIAN PROGRAMME,GRANTS,REDACTED,REDACTED
07.02.2023,COMMUNITIES,REDACTED PERSONAL DATA,350.00,UKRAINIAN PROGRAMME,GRANTS,REDACTED,REDACTED
07.02.2023,COMMUNITIES,REDACTED PERSONAL DATA,350.00,UKRAINIAN PROGRAMME,GRANTS,REDACTED,REDACTED
07.02.2023,COMMUNITIES,REDACTED PERSONAL DATA,350.00,UKRAINIAN PROGRAMME,GRANTS,REDACTED,REDACTED
07.02.2023,COMMUNITIES,REDACTED PERSONAL DATA,350.00,UKRAINIAN PROGRAMME,GRANTS,REDACTED,REDACTED
07.02.2023,COMMUNITIES,REDACTED PERSONAL DATA,350.00,UKRAINIAN PROGRAMME,GRANTS,REDACTED,REDACTED
07.02.2023,COMMUNITIES,REDACTED PERSONAL DATA,350.00,UKRAINIAN PROGRAMME,GRANTS,REDACTED,REDACTED
07.02.2023,COMMUNITIES,REDACTED PERSONAL DATA,350.00,UKRAINIAN PROGRAMME,GRANTS,REDACTED,REDACTED
07.02.2023,COMMUNITIES,REDACTED PERSONAL DATA,350.00,UKRAINIAN PROGRAMME,GRANTS,REDACTED,REDACTED
07.02.2023,COMMUNITIES,REDACTED PERSONAL DATA,700.00,UKRAINIAN PROGRAMME,GRANTS,REDACTED,REDACTED
07.02.2023,COMMUNITIES,REDACTED PERSONAL DATA,700.00,UKRAINIAN PROGRAMME,GRANTS,REDACTED,REDACTED
07.02.2023,COMMUNITIES HRA,GLOUCESTER GROVE ESTATE TMO,"57,157.05",GLOUCESTER GROVE ESTATE,M&M ALLOWANCE CO-OPS,5902564727,1000073072
07.02.2023,CUSTOMER EXPERIENCE HGF,DR PHILLIP H. MARSDEN,276.90,CORONER'S,PROFESSIONAL FEES,5902564738,1000063286
07.02.2023,CUSTOMER EXPERIENCE HGF,IMPERIAL COLLEGE PROJECTS LTD,336.00,CORONER'S,PROFESSIONAL FEES,5902564941,1000080106
07.02.2023,CUSTOMER EXPERIENCE HGF,IMPERIAL COLLEGE PROJECTS LTD,344.00,CORONER'S,PROFESSIONAL FEES,5902564939,1000080106
07.02.2023,CUSTOMER EXPERIENCE HGF,IMPERIAL COLLEGE PROJECTS LTD,356.00,CORONER'S,PROFESSIONAL FEES,5902564935,1000080106
07.02.2023,CUSTOMER EXPERIENCE HGF,NRC PATHOLOGY SERVICES LIMITED,360.00,CORONER'S,PROFESSIONAL FEES,5902564836,1000085798
07.02.2023,CUSTOMER EXPERIENCE HGF,IMPERIAL COLLEGE PROJECTS LTD,388.00,CORONER'S,PROFESSIONAL FEES,5902564931,1000080106
07.02.2023,CUSTOMER EXPERIENCE HGF,IMPERIAL COLLEGE PROJECTS LTD,388.00,CORONER'S,PROFESSIONAL FEES,5902564945,1000080106
07.02.2023,CUSTOMER EXPERIENCE HGF,IMPERIAL COLLEGE PROJECTS LTD,404.00,CORONER'S,PROFESSIONAL FEES,5902564916,1000080106
07.02.2023,CUSTOMER EXPERIENCE HGF,IMPERIAL COLLEGE PROJECTS LTD,404.00,CORONER'S,PROFESSIONAL FEES,5902564943,1000080106
07.02.2023,CUSTOMER EXPERIENCE HGF,IMPERIAL COLLEGE PROJECTS LTD,408.00,CORONER'S,PROFESSIONAL FEES,5902564921,1000080106
07.02.2023,CUSTOMER EXPERIENCE HGF,IMPERIAL COLLEGE PROJECTS LTD,408.00,CORONER'S,PROFESSIONAL FEES,5902564923,1000080106
07.02.2023,CUSTOMER EXPERIENCE HGF,IMPERIAL COLLEGE PROJECTS LTD,452.00,CORONER'S,PROFESSIONAL FEES,5902564937,1000080106
07.02.2023,CUSTOMER EXPERIENCE HGF,IMPERIAL COLLEGE PROJECTS LTD,472.00,CORONER'S,PROFESSIONAL FEES,5902564919,1000080106
07.02.2023,CUSTOMER EXPERIENCE HGF,IMPERIAL COLLEGE PROJECTS LTD,504.00,CORONER'S,PROFESSIONAL FEES,5902564940,1000080106
07.02.2023,CUSTOMER EXPERIENCE HGF,FORENSIC PATHOLOGY SERVICES,541.90,CORONER'S,PROFESSIONAL FEES,5902564843,1000086871
07.02.2023,CUSTOMER EXPERIENCE HGF,IMPERIAL COLLEGE PROJECTS LTD,584.00,CORONER'S,PROFESSIONAL FEES,5902564926,1000080106
07.02.2023,CUSTOMER EXPERIENCE HGF,IMPERIAL COLLEGE PROJECTS LTD,620.00,CORONER'S,PROFESSIONAL FEES,5902564948,1000080106
07.02.2023,DSG,GV GROUP (GATE VENTURES) LTD,886.88,SUMMERHOUSE,CATERING MATERIALS & SUPPLIES,5902564733,1000086643
07.02.2023,ENVIRONMENT AND LEISURE,PRIEST STONEWORK & RESTORATION LTD,650.00,CAPITAL PS (LEISURE),CONSTRUCTION FEES  - EXTERNAL,5902564745,1000079139
07.02.2023,ENVIRONMENT AND LEISURE,ADVANCED TRANSPORT RESEARCH LTD,780.00,CAPITAL PS (LEISURE),CONSTRUCTION,5902564747,1000070527
07.02.2023,ENVIRONMENT AND LEISURE,PRIEST STONEWORK & RESTORATION LTD,"1,100.00",CAPITAL PS (LEISURE),CONSTRUCTION FEES  - EXTERNAL,5902564745,1000079139
07.02.2023,ENVIRONMENT AND LEISURE,THE CONSERVATION VOLUNTEERS,"3,000.00",CAPITAL PS (LEISURE),CONSTRUCTION SITE COSTS,5902564820,1872821
07.02.2023,ENVIRONMENT AND LEISURE,CONTEGO SAFETY SOLUTIONS LTD,528.00,MANAGEMENT TEAM,MATERIALS,5902564811,1000077673
07.02.2023,ENVIRONMENT AND LEISURE,KENT COUNTY COUNCIL - LASER,"2,262.87",SANDGATE STREET,ELECTRICITY,5902564819,1000012926
07.02.2023,ENVIRONMENT DIRECTORATE,DAWSONGROUP VANS LTD,275.90,COMMERCIAL VEH CTRL A/C,HIRED VEHICLES,5902564946,1000082230
07.02.2023,ENVIRONMENT DIRECTORATE,DAWSONGROUP VANS LTD,300.08,COMMERCIAL VEH CTRL A/C,HIRED VEHICLES,5902564944,1000082230
07.02.2023,ENVIRONMENT DIRECTORATE,LEEDS COMMERCIAL LIMITED T/A LC VEHICLE HIRE,"3,146.00",COMMERCIAL VEH CTRL A/C,HIRED VEHICLES,5902564949,1000082730
07.02.2023,ENVIRONMENT DIRECTORATE,LEEDS COMMERCIAL LIMITED T/A LC VEHICLE HIRE,"4,356.00",COMMERCIAL VEH CTRL A/C,HIRED VEHICLES,5902564947,1000082730
07.02.2023,ENVIRONMENT DIRECTORATE,DRAIN SCAN (LONDON) LIMITED,280.00,GULLY MAINT NON PINC RD,OTHER CONTRACTORS,5902564772,1908746
07.02.2023,ENVIRONMENT DIRECTORATE,DRAIN SCAN (LONDON) LIMITED,280.00,GULLY MAINT NON PINC RD,OTHER CONTRACTORS,5902564786,1908746
07.02.2023,ENVIRONMENT DIRECTORATE,DRAIN SCAN (LONDON) LIMITED,280.00,GULLY MAINT NON PINC RD,OTHER CONTRACTORS,5902564787,1908746
07.02.2023,ENVIRONMENT DIRECTORATE,DRAIN SCAN (LONDON) LIMITED,280.00,GULLY MAINT NON PINC RD,OTHER CONTRACTORS,5902564788,1908746
07.02.2023,ENVIRONMENT DIRECTORATE,BBFI CIC,"5,440.00",PARKING OVERHEADS,OTHER CONTRACTORS,5902564756,1000088786
07.02.2023,ENVIRONMENT DIRECTORATE,GREENLIGHT COMMERCIAL & CONSULTING,"15,626.31",PFI PROJECT,PROFESSIONAL FEES,5902564765,1000087181
07.02.2023,ENVIRONMENT DIRECTORATE,WEB LABS LTD,"2,700.00",SUSTAINABLE WASTE OVERHEADS,OP LEASE/HIRE CHARGES:PLANT/EQUIP/FURNIT,5902564901,1000039819
07.02.2023,F & C S EXCLUDING CORPORATE BUDGETS,MRO PEOPLE LTD,765.00,ADMINISTRATIVE SUPPORT,TRAINING,5902564914,1000083017
07.02.2023,HOUSING GENERAL FUND,SOUTH EAST BUILDING CONTRACTORS LTD,500.44,CAPITAL PS (HOUSING GF),CAPITAL GRANTS,5902564930,1000049893
07.02.2023,HOUSING GENERAL FUND,BUILDING MONITORING SERVICES LTD,448.02,CAPITAL PS (REGEN),CONSTRUCTION MAIN CONTRACT,5902564840,1000063798
07.02.2023,HOUSING GENERAL FUND,BUILDING MONITORING SERVICES LTD,456.93,CAPITAL PS (REGEN),CONSTRUCTION MAIN CONTRACT,5902564825,1000063798
07.02.2023,HOUSING GENERAL FUND,DE GRAAFF & PARTNERS LTD,585.00,CAPITAL PS (REGEN),CONSTRUCTION MAIN CONTRACT,5902564933,1000081567
07.02.2023,HOUSING GENERAL FUND,BUILDING MONITORING SERVICES LTD,657.62,CAPITAL PS (REGEN),CONSTRUCTION MAIN CONTRACT,5902564838,1000063798
07.02.2023,HOUSING GENERAL FUND,BUILDING MONITORING SERVICES LTD,745.65,CAPITAL PS (REGEN),CONSTRUCTION MAIN CONTRACT,5902564862,1000063798
07.02.2023,HOUSING GENERAL FUND,BUILDING MONITORING SERVICES LTD,763.47,CAPITAL PS (REGEN),CONSTRUCTION MAIN CONTRACT,5902564826,1000063798
07.02.2023,HOUSING GENERAL FUND,BUILDING MONITORING SERVICES LTD,"1,537.11",CAPITAL PS (REGEN),CONSTRUCTION MAIN CONTRACT,5902564905,1000063798
07.02.2023,HOUSING GENERAL FUND,DE GRAAFF & PARTNERS LTD,"3,600.00",CAPITAL PS (REGEN),CONSTRUCTION MAIN CONTRACT,5902564893,1000081567
07.02.2023,HOUSING HRA,SHARPE PRITCHARD LLP,520.30,CAPITAL PS (HRA),CONSTRUCTION FEES - LEGAL,5902564915,1790085
07.02.2023,HOUSING HRA,CARTER JONAS LLP,700.00,CAPITAL PS (HRA),LAND & BUILDINGS ACQUISITION FEES,5902564866,1000073124
07.02.2023,HOUSING HRA,SHERGROUP LTD,"3,360.00",CAPITAL PS (HRA),CONSTRUCTION FEES  - EXTERNAL,5902564806,1000087977
07.02.2023,HOUSING HRA,CPMC SURVEYING LTD,"5,700.00",CAPITAL PS (HRA),CONSTRUCTION FEES  - EXTERNAL,5902564763,1000089259
07.02.2023,HOUSING HRA,POWER ON CONNECTIONS LTD,"6,162.56",CAPITAL PS (HRA),UTILITIES INSTALLATION,5902564837,1000083135
07.02.2023,HOUSING HRA,GC CONSTRUCT LTD,"7,772.72",CAPITAL PS (HRA),CONSTRUCTION,2103619848,3000002106
07.02.2023,HOUSING HRA,HTA DESIGN LLP,"10,560.00",CAPITAL PS (HRA),CONSTRUCTION FEES - ARCHITECT,5902563743,1000074662
07.02.2023,HOUSING HRA,CALFORD SEADEN LLP,"15,993.60",CAPITAL PS (HRA),CONSTRUCTION FEES  - EXTERNAL,5902564903,1061592
07.02.2023,HOUSING HRA,CALFORD SEADEN LLP,"21,241.50",CAPITAL PS (HRA),CONSTRUCTION FEES  - EXTERNAL,5902564906,1061592
07.02.2023,HOUSING HRA,NIBLOCK (BUILDERS) LTD,"110,740.44",CAPITAL PS (HRA),CONSTRUCTION MAIN CONTRACT -CERTIFICATED,2103619825,3000000235
07.02.2023,HOUSING HRA,BOUYGUES (UK) LTD,"51,673.61",CAPITAL PS (REGEN),CONSTRUCTION FEES - ARCHITECT,2103619955,3000002179
07.02.2023,HOUSING HRA,BOUYGUES (UK) LTD,"2,156,600.14",CAPITAL PS (REGEN),CONSTRUCTION FEES - ARCHITECT,2103619956,3000002179
07.02.2023,LEISURE DIRECTORATE,KENT COUNTY COUNCIL - LASER,280.56,BURGESS AREA TEAM,GAS,5902564749,1000012926
07.02.2023,LEISURE DIRECTORATE,KENT COUNTY COUNCIL - LASER,"4,406.18",BURGESS SPORTS CENTRE,ELECTRICITY,5902564746,1000012926
07.02.2023,LEISURE DIRECTORATE,KENT COUNTY COUNCIL - LASER,690.88,PLAY NORTH,GAS,5902564736,1000012926
07.02.2023,LEISURE DIRECTORATE,KENT COUNTY COUNCIL - LASER,714.10,PLAY NORTH,GAS,5902564732,1000012926
07.02.2023,LEISURE DIRECTORATE,SMART PLATFORM RENTAL LTD,625.00,TREES � IN-HOUSE TEAM,HIRED VEHICLES,5902564822,1000082961
07.02.2023,NEW BUILD,NIBLOCK (BUILDERS) LTD,"2,812.70",DEVELOPMENT DELIVERY,PROFESSIONAL FEES,2103619849,3000000235
07.02.2023,PLANNING & GROWTH,CLYDE & CO,962.00,7 HOLYROOD STREET,SOLICITORS FRAMEWORK LEGAL SERVICES,5902564768,1000067838
07.02.2023,PLANNING & GROWTH,CLYDE & CO,"5,176.00",9 HOLYROOD STREET,SOLICITORS FRAMEWORK LEGAL SERVICES,5902564752,1000067838
07.02.2023,PLANNING & GROWTH,CLYDE & CO,"2,750.00",CPHA  MANAGED PROPERTIES,SOLICITORS FRAMEWORK LEGAL SERVICES,5902564769,1000067838
07.02.2023,PLANNING & GROWTH,ZURICH MUNICIPAL,"22,519.25",CPHA  MANAGED PROPERTIES,PROPERTY INSURANCE COSTS,5902564758,11011168
07.02.2023,PLANNING & GROWTH,KENT COUNTY COUNCIL - LASER,"2,369.80",TOWER WORKSHOPS,ELECTRICITY,5902564764,1000012926
07.02.2023,PUBLIC HEALTH,LINDA DRAKE,"2,625.00",DIGITAL HEALTH,EXTERNAL AGENCIES AND BODIES,5902564724,1000087981
07.02.2023,RESIDENT SERVICES,HARROW GREEN LTD,765.28,OPERATIONS/OFFICES ACCOMMODATION,REMOVAL EXPENSES,5902564829,1000076673
07.02.2023,RESIDENT SERVICES,HARROW GREEN LTD,930.10,OPERATIONS/OFFICES ACCOMMODATION,REMOVAL EXPENSES,5902564771,1000076673
07.02.2023,RESIDENT SERVICES,HARROW GREEN LTD,"1,150.07",OPERATIONS/OFFICES ACCOMMODATION,REMOVAL EXPENSES,5902564785,1000076673
07.02.2023,RESIDENT SERVICES,HARROW GREEN LTD,"2,059.97",OPERATIONS/OFFICES ACCOMMODATION,REMOVAL EXPENSES,5902564782,1000076673
07.02.2023,RESIDENT SERVICES,HARROW GREEN LTD,"2,308.64",OPERATIONS/OFFICES ACCOMMODATION,REMOVAL EXPENSES,5902564770,1000076673
07.02.2023,RESIDENT SERVICES,HARROW GREEN LTD,"2,420.36",OPERATIONS/OFFICES ACCOMMODATION,REMOVAL EXPENSES,5902564783,1000076673
07.02.2023,RESIDENT SERVICES,HARROW GREEN LTD,"2,709.35",OPERATIONS/OFFICES ACCOMMODATION,REMOVAL EXPENSES,5902564777,1000076673
07.02.2023,RESIDENT SERVICES,OT GROUP LIMITED,485.96,SHELTERED NORTH,STATIONERY,5902564920,1000087285
07.02.2023,RESIDENT SERVICES HGF,GREYPATCH PROPERTIES LTD,"2,381.94",HOMELESS PROJECTS,GRANTS,5902564725,1000089343
07.02.2023,RESIDENT SERVICES HGF,GREYPATCH PROPERTIES LTD,"2,381.94",HOMELESS PROJECTS,GRANTS,5902564726,1000089343
07.02.2023,RESIDENT SERVICES HGF,GREYPATCH PROPERTIES LTD,"2,381.94",HOMELESS PROJECTS,GRANTS,5902564755,1000089343
07.02.2023,RESIDENT SERVICES HGF,JMAA PROPERTY MANAGEMENT LTD,"3,500.00",HOMELESS PROJECTS,GRANTS,5902564833,1000089336
07.02.2023,RESIDENT SERVICES HGF,CLARION HOUSING ASSOCIATION LTD,"5,546.22",HOUSING OPTIONS,EXTERNAL AGENCIES AND BODIES,5902564735,1000088255
07.02.2023,RESIDENT SERVICES HGF,NOTTING HILL HOUSING TRUST,"23,739.56",HYDE/AMICUS AND HALS,EXTERNAL AGENCIES AND BODIES,5902564723,1000043205
07.02.2023,RESIDENT SERVICES HGF,EASYMOVE EA LIMITED,"1,943.70",NIGHTLY TA (NSC),EXTERNAL AGENCIES AND BODIES,5902564918,1000066859
07.02.2023,RESIDENT SERVICES HGF,A & M PROPERTY AND CONSTRUCTION LTD,"2,760.50",NIGHTLY TA (NSC),EXTERNAL AGENCIES AND BODIES,5902564744,1000014564
07.02.2023,RESIDENT SERVICES HGF,CROWN HOUSING LTD,"7,006.00",NIGHTLY TA (NSC),EXTERNAL AGENCIES AND BODIES,5902564827,1000075070
07.02.2023,STRATEGIC FINANCING BUDGETS,GREATER LONDON AUTHORITY,"152,354.90",LONDON PENSION FUND,LEVIES,5902564815,1000015827
08.02.2023,ADULT SOCIAL CARE,JACK ANDERSON,"1,250.00",AAD TEAM,LEGAL FEES & COURT COSTS,2103620922,1000058150
08.02.2023,ADULT SOCIAL CARE,SIAN DAVIES,462.50,DIR OF ASC,LEGAL FEES & COURT COSTS,2103620986,1000042111
08.02.2023,ADULT SOCIAL CARE,MICHAEL PAGET,600.00,DIR OF ASC,LEGAL FEES & COURT COSTS,2103620959,1000074954
08.02.2023,ADULT SOCIAL CARE,ANNA BICARREGUI,"1,418.33",DIR OF ASC,LEGAL FEES & COURT COSTS,2103620891,1000069077
08.02.2023,ADULT SOCIAL CARE,MICHAEL PAGET,"2,750.00",DIR OF ASC,LEGAL FEES & COURT COSTS,2103620958,1000074954
08.02.2023,ADULT SOCIAL CARE,REDACTED PERSONAL DATA,778.00,DISABILITIES LAC,PAYMENTS TO CARERS,REDACTED,REDACTED
08.02.2023,ADULT SOCIAL CARE,REDACTED PERSONAL DATA,926.00,DISABILITIES LAC,PAYMENTS TO CARERS,REDACTED,REDACTED
08.02.2023,ADULT SOCIAL CARE,REDACTED PERSONAL DATA,"1,664.00",DISABILITIES LAC,PAYMENTS TO CARERS,REDACTED,REDACTED
08.02.2023,ADULT SOCIAL CARE,THAMES HOMECARE SERVICE LTD,738.82,MEM LTS 65+,HOMECARE - SPOT,2103620837,1000079295
08.02.2023,ADULT SOCIAL CARE,THAMES HOMECARE SERVICE LTD,254.27,PHY LTS 18-64,HOMECARE - SPOT,2103620835,1000079295
08.02.2023,ADULT SOCIAL CARE,THAMES HOMECARE SERVICE LTD,273.46,PHY LTS 18-64,HOMECARE - SPOT,2103620863,1000079295
08.02.2023,ADULT SOCIAL CARE,THAMES HOMECARE SERVICE LTD,369.41,PHY LTS 18-64,HOMECARE - SPOT,2103620865,1000079295
08.02.2023,ADULT SOCIAL CARE,THAMES HOMECARE SERVICE LTD,388.60,PHY LTS 18-64,HOMECARE - SPOT,2103620829,1000079295
08.02.2023,ADULT SOCIAL CARE,THAMES HOMECARE SERVICE LTD,604.49,PHY LTS 18-64,HOMECARE - SPOT,2103620823,1000079295
08.02.2023,ADULT SOCIAL CARE,THAMES HOMECARE SERVICE LTD,820.37,PHY LTS 18-64,HOMECARE - SPOT,2103620851,1000079295
08.02.2023,ADULT SOCIAL CARE,THAMES HOMECARE SERVICE LTD,254.27,PHY LTS 65+,HOMECARE - SPOT,2103620824,1000079295
08.02.2023,ADULT SOCIAL CARE,THAMES HOMECARE SERVICE LTD,254.27,PHY LTS 65+,HOMECARE - SPOT,2103620847,1000079295
08.02.2023,ADULT SOCIAL CARE,THAMES HOMECARE SERVICE LTD,268.66,PHY LTS 65+,HOMECARE - SPOT,2103620858,1000079295
08.02.2023,ADULT SOCIAL CARE,THAMES HOMECARE SERVICE LTD,287.85,PHY LTS 65+,HOMECARE - SPOT,2103620860,1000079295
08.02.2023,ADULT SOCIAL CARE,THAMES HOMECARE SERVICE LTD,302.24,PHY LTS 65+,HOMECARE - SPOT,2103620839,1000079295
08.02.2023,ADULT SOCIAL CARE,THAMES HOMECARE SERVICE LTD,321.43,PHY LTS 65+,HOMECARE - SPOT,2103620850,1000079295
08.02.2023,ADULT SOCIAL CARE,THAMES HOMECARE SERVICE LTD,340.62,PHY LTS 65+,HOMECARE - SPOT,2103620817,1000079295
08.02.2023,ADULT SOCIAL CARE,THAMES HOMECARE SERVICE LTD,364.61,PHY LTS 65+,HOMECARE - SPOT,2103620841,1000079295
08.02.2023,ADULT SOCIAL CARE,THAMES HOMECARE SERVICE LTD,369.41,PHY LTS 65+,HOMECARE - SPOT,2103620845,1000079295
08.02.2023,ADULT SOCIAL CARE,THAMES HOMECARE SERVICE LTD,388.60,PHY LTS 65+,HOMECARE - SPOT,2103620849,1000079295
08.02.2023,ADULT SOCIAL CARE,THAMES HOMECARE SERVICE LTD,412.59,PHY LTS 65+,HOMECARE - SPOT,2103620856,1000079295
08.02.2023,ADULT SOCIAL CARE,THAMES HOMECARE SERVICE LTD,470.16,PHY LTS 65+,HOMECARE - SPOT,2103620815,1000079295
08.02.2023,ADULT SOCIAL CARE,THAMES HOMECARE SERVICE LTD,575.70,PHY LTS 65+,HOMECARE - SPOT,2103620826,1000079295
08.02.2023,ADULT SOCIAL CARE,THAMES HOMECARE SERVICE LTD,604.49,PHY LTS 65+,HOMECARE - SPOT,2103620832,1000079295
08.02.2023,ADULT SOCIAL CARE,THAMES HOMECARE SERVICE LTD,604.49,PHY LTS 65+,HOMECARE - SPOT,2103620852,1000079295
08.02.2023,ADULT SOCIAL CARE,THAMES HOMECARE SERVICE LTD,604.49,PHY LTS 65+,HOMECARE - SPOT,2103620854,1000079295
08.02.2023,ADULT SOCIAL CARE,THAMES HOMECARE SERVICE LTD,671.65,PHY LTS 65+,HOMECARE - SPOT,2103620809,1000079295
08.02.2023,ADULT SOCIAL CARE,THAMES HOMECARE SERVICE LTD,671.65,PHY LTS 65+,HOMECARE - SPOT,2103620831,1000079295
08.02.2023,ADULT SOCIAL CARE,THAMES HOMECARE SERVICE LTD,671.65,PHY LTS 65+,HOMECARE - SPOT,2103620840,1000079295
08.02.2023,ADULT SOCIAL CARE,THAMES HOMECARE SERVICE LTD,671.65,PHY LTS 65+,HOMECARE - SPOT,2103620844,1000079295
08.02.2023,ADULT SOCIAL CARE,THAMES HOMECARE SERVICE LTD,676.45,PHY LTS 65+,HOMECARE - SPOT,2103620806,1000079295
08.02.2023,ADULT SOCIAL CARE,THAMES HOMECARE SERVICE LTD,686.04,PHY LTS 65+,HOMECARE - SPOT,2103620789,1000079295
08.02.2023,ADULT SOCIAL CARE,THAMES HOMECARE SERVICE LTD,700.44,PHY LTS 65+,HOMECARE - SPOT,2103620814,1000079295
08.02.2023,ADULT SOCIAL CARE,THAMES HOMECARE SERVICE LTD,710.03,PHY LTS 65+,HOMECARE - SPOT,2103620797,1000079295
08.02.2023,ADULT SOCIAL CARE,THAMES HOMECARE SERVICE LTD,738.82,PHY LTS 65+,HOMECARE - SPOT,2103620842,1000079295
08.02.2023,ADULT SOCIAL CARE,THAMES HOMECARE SERVICE LTD,738.82,PHY LTS 65+,HOMECARE - SPOT,2103620862,1000079295
08.02.2023,ADULT SOCIAL CARE,THAMES HOMECARE SERVICE LTD,767.60,PHY LTS 65+,HOMECARE - SPOT,2103620825,1000079295
08.02.2023,ADULT SOCIAL CARE,THAMES HOMECARE SERVICE LTD,805.98,PHY LTS 65+,HOMECARE - SPOT,2103620808,1000079295
08.02.2023,ADULT SOCIAL CARE,THAMES HOMECARE SERVICE LTD,825.17,PHY LTS 65+,HOMECARE - SPOT,2103620855,1000079295
08.02.2023,ADULT SOCIAL CARE,THAMES HOMECARE SERVICE LTD,911.53,PHY LTS 65+,HOMECARE - SPOT,2103620861,1000079295
08.02.2023,ADULT SOCIAL CARE,THAMES HOMECARE SERVICE LTD,"1,036.26",PHY LTS 65+,HOMECARE - SPOT,2103620833,1000079295
08.02.2023,ADULT SOCIAL CARE,THAMES HOMECARE SERVICE LTD,350.22,PHY STS 65+,HOMECARE - IC,2103620819,1000079295
08.02.2023,ADULT SOCIAL CARE,SOUTH LONDON & MAUDSLEY HOSPITAL,"38,083.00",SLAM SPOT MH RES,EXTERNAL AGENCIES AND BODIES,5902565001,1000013096
08.02.2023,ADULT SOCIAL CARE,SOUTH LONDON & MAUDSLEY HOSPITAL,"285,072.00",SLAM SPOT MH RES,EXTERNAL AGENCIES AND BODIES,5902565003,1000013096
08.02.2023,ADULT SOCIAL CARE,SOUTH LONDON & MAUDSLEY HOSPITAL,"293,094.00",SLAM SPOT MH RES,EXTERNAL AGENCIES AND BODIES,5902564998,1000013096
08.02.2023,ASSET MANAGEMENT,4-5 GRAYS INN SQUARE LTD,400.00,DISREPAIR,LEGAL FEES & COURT COSTS,2103620879,1000046636
08.02.2023,ASSET MANAGEMENT,PROPERTY FACILITIES GROUP LTD,"2,968.82",DISREPAIR,BUILDING R&M,5902565199,1000063713
08.02.2023,ASSET MANAGEMENT,GAS LOGIC LTD,418.50,REPAIRS OPERATIONS,TRAINING,5902564995,1000070763
08.02.2023,ASSET MANAGEMENT,STABILIS ASSOCIATES LTD,"8,736.00",REPAIRS OPERATIONS,PROFESSIONAL FEES,5902565138,1000082512
08.02.2023,ASSET MANAGEMENT HGF,ITONLINELEARNING LTD,829.17,CFM OPERATIONAL BUDGET,TRAINING,5902565096,1000078308
08.02.2023,CENTRAL FUNCTIONS,LANDMARK INFORMATION GROUP LTD,257.25,COMMERCIAL PROPERTIES,LEGAL FEES & COURT COSTS,2103620952,11289864
08.02.2023,CENTRAL FUNCTIONS,EXPIDERE LTD,"1,496.35",GARAGE REPAIRS,PROFESSIONAL FEES,5902565185,1000088861
08.02.2023,CHILDREN AND ADULT,DAVID MILES & PARTNERS LTD,"4,790.00",CAPITAL PS (SOC SERV),CONSTRUCTION MAIN CONTRACT,5902564967,1000001119
08.02.2023,CHILDREN AND FAMILIES,REDACTED PERSONAL DATA,251.94,ADOPTION ALLOWANCES,PAYMENTS TO CARERS,REDACTED,REDACTED
08.02.2023,CHILDREN AND FAMILIES,REDACTED PERSONAL DATA,252.90,ADOPTION ALLOWANCES,PAYMENTS TO CARERS,REDACTED,REDACTED
08.02.2023,CHILDREN AND FAMILIES,REDACTED PERSONAL DATA,253.56,ADOPTION ALLOWANCES,PAYMENTS TO CARERS,REDACTED,REDACTED
08.02.2023,CHILDREN AND FAMILIES,REDACTED PERSONAL DATA,268.62,ADOPTION ALLOWANCES,PAYMENTS TO CARERS,REDACTED,REDACTED
08.02.2023,CHILDREN AND FAMILIES,REDACTED PERSONAL DATA,276.10,ADOPTION ALLOWANCES,PAYMENTS TO CARERS,REDACTED,REDACTED
08.02.2023,CHILDREN AND FAMILIES,REDACTED PERSONAL DATA,278.54,ADOPTION ALLOWANCES,PAYMENTS TO CARERS,REDACTED,REDACTED
08.02.2023,CHILDREN AND FAMILIES,REDACTED PERSONAL DATA,279.22,ADOPTION ALLOWANCES,PAYMENTS TO CARERS,REDACTED,REDACTED
08.02.2023,CHILDREN AND FAMILIES,REDACTED PERSONAL DATA,288.82,ADOPTION ALLOWANCES,PAYMENTS TO CARERS,REDACTED,REDACTED
08.02.2023,CHILDREN AND FAMILIES,REDACTED PERSONAL DATA,288.92,ADOPTION ALLOWANCES,PAYMENTS TO CARERS,REDACTED,REDACTED
08.02.2023,CHILDREN AND FAMILIES,REDACTED PERSONAL DATA,293.12,ADOPTION ALLOWANCES,PAYMENTS TO CARERS,REDACTED,REDACTED
08.02.2023,CHILDREN AND FAMILIES,REDACTED PERSONAL DATA,320.56,ADOPTION ALLOWANCES,PAYMENTS TO CARERS,REDACTED,REDACTED
08.02.2023,CHILDREN AND FAMILIES,REDACTED PERSONAL DATA,359.90,ADOPTION ALLOWANCES,PAYMENTS TO CARERS,REDACTED,REDACTED
08.02.2023,CHILDREN AND FAMILIES,REDACTED PERSONAL DATA,375.54,ADOPTION ALLOWANCES,PAYMENTS TO CARERS,REDACTED,REDACTED
